{"text_format":"1","workbook":"xlsx","n_sheets":5,"sheets":["Vera","Background","Spells","Monsters","Monster Template"],"not_rendered":{"charts":0,"images":2,"macros":1,"external_links":0,"defined_names":38,"comments":0,"pivot_tables":0},"unopened":[],"bounds":{"document_bytes":16777216,"sheet_cells":100000,"rows_first":2000,"rows_last":500,"rows_between":2000,"halvings":0,"cell_chars":16384,"cell_head_chars":4096},"cells_cut":0,"cells_raw":0,"read":"whole","date_system":"1900"}

{"sheet":"Vera","index":0,"n_rows":114,"n_cols":43,"rows_kept":114,"cut":false,"hidden":false,"merged":[]}
[null,null,null,null,"Senses","Languages","_"," ","Feature","-","Description","_","__","___","____"," ","Action Economy",null,null," ","Gameplay","Mult","Dmult","D","Add",null,"Pane","Cols",null,null,null,"Table Colors",null,null,null,null,null,null,null,null,"Key","Value"," "]
[null,null,null," ","Darkvision 60","Common",null," ","Arcane Recovery*",null,"Recover spell slots on short rest lv <= half wiz (rnd up) <= 6",null,null,null,null," ","Action","Description","_"," ",null,1,1,20,0,null,1,"A,B,C",null,null,null,"Theme","Style Name","Header","Header Font","Row1","Row1 Font","Row2","Row2 Font",null,"sh-138","True Seeing^6^10:08:48 PM Jan 18 23"," "]
[null,null,null," ",null,"Infernal",null," ","Conjuration Savant*",null,"Cost of copying conj spells is halved.",null,null,null,null," ","Benign Transport","Cantrip",null," ",null,1,1,20,15,null,2,"E,F,G",null,null,null,"Smoothie","SpellSlots","\"000000\"","\"F5F5F5\"","\"800080\"","\"F5F5F5\"","\"990099\"","\"F5F5F5\"",null,"sh-137","Mage Armor^1^10:08:37 PM Jan 18 23"," "]
[null,null,null," ",null,"Draconic",null," ","Focused Conjuration*",null,"Can't have concentration on conjuration broken w/ damage",null,null,null,null," ","Darkness","Tiefling","1/day"," ",null,3,1,4,1,null,3,"I,J,K,L,M,N,O",null,null,null,"Smoothie","General","\"002060\"","\"F5F5F5\"","\"6E497B\"","\"F5F5F5\"","\"835793\"","\"F5F5F5\"",null,"rh-467","10 - 1d20+3 (CON Saving Throw) - 09:09:10 PM Jan 18 23"," "]
[null,null,null," ",null,"Deep",null," ","Prepare Spells*",null,"Level + Int spells at end of long rest at 1m each",null,null,null,null," ","Staff of Frost","Feature",null," ",null,1,2,6,0,null,4,"Q,R,S",null,null,null,"Void","SpellSlots","\"000000\"","\"F5F5F5\"","\"404040\"","\"F5F5F5\"","\"595959\"","\"F5F5F5\"",null,"rh-466","19 - 1d20+13 (Arcana) - 09:04:37 PM Jan 18 23"," "]
[null,null,null," ",null,"Abyssal",null," ","Learn New Spell*",null,"2 Spells for free on level up. Can copy a found spell for 2h 50g/spell level",null,null,null,null," ","Caltrops","Equipment",null," ","Tools and Utilities",1,2,6,0,null,5,"U",null,null,null,"Void","General","\"000000\"","\"F5F5F5\"","\"3A3838\"","\"F5F5F5\"","\"404040\"","\"F5F5F5\"",null,"rh-465","20 - 1d20+4 - 09:02:49 PM Jan 18 23"," "]
[null,null,null," ","Misc Proficiencies","_","_2"," ","Replace Spellbook*",null,"1 Hour and 10 GP per spell level",null,null,null,null," ","Ioun's Brilliance","Feature","1/day"," ",null,null,null,null,null,null,null,null,null,null,null,"Polar","SpellSlots","\"00838F\"","\"F5F5F5\"","\"26C6DA\"","\"000000\"","\"00BCD4\"","\"000000\"",null,"rh-464","11 - 1d20+4 - 09:02:48 PM Jan 18 23"," "]
[null,null,null," ","Daggers","Darts",null," ","Cloak of the Bat*",null,"Stealth bonuses, can fly & be bat.",null,null,null,null," ","Reaction","Description","_"," ",null,null,null,null,null,null,null,null,null,null,null,"Polar","General","\"00838F\"","\"F5F5F5\"","\"4DD0E1\"","\"000000\"","\"26C6DA\"","\"000000\"",null,"rh-463","10 - 1d20+4 - 09:02:47 PM Jan 18 23"," "]
["Vera Konigin",null,null,null,"Slings","Quarterstaffs",null," ","Tiefling Spells*",null,"Darkness and Hellish Rebuke can be cast 1/day using CHA",null,null,null,null," ","Hellish Rebuke","Tiefling","1/day"," ",null,null,null,"Cell Colors",null,null,null,null,null,null,null,"Radiant","SpellSlots","\"F9A825\"","\"000000\"","\"E65100\"","\"000000\"","\"D84315\"","\"000000\"",null,"rh-462","15 - 1d20+3 (Sleight of Hand) - 09:02:26 PM Jan 18 23"," "]
["Str",8,{"$f":"ROUNDDOWN((B10-10)/2, 0)+IF(AND(B10<10,MOD(B10,2)=1),-1,0)","v":-1}," ","Light Crossbows",null,null," ","Tough*",null,"Whenever I gain a level, my HP max increases by 2",null,null,null,null," ","Shield","Spell",null," ",null,"Themes",null,"Theme","Style Name","Interior","Font","Border","Pattern Name","Pattern",null,"Radiant","General","\"FFCA28\"","\"000000\"","\"FFB028\"","\"000000\"","\"FF9326\"","\"000000\"",null,"rh-461","15 - 1d20+4 (CHA SV) - 09:01:47 PM Jan 18 23"," "]
["Dex",12,1," ","Saving Throw","Bonus","_"," ","Staff of Frost*",null,"Resist Cold","Cone of Cold","Fog Cloud","Ice Storm","Wall of Ice"," ","Counterspell","Spell",null," ",null,"Smoothie",null,"Smoothie","Column","\"401B5B\"","\"F5F5F5\"",null,14,"\"203764\"",null,"Sapphic","SpellSlots","\"b21e6a\"","\"F5F5F5\"","\"c34e94\"","\"000000\"","\"e05aa4\"","\"000000\"",null,"rh-460","20 - 1d20+5 (Perception) - 09:01:13 PM Jan 18 23"," "]
["Con",14,2," ","Int",{"$f":"Prof[Prof]","v":6},null," ","Iris of Ioun*",null,"ACTIVE Upcast spells, ignore resistances, buffs, dual concentration",null,null,null,null," ","Bonus Action","Description","_"," ",null,"Void",null,"Smoothie","FirstRow","\"6E497B\"","\"F5F5F5\"",null,null,null,null,"Sapphic","General","\"e61d25\"","\"F5F5F5\"","\"f46f22\"","\"000000\"","\"f7924e\"","\"000000\"",null,"sh-136","Summon Greater Demon^5^08:59:06 PM Jan 18 23"," "]
["Int",{"$f":"20+2+2","v":24},7," ","Wis",{"$f":"Prof[Prof]","v":6},null," ","Ioun's Brilliance*",null,"Aura to regain spell slots OR increase Damage",null,null,null,null," ","Drink a potion","Homebrew",null," ",null,"Polar",null,"Smoothie","Header","\"002060\"","\"F5F5F5\"","\"F5F5F5\"",null,null,null,"Canopy","SpellSlots","\"4a321e\"","\"F5F5F5\"","\"1e3001\"","\"F5F5F5\"","\"182600\"","\"F5F5F5\"",null,"rh-459","14 - 1d20+2 (DEX Saving Throw) - 08:48:04 PM Jan 18 23"," "]
["Wis",15,2," ","Global*",1,null," ","Durable Summons*",null,"30 temp hp to summoned creatures.",null,null,null,null," ","Misty Step","Spell",null," ",null,"Radiant",null,"Smoothie","Header 2","\"002060\"","\"F5F5F5\"","\"F5F5F5\"",null,null,null,"Canopy","General","\"4a321e\"","\"F5F5F5\"","\"304c02\"","\"F5F5F5\"","\"1e3001\"","\"F5F5F5\"",null,"rh-458","14 - 1d20+3 (CON Saving Throw) - 08:39:58 PM Jan 18 23"," "]
["Cha",12,1," ","Wis*","Adv",null," ","Spell Mastery*",null,"1 1st & 1 2nd lvl spells at will, can change",null,null,null,null," ","Flying Carpet","Mount",null," ","Personalization","Sapphic",null,"Smoothie","Header Blank","\"002060\"","\"002060\"",null,null,null,null,"Ember","SpellSlots","\"5d2105\"","\"F5F5F5\"","\"a62100\"","\"F5F5F5\"","\"d82f04\"","\"F5F5F5\"",null,"sh-135","Private Sanctum^4^10:32:04 PM Dec 14 22"," "]
[null,null,null," ","Skill","Bonus","_"," ","Combat",null,null,null,null,null,null," ","Free Action","Description","_"," ",null,"Canopy",null,"Smoothie","Normal","\"5C005C\"","\"F5F5F5\"",null,null,null,null,"Ember","General","\"5d2105\"","\"F5F5F5\"","\"a62100\"","\"F5F5F5\"","\"d82f04\"","\"F5F5F5\"",null,"sh-134","Magic Missile^1^10:19:48 PM Dec 14 22"," "]
[null,null,null," ","Arcana",{"$f":"Prof[Prof]","v":6},null," ","Attack","Type","To Hit","Damage","Damage Type","Notes","_"," ","Chng Dmg Type","Iris","1 charge"," ",null,"Ember",null,"Smoothie","Button","\"401B5B\"","\"F5F5F5\"","\"5B9BD5\"",null,null,null,"Classic","SpellSlots","\"000000\"","\"F5F5F5\"","\"305496\"","\"F5F5F5\"","\"4472c4\"","\"F5F5F5\"",null,"sh-133","Magic Missile^1^10:18:46 PM Dec 14 22"," "]
["HP","AC*","Speed"," ","History",{"$f":"Prof[Prof]","v":6},null," ","Quarterstaff","Melee 5",{"$f":"Prof[Prof]+C10-1","v":4},{"$f":"\"1d6 +\"&C10-1","v":"1d6 +-2"},"Buldgeon",null,null," ","Max 6th spell","ACT Iris","3 charge"," ",null,"Classic",null,"Void","Column","\"000000\"","\"F5F5F5\"",null,18,"\"808080\"",null,"Classic","General","\"4571c4\"","\"F5F5F5\"","\"b4c6e7\"","\"000000\"","\"d9e1f2\"","\"000000\"",null,"sh-132","Minor Conjuration^0^09:13:14 PM Dec 14 22"," "]
[{"$f":"146","v":146},{"$f":"10+C11+1","v":12},30," ","Investigation",{"$f":"Prof[Prof]","v":6},null," ","Spell Attack","Spell Save DC","Ability",null,null,null,null," ","Upcast 1","ACT Iris","1 charge"," ",null,"Sapphic-Dark",null,"Void","FirstRow","\"404040\"","\"F5F5F5\"",null,null,null,null,"Sapphic-Dark","SpellSlots","\"861750\"","\"F5F5F5\"","\"8C386A\"","\"F5F5F5\"","\"B24782\"","\"F5F5F5\"",null,"sh-131","Major Image^3^09:12:47 PM Dec 14 22"," "]
[null,{"$f":"13+C11+1&\" MA\"","v":"15 MA"},null," ","Religion",{"$f":"Prof[Prof]","v":6},null," ",{"$f":"Prof[Prof]+C13+3","v":16},{"$f":"8+Prof[Prof]+C13","v":21},"Int",null,null,null,null," ","Resist/Imun dbuff","ACT Iris","1 charge"," ",null,"Sunset",null,"Void","Header","\"000000\"","\"F5F5F5\"","\"F5F5F5\"",null,null,null,"Sapphic-Dark","General","\"AA151B\"","\"F5F5F5\"","\"AE4F18\"","\"F5F5F5\"","\"A26033\"","\"F5F5F5\"",null,"sh-130","Private Sanctum^4^10:14:45 PM Dec 7 22"," "]
["HP Max*","Prof","Insprtn"," ","Dmg Resist*","Immun","Vuln"," ",{"$f":"Prof[Prof]+C15+1","v":8},{"$f":"8+Prof[Prof]+C15","v":15},"Cha",null,null,null,null," ","Slots",null,null," ",null,"Vera",null,"Void","Header 2","\"000000\"","\"F5F5F5\"","\"F5F5F5\"",null,null,null,"Sunset","SpellSlots","\"D60270\"","\"F5F5F5\"","\"8E014A\"","\"F5F5F5\"","\"6A3667\"","\"F5F5F5\"",null,"sh-129","Dimension Door^4^09:14:47 PM Dec 7 22"," "]
[{"$f":"(6+(4*(Vera!$B$37-1))+(C12*Vera!$B$37)+(2*Vera!$B$37))","v":146},6,"No"," ","Fire",null,null," ","Equipment",null,null,null,null,null,null," ","Level/Type","Slots","Max Slots"," ","Developer","Ace",null,"Void","Header Blank","\"000000\"","\"000000\"",null,null,null,null,"Sunset","General","\"D60270\"","\"F5F5F5\"","\"9B4F96\"","\"F5F5F5\"","\"0038A8\"","\"F5F5F5\"",null,"equip-wagon dragon splinter","^^"," "]
[null,null,null," ","Cold",null,null," ","Platinum","Gold","Electrum","Silver","Copper",null,null," ","Arcane Recovery",0,"1/Long rest"," ",null,null,null,"Void","Normal","\"000000\"","\"F5F5F5\"",null,null,null,null,"Vera","SpellSlots","\"FFFFFF\"","\"000000\"","\"55CDFC\"","\"000000\"","\"F7A8B8\"","\"000000\"",null,"feat-ioun's brilliance","^Once per day, as an action, you may manifest an aura of magical energy in a 15ft radius around you for 1 minute.\r\n\r\nYou must maintain concentration to sustain this effect, as you would for a spell.\r\n\r\nWhen an ally starts their turn within the aura or enters it for the first time on their turn, they regain a spell slot of 1d4+1 level.\r\n\r\nAn ally who is normally incapable of casting spells (or who has no slots of the rolled level) may instead add this value to any damage rolls they make on this turn.^Iris of Ioun"," "]
["Hit","Dice",null," ","Tracked Statuses",null,null," ",{"$f":"16666-6000-300-600","v":9766},{"$f":"2400-275-10-300-40+2500-1800+65-400-200-100-50-1-400-3-1250","v":136},null,null,null,null,null," ","Darkness",1,"1/day"," ",null,null,null,"Void","Button","\"262626\"","\"F5F5F5\"","\"5B9BD5\"",null,null,null,"Vera","General","\"D60270\"","\"F5F5F5\"","\"9B4F96\"","\"F5F5F5\"","\"0038A8\"","\"F5F5F5\"",null,"exval-wis^saves","Meal"," "]
["Hit Die S#","Remain","Max"," ",null,null,null," ","Item",".","Quant/Equip?","Description","_","__","___"," ","Hellish Rebuke",1,"1/day"," ","Version 3.2",null,null,"Polar","Column","\"00838F\"","\"000000\"",null,10,"\"006064\"",null,"Ace","SpellSlots","\"810081\"","\"F5F5F5\"","\"bdbdbd\"","\"000000\"","\"FFFFFF\"","\"000000\"",null,"feat-spell mastery","^At 18th leveI, you have achieved such mastery over\r\ncertain spells that you can cast them at will. Choose a\r\n1st levei wizard spell and a 2nd level wizard spell that\r\nare in your spellbook. Vou can cast those spells at their\r\nlowest leveI without expending a spell slot when you\r\nhave them prepared. 1£you want to cast either spell at a\r\nhigher leveI, you must expend a spell slot as normal.\r\nBy spending 8 hours in study, you can exchange one\r\nor both of the spells you chose for different spells of\r\nthe same leveIs.^Wizard lv 18"," "]
[8,18,{"$f":"Vera!$B$37","v":18}," ","Condition/Effect","Level","Duration"," ","Cognative Mutagen*",null,0,"Int +2 for 8h, then 1 level of exhaustion.",null,null,null," ","Charges",null,null," ",null,null,null,"Polar","FirstRow","\"4DD0E1\"","\"000000\"",null,null,null,null,"Ace","General","\"810081\"","\"F5F5F5\"","\"bdbdbd\"","\"000000\"","\"FFFFFF\"","\"000000\"",null,"exval-poison^damagemods","Feast"," "]
[null,null,null," ","Spell Mastery","Shield","Invisibility"," ","Potion of Storm Giant Strength",null,1,"Strength is 29 for 1h",null,null,null," ","Item","Charges","Max Charges"," ",null,null,null,"Polar","Header","\"00838F\"","\"F5F5F5\"","\"F5F5F5\"",null,null,null,"Objects & Misc Colors",null,null,null,null,null,null,null,null,"exval-hp max^hpmax","13 from meal"," "]
["Death Saves",null,"Res DC"," ","Contingency","Dimension Door",null," ","Greater Healing Potion",null,1,"4d4+4",null,null,null," ","Iris of Ioun",3,15," ",null,null,null,"Polar","Header 2","\"00838F\"","\"F5F5F5\"","\"F5F5F5\"",null,null,null,"Theme","Spell Name","TextBox","TextBox Font","Row Highlight",null,null,null,null,"exval-frightened^damagemods","Meal"," "]
["Pass",0,11," ","Death Ward",null,null," ","Eye Cream*",null,2,"True Seeing",null,null,null," ","Staff of Frost",10,10," ",null,null,null,"Polar","Header Blank","\"00838F\"","\"00838F\"",null,null,null,null,"Smoothie","\"00F66F\"","\"6E497B\"","\"F5F5F5\"","\"00B0F0\"",null,null,null,null,"exval-poisoned^damagemods","Meal"," "]
["Fail",0,null," ","Mage Armor",null,"8h"," ","Superior Healing Potion",null,0,"8d4+8",null,null,null," ",null,null,null," ",null,null,null,"Polar","Normal","\"00ACC1\"","\"000000\"",null,null,null,null,"Void","\"00F66F\"","\"404040\"","\"F5F5F5\"","\"00B0F0\"",null,null,null,null,"equip-keystone","^^"," "]
[null,null,null," ","True Seeing",null,"1h"," ","Healing Potion",null,3,"2d4+2",null,null,null," ","Quick Notes",null,null," ",null,null,null,"Polar","Button","\"00BCD4\"","\"000000\"","\"01579B\"",null,null,null,"Polar","\"1A237E\"","\"4DD0E1\"","\"000000\"","\"1A237E\"",null,null,null,null,"equip-soul ring","^Temporary storage of soul in the event of my death. Prevents getting drawn into a void essence crystal.\r\n\r\nServes as a planar anchor to pull us back from the Shaddowfel.^Percy"," "]
["Type","Size","Align"," ","Attunmnt","_","__"," ","Grenade*",null,4,"Thrown, fire + Force",null,null,null," ",null,null,null," ",null,null,null,"Radiant","Column","\"F57F17\"","\"000000\"",null,10,"\"F9A825\"",null,"Radiant","\"872101\"","\"ffeaab\"","\"000000\"","\"872101\"",null,null,null,null,"equip-phoduck amulet","^^"," "]
["Tiefling","Medium","CG"," ","Iris of Ioun",null,null," ","Satyr Berries*",null,15,"Causes sleep",null,null,null," ",null,null,null," ",null,null,null,"Radiant","FirstRow","\"FFB028\"","\"000000\"",null,null,null,null,"Sapphic","\"F5F5F4\"","\"e05aa4\"","\"000000\"","\"b21e6a\"",null,null,null,null,"equip-raven - kathryn","^^Bluecrest"," "]
["Bkgnd","Player","XP"," ","Staff of Frost",null,null," ","Slaad Vials*",null,"15 vials",null,null,null,null," ",null,null,null," ",null,null,null,"Radiant","Header","\"FFCA28\"","\"000000\"","\"F5F5F5\"",null,null,null,"Canopy","\"d6e926\"","\"1e3001\"","\"F5F5F5\"","\"b9c21d\"",null,null,null,null,"equip-slaad vials","^^Zahar's bedroom in new Necroval"," "]
["Sage","Vera",null,null,"Cloak of Protection",null,null," ","Diamonds",null,"350gp","Chromatic Orb",null,null,null," ",null,null,null,null,null,null,null,"Radiant","Header 2","\"FFCA28\"","\"000000\"","\"F5F5F5\"",null,null,null,"Ember","\"ffd93c\"","\"831d07\"","\"F5F5F5\"","\"ffd93c\"",null,null,null,null,"exval-dmg resist^damagemods","Cold - staff of frost"]
["Class","Level","Subclass",null,null,null,null," ","Simple Clothes*",null,"Equipped","Robes - Too large",null,null,null," ",null,null,null,null,null,null,null,"Radiant","Header Blank","\"FFCA28\"","\"FFCA28\"",null,null,null,null,"Classic","\"000000\"","\"d9e1f2\"","\"000000\"","\"9751CB\"",null,null,null,null,"equip-giant phonetic speech","^^"]
["Wizard",18,"Conjuration",null,"Quick Notes",null,null," ","Spellbook*",null,"Equipped","Neat leather-bound book",null,null,null," ",null,null,null,null,null,null,null,"Radiant","Normal","\"f57f2a\"","\"000000\"",null,null,null,null,"Sapphic-Dark","\"F5F5F4\"","\"B24782\"","\"F5F5F5\"","\"861750\"",null,null,null,null,"equip-planar anchor ring","^Carved void essence gemstone - purple. Dark metal ring\r\n\r\nM used this to pull us^Long time ago"]
[null,null,null,null,null,null,null," ","Iris of Ioun*",null,"Equipped","See Feat",null,null,null," ",null,null,null,null,null,null,null,"Radiant","Button","\"FFE082\"","\"000000\"","\"01579B\"",null,null,null,"Sunset","\"00F66F\"","\"6A3667\"","\"F5F5F5\"","\"FFFFFF\"",null,null,null,null,"equip-eye cream","^^Percy"]
[null,null,null,null,null,null,null," ","Shoosuva Tooth Necklace*",null,"Equipped",null,null,null,null," ",null,null,null,null,null,null,null,"Sapphic","Column","\"c34e94\"","\"000000\"",null,1,"\"e05aa4\"",null,"Vera","\"00F66F\"","\"FFFFFF\"","\"000000\"","\"FFFFFF\"",null,null,null,null,"equip-potion of water breathing","^^Tiberius"]
[null,null,null,null,null,null,null," ","Scholar's Pack*",null,"Equipped","Backpack",null,null,null," ",null,null,null,null,null,null,null,"Sapphic","FirstRow","\"f46f22\"","\"000000\"",null,null,null,null,"Ace","\"810081\"","\"FFFFFF\"","\"000000\"","\"810081\"",null,null,null,null,"equip-salazar scale","^^"]
[null,null,null,null,null,null,null," ","Quarterstaff*",null,"Equipped","Corroded + uses str",null,null,null," ",null,null,null,null,null,null,null,"Sapphic","Header","\"e61d25\"","\"F5F5F5\"","\"F5F5F5\"",null,null,null,null,null,null,null,null,null,null,null,null,"equip-potion of cold","^^Percy"]
[null,null,null,null,null,null,null," ","Cloak of Protection",null,"Equipped","Add 1 to AC and all saves on attunment",null,null,null," ",null,null,null,null,null,null,null,"Sapphic","Header 2","\"e61d25\"","\"F5F5F5\"","\"F5F5F5\"",null,null,null,"Size configuration",null,null,null,null,null,null,null,null,"monsterswkbk","Stat Blocks 1.0"]
[null,null,null,null,null,null,null,null,"Immovable Rod*",null,"Equipped","Action to affix in space.",null,null,null," ",null,null,null,null,null,null,null,"Sapphic","Header Blank","\"e61d25\"","\"e61d25\"",null,null,null,null,"Name","Pane1","Pane2","Pane3","Pane4","Pane5","Background","Spells",null,"equip-vecna's diary","^^Sphinx"]
[null,null,null,null,null,null,null,null,"Planar Anchor Ring*",null,null,"Grabs my soul if it were to be pulled out of my body",null,null,null," ","Ctrl+Shift+V will switch to this sheet",null,null,null,null,null,null,"Sapphic","Normal","\"b21e6a\"","\"F5F5F5\"",null,null,null,null,"Default","8,8,8","17,8.57,8.57","15,15,15,15,15,10,10","15,13,13",22.57,0,0,null,"equip-gem of true-seeing","^3 charges. As an action you may speak a command word. For the next 10 minutes your have true sight out to 120 feet.\r\n\r\nAttunment^Serin"]
[null,null,null,null,null,null,null,null,"Soul Ring*",null,"Equipped",null,null,null,null," ",null,null,null,null,null,null,null,"Sapphic","Button","\"F5F5F4\"","\"000000\"","\"01579B\"",null,null,null,"Erebus","7.13,7.13,7.13","14.13,5.67,5.67","13.13,13.13,13.13,13.13,13.13,8.13,8.13","12.13,10.13,10.13",16.670000000000002,1,1,null,"exval-spell attack^sc","+3 for Iris of Ioun"]
[null,null,null,null,null,null,null,null,"Raven - Kathryn*",null,"Familiar","Kathy - pokeballed",null,null,null," ",null,null,null,null,null,null,null,"Canopy","Column","\"4a321e\"","\"000000\"",null,16,"\"69472a\"",null,"Terror Wide","9,9,9","20,11.57,11.57","16.57,16.57,16.57,16.57,16.57,11.57,11.57","18,16,16",22.57,0,0,null,"exval-ac^ac_speed","+1 for Cloak of Protection"]
[null,null,null,null,null,null,null,null,"Thuun's Book*",null,null,"Black speech, Vecna's handwriting, \"instructive\"",null,null,null," ",null,null,null,null,null,null,null,"Canopy","FirstRow","\"304c02\"","\"F5F5F5\"",null,null,null,null,"Erebus-2","8.14,8.14,8.14","15.14,6.71,6.71","14,14,14,14,14,9,9","12.14,10.14,10.14",16.71,1,1,null,"exval-global^saves","Cloak of Protection +1"]
[null,null,null,null,null,null,null,null,"Gem of true-seeing*",null,null,"3 charges of 10m 120ft true sight",null,null,null," ",null,null,null,null,null,null,null,"Canopy","Header","\"4a321e\"","\"F5F5F5\"","\"F5F5F5\"",null,null,null,null,null,null,null,null,null,null,null,null,"sh-index",138]
[null,null,null,null,null,null,null,null,"Nice Dagger*",null,null,"+ Psychic Damage!",null,null,null," ",null,null,null,null,null,null,null,"Canopy","Header 2","\"4a321e\"","\"F5F5F5\"","\"F5F5F5\"",null,null,null,null,null,null,null,null,null,null,null,null,"exval-quarterstaff^attacks","Two handed - Use a d8"]
[null,null,null,null,null,null,null,null,"Staff of Frost*",null,null,"See Feature",null,null,null," ",null,null,null,null,null,null,null,"Canopy","Header Blank","\"4a321e\"","\"4a321e\"",null,null,null,null,null,null,null,null,null,null,null,null,null,"notes-information","Kobolds|Dark Cave\r\n  The \"Capitol of Ksaissus\"\r\n\r\nNames\r\n  Grizzle - \"Lord Sir King\" - Got his fortune from the ruins of Eidos\r\n  Zags - Master High Tinkerer\r\n  'PC Template'g - Supreme Arch Magus\r\n  Hell - 'PC Template'g's guard\r\n\r\n  Hadge - Nice one, got juice.^Bluecrest|Names\r\n  Cyrus - Archmage\r\n  Zerus - King\r\n  Lady Aurelia - Bard's College leader\r\n  Ember - Fire Gnossi\r\n  Martin - Highbear of the Church of Bahamut\r\n\r\nPrestidigitation + inn = Prestidigitatinn\r\n  Owned by James and Mark\r\n  James is the more vocal\r\n^Void Demons|Evoker - Ke'lith\r\nLegion - Cass\r\nBlade-Dancer - Thuun\r\nCorruptor - Zoth\r\nSilencer - Throck\r\nUnseen - Vex\r\nAscendant - Zahar\r\n  Has a new pet - \"beams\"\r\n^Relics|Tear of Sylvanus - Varn\r\nMyth Carver - Zara\r\nGod Cleaver - Kazna\r\nFiend's Laughter - Rapier\r\nKeystone - Vecna\r\nBulwark of the Undying - Cal\r\nIris of Ioun - Asarak^First Brood|Dragons\r\n  Scorchide - 1st Born\r\n  Maraza - 3rd Born\r\n  Rimefang - \"The Blizzard\", \"The Third\"\r\n  Umbercil - killed by Ke'lith\r\n\r\nHobgoblins\r\n  Sar-Fang - War Chief\r\n  Markath - King\r\n    Garoth - King's Dragon (Black)\r\n\r\nOther\r\n  Orianna Valyra\r\n\r\nWeapons\r\n  Fang - Electo\r\n  Breath - Varris\r\n  Claw - Silvianna^Feywild|Yesra - Princess, heir\r\n\r\nSolstice - city\r\n  Square in the center\r\n  Equinox Keep\r\n\r\nFeylords\r\n  Lord of the Hunt - Husband - Aldrin\r\n  Queen of Witches - Wife - Lycanthropes\r\n\r\n  Queen of Night and Magic - Nima\r\n\r\n  The River King^World State|Kuraz is lost.\r\nQueen Alice Rezan - from Ozmit - returned from the north\r\nLady Ildan.\r\n\r\nErebus is attacked by Rhime-fang (white)\r\nTemple of Bahamut in Ebon hold. Reinforced by paladins from Bluecrest.\r\nElarin.\r\n\r\nBluecrest & mobius - relatively safe.\r\n\r\nKaissus - always a wasteland (Kobold Kingdom - not currently active)\r\n\u000bSylvus forest - under Rai-Shan's (green) rule as Vilus is conquered.\r\n\r\nAngmar - stalemate w/ army of the avatar and Veklus\r\n\r\nFey wild forces are being harried by Kobolds^Demon Names|Armanite - K'Vatch\r\nYocho'l - Navaru\r\nHezrou - Gorok^Valestra|Kuraz\r\n  Desert, where haven is\r\n\r\nErebus\r\n\r\nSylvas\r\n\r\nCaiusyss\r\n\r\nRaiza\r\n\r\nMobius\r\n^Ebon Hold|Salazar - King - ~1900 yo\r\nElarin - High Pally\r\nRekzar - King's son\r\nSarfang - Warlord of the bastion - actually a derg\r\nMorin - Daughter - RIP^Abilities|Str 8\r\nDex 12\r\nCon 14\r\nInt 22\r\nWis 15\r\nCha 12"]
[null,null,null,null,null,null,null,null,"Helm of Transportation*",null,null,"With lightsong",null,null,null," ",null,null,null,null,null,null,null,"Canopy","Normal","\"111c00\"","\"F5F5F5\"",null,null,null,null,null,null,null,null,null,null,null,null,null,"exval-fire^damagemods","Tiefling"]
[null,null,null,null,null,null,null,null,"Flying Carpet*",null,null,"(With percy) 4x6, 60ft speed, 400lbs carrying capacity",null,null,null," ",null,null,null,null,null,null,null,"Canopy","Button","\"b9c21d\"","\"000000\"","\"01579B\"",null,null,null,null,null,null,null,null,null,null,null,null,"exval-cold^damagemods","Staff of Frost"]
[null,null,null,null,null,null,null,null,"Cloak of the Bat",null,null,"See Feat",null,null,null," ",null,null,null,null,null,null,null,"Ember","Column","\"831d07\"","\"F5F5F5\"",null,1,"\"000000\""]
[null,null,null,null,null,null,null,null,"Crystal Ball of True-Seeing*",null,null,"True Seeing",null,null,null," ",null,null,null,null,null,null,null,"Ember","FirstRow","\"a62100\"","\"F5F5F5\"",null,null,null,null,null,null,null,null,null,null,null,null,null,"exval-arcana^skills"]
[null,null,null,null,null,null,null,null,"Planar Anchor*",null,null,"Contains Elron's soul",null,null,null," ",null,null,null,null,null,null,null,"Ember","Header","\"5d2105\"","\"F5F5F5\"","\"F5F5F5\"",null,null,null,null,null,null,null,null,null,null,null,null,"equip-helm of transportation","^^Lightsong"]
[null,null,null,null,null,null,null,null,"Wand of the Warmage*",null,null,"Spell Attack +1. Spells ignore half cover.",null,null,null," ",null,null,null,null,null,null,null,"Ember","Header 2","\"5d2105\"","\"F5F5F5\"","\"F5F5F5\"",null,null,null,null,null,null,null,null,null,null,null,null,"equip-immovable rod","^1 foot iron.\r\n\r\nDC 30 Strength check to move it 10 feet^Thuun's Palace in Eidos"]
[null,null,null,null,null,null,null,null,"Spell Ring - Lv 4",null,null,null,null,null,null," ",null,null,null,null,null,null,null,"Ember","Header Blank","\"5d2105\"","\"5d2105\"",null,null,null,null,null,null,null,null,null,null,null,null,null,"equip-thuun's book","^Black leather cover - no description.\r\n\r\nDifficult to read but distnictive. Harsh characters, slash-shaped marks. Black-Speech.\r\n\r\n~400 pages.\r\n\r\nNotable things:\r\n- Handwriting style seems familiar to what I've read before (Vecna)\r\n- Symbology for King Vecna\r\n- Towards the end stands out - appears to be in poem structure - six distinct stanzas, a refrain between each.\r\n- Word for Angmar, Velkus, each of the Archons, each of the Former Heroes\r\n\r\nSplit into two sections.\r\nFirst - Exposatory. Written by Vecna probably.\r\nLatter - Imperative, instructions. Written by either a different hand, or someone else entirely.\r\n\r\nI only have the last couple pages now.^Thuun"]
[null,null,null,null,null,null,null,null,"Tome on Abyssal",null,null,null,null,null,null," ",null,null,null,null,null,null,null,"Ember","Normal","\"3C0E01\"","\"F5F5F5\"",null,null,null,null,null,null,null,null,null,null,null,null,null,"equip-quarterstaff","^A plain wooden staff.\r\nMelee 5\r\nPROF + StrMod - 1 to hit\r\n1d6 + PROF + STR -1 bludgeoning damage\r\nCorroded to -1^Starting equipment"]
[null,null,null,null,null,null,null,null,"Yugoloth Sigil Notes*",null,null,null,null,null,null," ",null,null,null,null,null,null,null,"Ember","Button","\"831d07\"","\"ffd93c\"","\"ffd93c\"",null,null,null,null,null,null,null,null,null,null,null,null,"equip-grenade","^Thrown 30/60\r\nDEXMOD Attack Mod\r\n15ft radius - DEX ST\r\n2d8 fire + 2d8 force on fail\r\nHalf on success^Sigil, I think"]
[null,null,null,null,null,null,null,null,"Cloak of Disguise Self*",null,null,"Disguise Self",null,null,null," ",null,null,null,null,null,null,null,"Classic","Column","\"8ea9db\"","\"F5F5F5\"",null,1,"\"000000\"",null,null,null,null,null,null,null,null,null,null,"equip-illia's things","^Casting focus, empty void crystal, small diagram with a note in common\r\nDraws out a section of the underwrold - instructions to kill all who come through\r\n\r\nHer robes, a little tight.^Illia"]
[null,null,null,null,null,null,null,null,"Scroll of Fireball",null,null,"Fireball",null,null,null," ",null,null,null,null,null,null,null,"Classic","FirstRow","\"b4c6e7\"","\"000000\"",null,null,null,null,null,null,null,null,null,null,null,null,null,"spells-condense",0]
[null,null,null,null,null,null,null,null,"Ink Well with Slad Worm*",null,null,null,null,null,null," ",null,null,null,null,null,null,null,"Classic","Header","\"4571c4\"","\"F5F5F5\"","\"F5F5F5\"",null,null,null,null,null,null,null,null,null,null,null,null,"background-condense",0]
[null,null,null,null,null,null,null,null,"Likeness of Myself*",null,null,"Contingency",null,null,null," ",null,null,null,null,null,null,null,"Classic","Header 2","\"4571c4\"","\"F5F5F5\"","\"F5F5F5\"",null,null,null,null,null,null,null,null,null,null,null,null,"equip-din's stuff","^Rod\r\nRing\r\n2000 g\r\nDagger \"from father - I'm sorry to have done this to you\"\r\n\r\nNot sure if I actually have this^Din"]
[null,null,null,null,null,null,null,null,"Moraza Parts*",null,null,"Fangs and scales",null,null,null," ",null,null,null,null,null,null,null,"Classic","Header Blank","\"4571c4\"","\"4571c4\"",null,null,null,null,null,null,null,null,null,null,null,null,null,"equip-satyr berries","^^Bush I ate from"]
[null,null,null,null,null,null,null,null,"Sketch of Solstice*",null,null,"Crude sketch of the city in the Feywild.",null,null,null," ",null,null,null,null,null,null,null,"Classic","Normal","\"808080\"","\"F5F5F5\"",null,null,null,null,null,null,null,null,null,null,null,null,null,"equip-map of feywild wetlands","^^"]
[null,null,null,null,null,null,null,null,"Map of Feywild Wetlands",null,null,null,null,null,null," ",null,null,null,null,null,null,null,"Classic","Button","\"203864\"","\"F5F5F5\"","\"F5F5F5\"",null,null,null,null,null,null,null,null,null,null,null,null,"equip-sketch of solstice","^Rolled a 16.\r\nResembles seasons on a wheel.\r\nLower Left - Spring\r\nUpper Left - Summer\r\nUpper Right - Fall\r\nLower RIght - Winter^Me"]
[null,null,null,null,null,null,null,null,"Din's Stuff*",null,null,"Gold, dagger, rod, ring",null,null,null," ",null,null,null,null,null,null,null,"Sapphic-Dark","Column","\"8C386A\"","\"F5F5F5\"",null,1,"\"B24782\"",null,null,null,null,null,null,null,null,null,null,"equip-moraza parts","^Fangs - 2\r\nScales - 1^Moraza"]
[null,null,null,null,null,null,null,null,"Illia's things*",null,null,"Basic caster shit, her purple robes",null,null,null," ",null,null,null,null,null,null,null,"Sapphic-Dark","FirstRow","\"AE4F18\"","\"F5F5F5\"",null,null,null,null,null,null,null,null,null,null,null,null,null,"equip-crystal ball of true-seeing","^Requires attunment, allows scrying which grants true sight.^Moraza's Lair"]
[null,null,null,null,null,null,null,null,"Vecna's Diary*",null,null,"Written by Vecna, completed by Arden",null,null,null," ",null,null,null,null,null,null,null,"Sapphic-Dark","Header","\"AA151B\"","\"F5F5F5\"","\"F5F5F5\"",null,null,null,null,null,null,null,null,null,null,null,null,"equip-likeness of myself","^Spell component. Gem covered icon worth 1500 gp.^"]
[null,null,null,null,null,null,null,null,"Potion of Cold*",null,null,null,null,null,null," ",null,null,null,null,null,null,null,"Sapphic-Dark","Header 2","\"AA151B\"","\"F5F5F5\"","\"F5F5F5\"",null,null,null,null,null,null,null,null,null,null,null,null,"equip-scholar's pack","^Backpack\r\nBottle of Ink\r\nInk Pen\r\n10 Sheets of Parchment\r\nSmall Knife\r\nRiddle letter - \"How can mirrors be real if our eyes aren't real?\r\nEidos blanket & hangers\r\nMirror^Backstory or class"]
[null,null,null,null,null,null,null,null,"Salazar Scale",null,null,null,null,null,null," ",null,null,null,null,null,null,null,"Sapphic-Dark","Header Blank","\"AA151B\"","\"AA151B\"",null,null,null,null,null,null,null,null,null,null,null,null,null,"equip-yugoloth sigil notes","^?^"]
[null,null,null,null,null,null,null,null,"Potion of Water Breathing*",null,null,"8 hours of water breathing",null,null,null," ",null,null,null,null,null,null,null,"Sapphic-Dark","Normal","\"861750\"","\"F5F5F5\"",null,null,null,null,null,null,null,null,null,null,null,null,null,"equip-ink well with slad worm","^Have to feed daily^"]
[null,null,null,null,null,null,null,null,"Giant Phonetic Speech",null,null,"From Kuraz",null,null,null," ",null,null,null,null,null,null,null,"Sapphic-Dark","Button","\"6A6A6A\"","\"F5F5F4\"","\"01579B\"",null,null,null,null,null,null,null,null,null,null,null,null,"equip-tome on abyssal","^^"]
[null,null,null,null,null,null,null,null,"Phoduck Amulet",null,null,null,null,null,null," ",null,null,null,null,null,null,null,"Sunset","Column","\"8E014A\"","\"F5F5F5\"",null,1,"\"808080\"",null,null,null,null,null,null,null,null,null,null,"equip-cloak of the bat","^^"]
[null,null,null,null,null,null,null,null,"Keystone",null,null,"See doc",null,null,null," ",null,null,null,null,null,null,null,"Sunset","FirstRow","\"9B4F96\"","\"F5F5F5\"",null,null,null,null,null,null,null,null,null,null,null,null,null,"equip-scroll of fireball","^^"]
[null,null,null,null,null,null,null,null,"Wagon Dragon Splinter",null,null,null,null,null,null," ",null,null,null,null,null,null,null,"Sunset","Header","\"D60270\"","\"F5F5F5\"","\"F5F5F5\"",null,null,null,null,null,null,null,null,null,null,null,null,"equip-spell ring - lv 4","^^Serin"]
[null,null,null,null,null,null,null,null,null,null,null," ",null,null,null," ",null,null,null,null,null,null,null,"Sunset","Header 2","\"D60270\"","\"F5F5F5\"","\"F5F5F5\"",null,null,null,null,null,null,null,null,null,null,null,null,"equip-cloak of disguise self","^At will\r\n\r\nRequires attunment^"]
[null,null,null,null,null,null,null,null,null,null,null,null,null,null,null," ",null,null,null,null,null,null,null,"Sunset","Header Blank","\"D60270\"","\"D60270\"",null,null,null,null,null,null,null,null,null,null,null,null,null,"equip-wand of the warmage","^^Base equip"]
[null,null,null,null,null,null,null,null,null,null,null,null,null,null,null," ",null,null,null,null,null,null,null,"Sunset","Normal","\"002162\"","\"F5F5F5\"",null,null,null,null,null,null,null,null,null,null,null,null,null,"equip-shoosuva tooth necklace","^^Shoosuva, lol"]
[null,null,null,null,null,null,null,null,null,null,null,null,null,null,null," ",null,null,null,null,null,null,null,"Sunset","Button","\"6A3667\"","\"F5F5F5\"","\"5B9BD5\"",null,null,null,null,null,null,null,null,null,null,null,null,"equip-cloak of protection","^^"]
[null,null,null,null,null,null,null,null,null,null,null,null,null,null,null," ",null,null,null,null,null,null,null,"Vera","Column","\"F7A8B8\"","\"F5F5F5\"",null,1,"\"808080\"",null,null,null,null,null,null,null,null,null,null,"equip-iris of ioun","^I saw M use this to give spell slots at some point.^Artifact"]
[null,null,null,null,null,null,null,null,null,null,null,null,null,null,null," ",null,null,null,null,null,null,null,"Vera","FirstRow","\"9B4F96\"","\"F5F5F5\"",null,null,null,null,null,null,null,null,null,null,null,null,null,"equip-planar anchor","^Dagger^Vex"]
[null,null,null,null,null,null,null,null,null,null,null,null,null,null,null," ",null,null,null,null,null,null,null,"Vera","Header","\"D60270\"","\"F5F5F5\"","\"F5F5F5\"",null,null,null,null,null,null,null,null,null,null,null,null,"equip-staff of frost","^Requires attunment^Moraza?"]
[null,null,null,null,null,null,null,null,null,null,null,null,null,null,null," ",null,null,null,null,null,null,null,"Vera","Header 2","\"D60270\"","\"F5F5F5\"","\"F5F5F5\"",null,null,null,null,null,null,null,null,null,null,null,null,"equip-spellbook","^Lots of doodles^I made it"]
[null,null,null,null,null,null,null,null,null,null,null,null,null,null,null," ",null,null,null,null,null,null,null,"Vera","Header Blank","\"D60270\"","\"D60270\"",null,null,null,null,null,null,null,null,null,null,null,null,null,"equip-nice dagger","^Melee 5\r\nPROF+DexMod To Hit\r\n1d4+1 Piercing\r\n1 Psychic dmg if I have more money than them^"]
[null,null,null,null,null,null,null,null,null,null,null,null,null,null,null," ",null,null,null,null,null,null,null,"Vera","Normal","\"55CDFC\"","\"000000\"",null,null,null,null,null,null,null,null,null,null,null,null,null,"equip-simple clothes","^^Perin"]
[null,null,null,null,null,null,null,null,null,null,null,null,null,null,null," ",null,null,null,null,null,null,null,"Vera","Button","\"FFFFFF\"","\"000000\"","\"5B9BD5\"",null,null,null,null,null,null,null,null,null,null,null,null,"equip-cognative mutagen","^Careful, you can become addicted.^Percy"]
[null,null,null,null,null,null,null,null,null,null,null,null,null,null,null," ",null,null,null,null,null,null,null,"Ace","Column","\"810081\"","\"000000\"",null,1,"\"808080\"",null,null,null,null,null,null,null,null,null,null,"equip-flying carpet","^1/2 speed if over capacity\r\n\r\nDamaged - Defunct^Moraza's lair"]
[null,null,null,null,null,null,null,null,null,null,null,null,null,null,null," ",null,null,null,null,null,null,null,"Ace","FirstRow","\"bdbdbd\"","\"000000",null,null,null,null,null,null,null,null,null,null,null,null,null,"equip-potion of storm giant strength","^^"]
[null,null,null,null,null,null,null,null,null,null,null,null,null,null,null," ",null,null,null,null,null,null,null,"Ace","Header","\"810081\"","\"F5F5F5\"","\"F5F5F5\"",null,null,null,null,null,null,null,null,null,null,null,null,"equip-superior healing potion","^^"]
[null,null,null,null,null,null,null,null,null,null,null,null,null,null,null," ",null,null,null,null,null,null,null,"Ace","Header 2","\"810081\"","\"F5F5F5\"","\"F5F5F5\"",null,null,null,null,null,null,null,null,null,null,null,null,"equip-greater healing potion","^^"]
[null,null,null,null,null,null,null,null,null,null,null,null,null,null,null," ",null,null,null,null,null,null,null,"Ace","Header Blank","\"810081\"","\"810081\"",null,null,null,null,null,null,null,null,null,null,null,null,null,"equip-healing potion","^^"]
[null,null,null,null,null,null,null,null,null,null,null,null,null,null,null," ",null,null,null,null,null,null,null,"Ace","Normal","\"000000\"","\"FFFFFF\"",null,null,null,null,null,null,null,null,null,null,null,null,null,"equip-diamonds","^^"]
[null,null,null,null,null,null,null,null,null,null,null,null,null,null,null," ",null,null,null,null,null,null,null,"Ace","Button","\"FFFFFF\"","\"000000\"","\"810081\"",null,null,null,null,null,null,null,null,null,null,null,null,"whatsthis",1]
[null,null,null,null,null,null,null,null,null,null,null,null,null,null,null," ",null,null,null,null,null,null,null,null,null,null,null,null,null,null,null,null,null,null,null,null,null,null,null,null,"workbook name","Vera-Anonymized.xlsm"]
[null,null,null,null,null,null,null,null,null,null,null,null,null,null,null," ",null,null,null,null,null,null,null,null,null,null,null,null,null,null,null,null,null,null,null,null,null,null,null,null,"feat-durable summons","^Starting at 14th level, any creature that you summon or create with a conjuration spell has 30 temporary hit points.^School of Conjuration lv 14"]
[null,null,null,null,null,null,null,null,null,null,null,null,null,null,null," ",null,null,null,null,null,null,null,null,null,null,null,null,null,null,null,null,null,null,null,null,null,null,null,null,"feat-iris of ioun","^\r\nRequires Attunement\r\nRequires an Intelligence of >=18 to wield\r\n+2 Intelligence while attuned\r\nThe Iris acts as +3 Wand of the War Mage\r\nThe Iris has 5 charges, which it regains daily at dawn. You may expend a charge when you cast a spell to activate one of the following effects:\r\n-\tThe spell is cast at a level 1 slot higher than the slot you expended\r\n-\tThe spell ignores resistance to damage and treats immunity as resistance\r\n\r\nWhen you begin concentrating on a spell while already maintaining concentration, you may expend one charge per round to maintain concentration on both spells instead.\r\n\r\n-\r\nAdditional props from being in keystone:\r\nAdd'l +2 Int\r\n10 add'l charges\r\nCan cast without V or S components as a rule\r\n\r\nMay expend 3 charges to maximize damage rolled by a spell up to 6 level\r\nMay expend 1 charge to change the damage type of a spell\r\n\r\n??? - The gem yearns to be reunited with its companions and awaits the command of its leader\r\n^Item"]
[null,null,null,null,null,null,null,null,null,null,null,null,null,null,null," ",null,null,null,null,null,null,null,null,null,null,null,null,null,null,null,null,null,null,null,null,null,null,null,null,"feat-staff of frost","^10 slots\r\nRegain 1d6+4 slots every morning.\r\n\r\nExpending all charges -> roll a d20 -> 1 means staff is destroyed.\r\n\r\nResist Cold while attuned\r\n\r\n5 Charges - Cone of Cold\r\n1 Charges - Fog Cloud\r\n4 Charges - Ice Storm\r\n4 Charges - Wall of Ice^Item"]
[null,null,null,null,null,null,null,null,null,null,null,null,null,null,null," ",null,null,null,null,null,null,null,null,null,null,null,null,null,null,null,null,null,null,null,null,null,null,null,null,"feat-tough","^Whenever I gain a level, my HP max increases by 2^PHB Feat"]
[null,null,null,null,null,null,null,null,null,null,null,null,null,null,null," ",null,null,null,null,null,null,null,null,null,null,null,null,null,null,null,null,null,null,null,null,null,null,null,null,"feat-tiefling spells","^Darkness and Hellish Rebuke can be cast 1/day using CHA^Tiefling Race"]
[null,null,null,null,null,null,null,null,null,null,null,null,null,null,null," ",null,null,null,null,null,null,null,null,null,null,null,null,null,null,null,null,null,null,null,null,null,null,null,null,"feat-cloak of the bat","^Advantage on stealth checks, in dim or dark light can grip to fly at 40 ft.\r\n1/day in dark or dim light can polymorph into a bat.^Item"]
[null,null,null,null,null,null,null,null,null,null,null,null,null,null,null," ",null,null,null,null,null,null,null,null,null,null,null,null,null,null,null,null,null,null,null,null,null,null,null,null,"feat-replace spellbook","^^Wizard Description"]
[null,null,null,null,null,null,null,null,null,null,null,null,null,null,null," ",null,null,null,null,null,null,null,null,null,null,null,null,null,null,null,null,null,null,null,null,null,null,null,null,"feat-learn new spell","^2 Spells for free on level up. Can copy a found spell for 2h 50g/spell level^Wizard description"]
[null,null,null,null,null,null,null,null,null,null,null,null,null,null,null," ",null,null,null,null,null,null,null,null,null,null,null,null,null,null,null,null,null,null,null,null,null,null,null,null,"feat-prepare spells","^Choose level + int spells at the conclusion of long rest. Requires 1 min/spell.^Wizard description"]
[null,null,null,null,null,null,null,null,null,null,null,null,null,null,null," ",null,null,null,null,null,null,null,null,null,null,null,null,null,null,null,null,null,null,null,null,null,null,null,null,"feat-focused conjuration","^Beginning at 10th level, while you are concentrating on a conjuration spell, your concentration can't be broken as a result of taking damage.^School of Conjuration lv 10"]
[null,null,null,null,null,null,null,null,null,null,null,null,null,null,null," ",null,null,null,null,null,null,null,null,null,null,null,null,null,null,null,null,null,null,null,null,null,null,null,null,"feat-conjuration savant","^Beginning when you select this school at 2nd level, the gold and time you must spend to copy a Conjuration spell into your spellbook is halved.^School of Conjuration lv 2"]
[null,null,null,null,null,null,null,null,null,null,null,null,null,null,null," ",null,null,null,null,null,null,null,null,null,null,null,null,null,null,null,null,null,null,null,null,null,null,null,null,"feat-arcane recovery","^You have learned to regain some of your magical energy by studying your Spellbook. Once per day when you finish a Short Rest, you can choose expended Spell Slots to recover. The Spell Slots can have a combined level that is equal to or less than half your Wizard level (rounded up), and none of the slots can be 6th level or higher.\r\n\r\nFor example, if you’re a 4th-level Wizard, you can recover up to two levels worth of Spell Slots. You can recover either a 2nd-level spell slot or two 1st-level Spell Slots.^Wizard lv 1"]
[null,null,null,null,null,null,null,null,null,null,null,null,null,null,null," ",null,null,null,null,null,null,null,null,null,null,null,null,null,null,null,null,null,null,null,null,null,null,null,null,"level restricted",1]
[null,null,null,null,null,null,null,null,null,null,null,null,null,null,null," ",null,null,null,null,null,null,null,null,null,null,null,null,null,null,null,null,null,null,null,null,null,null,null,null,"combat mode",1]
[null,null,null,null,null,null,null,null,null,null,null,null,null,null,null," ",null,null,null,null,null,null,null,null,null,null,null,null,null,null,null,null,null,null,null,null,null,null,null,null,"notes shown",0]
[null,null,null,null,null,null,null,null,null,null,null,null,null,null,null," ",null,null,null,null,null,null,null,null,null,null,null,null,null,null,null,null,null,null,null,null,null,null,null,null,"concentration","Summon Greater Demon"]
[null,null,null,null,null,null,null,null,null,null,null,null,null,null,null," ",null,null,null,null,null,null,null,null,null,null,null,null,null,null,null,null,null,null,null,null,null,null,null,null,"last cast spell","True Seeing"]
[null,null,null,null,null,null,null,null,null,null,null,null,null,null,null," ",null,null,null,null,null,null,null,null,null,null,null,null,null,null,null,null,null,null,null,null,null,null,null,null,"theme","Smoothie"]
[null,null,null,null,null,null,null,null,null,null,null,null,null,null,null,null,null,null,null,null,null,null,null,null,null,null,null,null,null,null,null,null,null,null,null,null,null,null,null,null,"rh-index",467]

{"sheet":"Background","index":1,"n_rows":40,"n_cols":9,"rows_kept":40,"cut":false,"hidden":false,"merged":[]}
[null,"Backstory",null,null,null,"Appearance"]
[null,null,null,null,null,null,"Age","Gender"]
[null,null,null,null,null,null,{"$f":"26","v":26},"Female"]
[null,null,null,null,null,null,"Height","Weight"]
[null,null,null,null,null,null,"5'4\"","140lb"]
[null,null,null,null,null,null,"Eyes","Skin","Hair"]
[null,null,null,null,null,null,"Black","Red","Black"]
[]
[null,null,null,null,null,"Personality Traits"]
[]
[]
[]
[]
[]
[]
[]
[null,null,null,null,null,"Ideals"]
[]
[]
[]
[]
[]
[]
[]
[null,null,null,null,null,"Bonds"]
[]
[]
[]
[]
[]
[]
[]
[null,null,null,null,null,"Flaws"]
[]
[]
[]
[]
[]
[]
[null,"Ctrl+Shift+B will switch to this sheet"]

{"sheet":"Spells","index":2,"n_rows":891,"n_cols":15,"rows_kept":891,"cut":false,"hidden":false,"merged":[]}
["Level","Remaining","Total","Spell Attack","Spell Save DC","Level","Remaining","Total",null,null,null,null,{"$f":"Vera!A19&\" HP\"","v":"146 HP"}]
[1,3,4,16,21,6,0,1,null,null,null,null,{"$f":"Vera!B19&\" AC\"","v":"12 AC"}]
[2,3,3,"Total Prepared","Max Prepared",7,1,1,null,null,null,null,{"$f":"Vera!C19&\" Speed\"","v":"30 Speed"}]
[3,3,3,{"$f":"COUNTIF(A7:A1239,\"Yes\")","v":25},{"$f":"Vera!C13+Vera!$B$37","v":25},8,1,1,null,null,null,null,{"$f":"COUNTA(SpellInfo[Spell Name])&\" Known spells\"","v":"52 Known spells"}]
[4,3,3,"Concentrating","Spell Ability",9,1,1,null,null,null,null,{"$f":"SUM(B2:B6,G2,G3,G4,G5)&\" Spell slots remain\"","v":"18 Spell slots remain"}]
[5,3,3,"No",1,true,"Ctrl+Shift+S will switch to this sheet",null,null,null,null,null,{"$f":"\"Fav School: \"&INDEX(SpellInfo[School],MODE(MATCH(SpellInfo[School],SpellInfo[School],0)))","v":"Fav School: Evocation"}]
["Prepared","Level","Spell Name","Time to cast","School","Concentration","Range","Duration","Damage","Upcast","Save","Components","Ability","Notes","Description"]
["Always",0,"Fire Bolt","Action","Evocation","No",120,"Instant","1d10 (Level)","No",null,"VS","Int",null,"You hurl a mote of fire at a creature or object within range. On a hit, the target takes 1d10 fire damage. A flammable object hit by this spell ignites if it isn't being worn or carried.\r\n\r\nThis spell's damage increases by 1d10 when you reach 5th Level (2d10), 11th level (3d10), and 17th level (4d10)."]
["Always",0,"Mage Hand","Action","Conjuration","No",30,"1 Minute",null,"No",null,"VS","Int",null,"A spectral, floating hand appears at a point you choose within range. The hand lasts for the Duration or until you dismiss it as an action. The hand vanishes if it is ever more than 30 feet away from you or if you cast this spell again.\n\nYou can use your action to control the hand. You can use the hand to manipulate an object, open an unlocked door or container, stow or retrieve an item from an open container, or pour the contents out of a vial. You can move the hand up to 30 feet each time you use it.\n\nThe hand can't Attack, activate magical items, or carry more than 10 pounds."]
["Always",0,"Message","Action","Transmutation","No",120,"1 Round",null,"No",null,"VSM","Int",null,"You point your finger toward a creature within range and Whisper a message. The target (and only the target) hears the message and can reply in a Whisper that only you can hear.\r\n\r\nYou can cast this spell through solid Objects if you are familiar with the target and know it is beyond the barrier. Magical Silence, 1 foot of stone, 1 inch of Common metal, a thin sheet of lead, or 3 feet of wood blocks the spell. The spell doesn't have to follow a straight line and can Travel freely around corners or through openings."]
["Always",0,"Thaumaturgy","Action","Transmutation","No",30,"1 Minute",null,"No",null,"V","Int",null,"You manifest a minor wonder, a sign of supernatural power, within range. You create one of the following magical Effects within range.\r\n\r\n• Your voice booms up to three times as loud as normal for 1 minute.\r\n\r\n• You cause flames to flicker, brighten, dim, or change color for 1 minute.\r\n\r\n• You cause harmless tremors in the ground for 1 minute.\r\n\r\n• You create an Instantaneous sound that originates from a point of your choice within range, such as a rumble of thunder, the cry of a raven, or ominous whispers.\r\n\r\n• You instantaneously cause an unlocked door or window to fly open or slam shut.\r\n\r\n• You alter the appearance of your eyes for 1 minute.\r\n\r\nIf you cast this spell multiple times, you can have up to three of its 1-minute Effects active at a time, and you can dismiss such an Effect as an action."]
["Always",0,"Minor Conjuration","Action","Transmutation","No",10,"1 Hour",null,"No",null,"S","Int",null,"(School of Conjuration) Starting at 2nd level when you select this school, you can use your action to conjure up an inanimate object in your hand or on the ground in an unoccupied space that you can see within 10 feet of you. This object can be no larger than 3 feet on a side and weigh no more than 10 pounds, and its form must be that of a nonmagical object that you have seen. The object is visibly magical, radiating dim light out to 5 feet.\r\n\r\nThe object disappears after 1 hour, when you use this feature again, or if it takes any damage."]
["Always",0,"Benign Transport","Action","Conjuration","No",30,"Instant",null,"No",null,"S","Int",null,"(School of Conjuration) Starting at 6th level, you can use your action to teleport up to 30 feet to an unoccupied space that you can see. Alternatively, you can choose a space within range that is occupied by a Small or Medium creature. If that creature is willing, you both teleport, swapping places."]
["Yes",1,"Detect Magic","Action (Ritual)","Divination","Yes","Self","10 Minutes",null,"No",null,"VS","Int",null,"For the Duration, you sense the presence of magic within 30 feet of you. If you sense magic in this way, you can use your action to see a faint aura around any visible creature or object in the area that bears magic, and you learn its school of magic, if any.\r\n\r\nThe spell can penetrate most barriers, but is blocked by 1 foot of stone, 1 inch of Common metal, a thin sheet of lead, or 3 feet of wood or dirt."]
["Yes",1,"Mage Armor","Action","Abjuration","No",0,"8 Hours",null,"No",null,"VSM","Int",null,"You touch a willing creature who isn't wearing armor, and a protective magical force surrounds it until the spell ends. The target's base AC becomes 13 + its Dexterity modifier. The spell ends it if the target dons armor or if you dismiss the spell as an action."]
["Yes",1,"Magic Missile","Action","Evocation","No",120,"Instant","1d4+1 / dart","Yes",null,"VS","Int","Lv +2 Darts","You create three glowing darts of magical force. Each dart hits a creature of your choice that you can see within range. A dart deals 1d4+1 force damage to its target. The darts all strike simultaneously and you can direct them to hit one creature or several.\r\n\r\nAt Higher Levels:\r\nWhen you cast this spell using a spell slot of 2nd Level or higher, the spell creates one more dart for each slot above 1st."]
["Yes",1,"Shield","Reaction","Abjuration","No","Self","1 Round",null,"No",null,"VS","Int",null,"An Invisible barrier of magical force appears and protects you. Until the start of your next turn, you have a +5 bonus to AC, including against the triggering Attack, and you take no damage from Magic Missile."]
["Yes",1,"Chromatic Orb","Action","Evocation","No",90,"Instant","3d8","No",null,"VSM 50gp Diamond","Int",null,"You hurl a 4-inch-diameter sphere of energy at a creature that you can see within range. You choose acid, cold, fire, lightning, poison, or thunder for the type of orb you create, and then make a ranged spell attack against the target. If the attack hits, the creature takes 3d8 damage of the type you chose.\r\n\r\nAt higher levels:\r\nWhen you cast this spell using a spell slot of 2nd level or higher, the damage increases by 1d8 for each slot level above 1st."]
["No",1,"Witch Bolt","Action","Evocation","Yes",30,"1 Minute","1d12","Yes",null,"VSM","Int",null,"A beam of crackling, blue energy lances out toward a creature within range, forming a sustained arc of lightning between you and the target.\r\nMake a ranged spell attack against that creature. On a hit, the target takes 1d12 lightning damage, and on each of your turns for the duration, you can use your action to deal 1d12 lightning damage to the target automatically. The spell ends if you use your action to do anything else. The spell also ends if the target is ever outside the spell’s range or if it has total cover from you.\r\n\r\nAt higher levels:\r\nWhen you cast this spell using a spell slot of 2nd level or higher, the initial damage increases by 1d12 for each slot level above 1st."]
["No",1,"Ray of Sickness","Action","Necromancy","No",60,"Instant","2d8","No","CON","VS","Int",null,"A ray of sickening greenish energy lashes out toward a creature within range. Make a ranged spell attack against the target. On a hit, the target takes 2d8 poison damage and must make a Constitution saving throw. On a failed save, it is also poisoned until the end of your next turn.\r\n\r\nAt higher levels:\r\nWhen you cast this spell using a spell slot of 2nd level or higher, the damage increases by 1d8 for each slot level above 1st."]
["No",1,"Protection from Evil and Good","Action","Abjuration","Yes",0,"10 Minutes",null,"No",null,"VSM","Int",null,"Until the spell ends, one willing creature you touch is protected against certain types of creatures - Aberrations, Celestials, Elementals, fey, Fiends, and Undead.\r\n\r\nThe Protection grants several benefits. Creatures of those types have disadvantage on Attack rolls against the target. The target also can't be Charmed, Frightened, or possessed by them. If the target is already Charmed, Frightened, or possessed by such a creature, the target has advantage on any new saving throw against the relevant Effect."]
["Always",2,"Darkness","Action","Evocation","Yes",60,"10 Minutes",null,"No",null,"VM","Int",null,"Magical darkness spreads from a point you choose within range to fill a 15-foot radius Sphere for the Duration. The darkness spreads around corners. A creature with Darkvision can't see through this darkness, and nonmagical light can't illuminate it.\r\n\r\nIf the point you choose is on an object you are holding or one that isn't being worn or carried, the darkness emanates from the object and moves with it. Completely covering the source of the darkness with an opaque object, such as a bowl or a helm, blocks the darkness.\r\n\r\nIf any of this spell's area overlaps with an area of light created by a spell of 2nd Level or lower, the spell that created the light is dispelled."]
["Always",2,"Hellish Rebuke","Reaction","Evocation","No",60,"Instant","2d10","No","DEX","VS","Int",null,"You point your finger, and the creature that damaged you is momentarily surrounded by hellish flames. The creature must make a Dexterity saving throw. It takes 2d10 fire damage on a failed save, or half as much damage on a successful one.\r\n\r\nAt Higher Levels:\r\nWhen you cast this spell using a spell slot of 2nd Level or higher, the damage increases by 1d10 for each slot level above 1st."]
["Yes",2,"Invisibility","Action","Illusion","Yes",0,"1 Hour",null,"No",null,"VSM","Int",null,"A creature you touch becomes Invisible until the spell ends. Anything the target is wearing or carrying is Invisible as long as it is on the target's person. The spell ends for a target that attacks or casts a spell.\r\n\r\nAt Higher Levels:\r\nWhen you cast this spell using a spell slot of 3rd Level or higher, you can target one additional creature for each slot level above 2nd."]
["Yes",2,"Misty Step","Bonus Action","Conjuration","No","Self","Instant",null,"No",null,"V","Int",null,"Briefly surrounded by silvery mist, you Teleport up to 30 feet to an unoccupied space that you can see."]
["Yes",2,"Scorching Ray","Action","Evocation","No",120,"Instant","2d6","Yes",null,"VS","Int",null,"You create three rays of fire and hurl them at Targets within range. You can hurl them at one target or several.\r\n\r\nMake a ranged spell Attack for each ray. On a hit, the target takes 2d6 fire damage.\r\n\r\nAt Higher Levels:\r\nWhen you cast this spell using a spell slot of 3rd Level or higher, you create one additional ray for each slot level above 2nd."]
["No",2,"Hold Person","Action","Enchantment","Yes",60,"1 Minute",null,"No","WIS","VSM","Int",null,"Choose a Humanoid that you can see within range. The target must succeed on a Wisdom saving throw or be Paralyzed for the Duration. At the end of each of its turns, the target can make another Wisdom saving throw. On a success, the spell ends on the target.\r\n\r\nAt Higher Levels:\r\nWhen you cast this spell using a spell slot of 3rd Level or higher, you can target on additional Humanoid for each slot level above 2nd. The Humanoids must be within 30 feet of each other when you target them."]
["No",2,"Suggestion","Action","Enchantment","Yes",30,"8 Hours",null,"No","WIS","VM","Int",null,"You suggest a course of activity (limited to a sentence or two) and magically influence a creature you can see within range that can hear and understand you. Creatures that can't be Charmed are immune to this Effect. The suggestion must be worded in such a manner as to make the course of action sound reasonable. Asking the creature to stab itself, throw itself onto a spear, immolate itself, or do some other obviously harmful act ends the spell.\r\n\r\nThe target must make a Wisdom saving throw. On a failed save, it purses the course of action you described to the best of its ability. The suggested course of action can continue for the entire Duration. If the suggested activity can be completed in a shorter time, the spell ends when the subject finishes what it was asked to do.\r\n\r\nYou can also specify Conditions that will trigger a Special activity during the Duration. For example, you might suggest that a Knight give her Warhorse to the first Beggar she meets. If the condition isn't met before the spell expires, the activity isn't preformed.\r\n\r\nIf you or any of your companions damage the target, the spell ends."]
["No",2,"Flaming Sphere","Action","Conjuration","Yes",60,"1 Minute","2d6","Yes","DEX","VSM","Int",null,"A 5-foot-diameter Sphere of fire appears in an unoccupied space of your choice within range and lasts for the Duration. Any creature that ends its turn within 5 feet of the Sphere must make a Dexterity saving throw. The creature takes 2d6 fire damage on a failed save, or half as much damage on a successful one.\r\n\r\nAs a Bonus Action, you can move the Sphere up to 30 feet. If you ram the Sphere into a creature, that creature must make the saving throw against the sphere's damage, and the Sphere stops moving this turn.\r\n\r\nWhen you move the Sphere, you can direct it over barriers up to 5 feet tall and jump it across pits up to 10 feet wide. The Sphere ignites flammable Objects not being worn or carried, and it sheds bright light in a 20-foot radius and dim light for an additional 20 feet.\r\n\r\nAt Higher Levels:\r\nWhen you cast this spell using a spell slot of 3rd Level or higher, the damage increases by 1d6 for each slot level above 2nd."]
["Yes",3,"Counterspell","Reaction","Abjuration","No",60,"Instant",null,"Yes",null,"S","Int","Raw spellcasting ability","You attempt to interrupt a creature in the process of Casting a Spell. If the creature is Casting a Spell of 3rd Level or lower, its spell fails and has no Effect. If it is Casting a Spell of 4th Level or higher, make an ability check using your Spellcasting Ability. The DC equals 10 + the spell's level. On a success, the creature's spell fails and has no Effect.\r\n\r\nAt Higher Levels:\r\nWhen you cast this spell using a spell slot of 4th Level or higher, the interrupted spell has no Effect if its level is less than or equal to the level of the spell slot you used."]
["Yes",3,"Dispel Magic","Action","Abjuration","No",120,"Instant",null,"Yes",null,"VS","Int",null,"Choose any creature, object, or magical Effect within range. Any spell of 3rd Level or lower on the target ends. For each spell of or higher on the target, make an ability check using your Spellcasting Ability. The DC equals 10 + the spell's level. On a successful check, the spell ends.\r\n\r\nAt Higher Levels:\r\nWhen you cast this spell using a spell slot of 4th Level or higher, you automatically end the Effects of a spell on the target if the spell's level is equal to or less than the level of the spell slot you used."]
["Yes",3,"Haste","Action","Transmutation","Yes",30,"1 Minute",null,"No",null,"VSM","Int",null,"Choose a willing creature that you can see within range. Until the spell ends, the target's speed is doubled, it gains a +2 bonus to AC, it has advantage on Dexterity Saving Throws, and it gains an additional action on each of its turns. That action can be used only to take the Attack (one weapon Attack only), Dash, Disengage, Hide, or Use an Object action.\r\n\r\nWhen the spell ends, the target can't move or take Actions until after its next turn, as a wave of lethargy sweeps over it."]
["Yes",3,"Lightning Bolt","Action","Evocation","No",100,"Instant","8d6","Yes","DEX","VSM","Int",null,"A stroke of lightning forming a line of 100 feet long and 5 feet wide blasts out from you in a direction you choose. Each creature in the line must make a Dexterity saving throw. A creature takes 8d6 lightning damage on a failed save, or half as much damage on a successful one.\r\n\r\nThe lightning ignites flammable Objects in the area that aren't being worn or carried.\r\n\r\nAt Higher Levels:\r\nWhen you cast this spell using a spell slot of 4th Level or higher, the damage increases by 1d6 for each slot above 3rd."]
["Yes",3,"Fireball","Action","Evocation","No",150,"Instant","8d6","Yes","DEX","VSM","Int",null,"A bright streak flashes from your pointing finger to a point you choose within range then blossoms with a low roar into an explosion of flame. Each creature in a 20-foot radius Sphere centered on that point must make a Dexterity saving throw. A target takes 8d6 fire damage on a failed save, or half as much damage on a successful one.\r\n\r\nThe fire spreads around corners. It ignites flammable Objects in the area that aren't being worn or carried.\r\n\r\nAt Higher Levels:\r\nWhen you cast this spell using a spell slot of 4th Level or higher, the damage increases by 1d6 for each slot level above 3rd."]
["Yes",3,"Fly","Action","Transmutation","Yes",0,"10 Minutes",null,"Yes",null,"VSM","Int",null,"You touch a willing creature. The target gains a flying speed of 60 feet for the Duration. When the spell ends, the target falls if it is still aloft, unless it can stop the fall.\r\n\r\nAt Higher Levels:\r\nWhen you cast this spell using a spell slot of 4th Level or higher, you can target one additional creature for each slot level above 3rd."]
["No",3,"Glyph of Warding","1 Hour","Abjuration","No",0,"Infinite","5d8","Yes","DEX","VSM 200gp Powdered diamond, consumed","Int",null,"When you cast this spell, you inscribe a glyph that harms other creatures, either upon a surface (such as a table or a section of floor or wall) or within an object that can be closed (such as a book, a scroll, or a Treasure chest) to conceal the glyph. If you choose a surface, the glyph can cover an area of the surface no larger than 10 feet in diameter. If you choose an object, that object must remain in its place, if the object is moved more than 10 feet from where you cast this spell, the glyph is broken and the spell ends without being triggered.\r\n\r\nThe glyph is nearly Invisible and requires a successful Intelligence (Investigation) check against your spell save DC to be found.\r\n\r\nYou decide what triggers the glyph when you cast the spell. For glyphs inscribed on a surface, the most typical triggers include touching or standing on the glyph, removing another object covering the glyph, approaching within a certain distance of the glyph, or manipulating the object on which the glyph is inscribed. For glyphs inscribed within an object, the most Common triggers include opening that object, approaching within a certain distance of the object, or seeing or reading the glyph. Once a glyph is triggered, this spell ends.\r\n\r\nYou can further refine the trigger so the spell activates only under certain circumstances or according to Physical Characteristics (such as height or weight), creature kind (for example, the ward could be set to affect Aberrations or drow), or Alignment. You can also set Conditions for creatures that don't trigger the glyph, such as those who say a certain password.\r\n\r\nWhen you inscribe the glyph, choose explosive runes or a spell glyph.\r\n\r\nExplosive Runes: When triggered, the glyph erupts with magical energy in a 20-foot-radius Sphere centered on the glyph. The Sphere spreads around corners. Each creature in the aura must make a Dexterity saving throw. A creature takes 5d8 acid, cold, fire, lightning, or thunder damage on a failed saving throw (your choice when you create the glyph), or half as much damage on a successful one.\r\n\r\nSpell Glyph: You can store a prepared spell of 3rd Level or lower in the glyph by casting it as part of creating the glyph. The spell must target a single creature or an area. The spell being stored has no immediate Effect when cast in this way. When the glyph is triggered, the stored spell is cast. If the spell has a target, it Targets the creature that triggered the glyph. If the spell affects an area, the area is centered on that creature. If the spell summons Hostile creatures or creates harmful Objects or traps, they appear as close as possible to the intruder and Attack it. If the spell requires Concentration, it lasts until the end of its full Duration.\r\n\r\nAt Higher Levels:\r\nWhen you cast this spell using a spell slot of 4th Level or higher, the damage of an explosive runes glyph increases by 1d8 for each slot level above 3rd. If you create a spell glyph, you can store any spell of up to the same level as the slot you use for the glyph of warding."]
["No",3,"Major Image","Action","Illusion","Yes",120,"10 Minutes",null,"Yes",null,"VSM","Int",null,"You create the image of an object, a creature, or some other visible phenomenon that is no larger than a 20-foot cube. The image appears at a spot that you can see within range and lasts for the Duration. It seems completely real, including sounds, smells, and temperature appropriate to the thing depicted. You can't create sufficient heat or cold to cause damage, a sound loud enough to deal thunder damage or deafen a creature, or a smell that might sicken a creature (like a troglodyte's stench).\r\n\r\nAs long as you are within range of the Illusion, you can use your action to cause the image to move to any other spot within range. As the image changes location, you can alter its appearance so that its movements appear natural for the image. For example, if you create an image of a creature and move it, you can alter the image so that it appears to be walking. Similarly, you can cause the Illusion to make different sounds at different times, even making it carry on a conversation, for example.\r\n\r\nPhysical interaction with the image reveals it to be an Illusion, because things can pass through it. A creature that uses its action to examine the image can determine that it is an Illusion with a successful Intelligence (Investigation) check against your spell save DC. If a creature discerns the Illusion for what it is, the creature can see through the image, and its other sensory qualities become faint to the creature.\r\n\r\nAt Higher Levels:\r\nWhen you cast this spell using a spell slot of 6th level or higher, the spell lasts until dispelled, without requiring your Concentration."]
["No",3,"Tiny Hut","1 Minute (Ritual)","Evocation","No","Self","8 Hours",null,"No",null,"VSM","Int",null,"A 10-foot-radius immobile dome of force springs into existence around and above you and remains stationary for the Duration. The spell ends if you leave its area.\r\n\r\nNine creatures of Medium size or smaller can fit inside the dome with you. The spell fails if its area includes a larger creature or more than nine creatures. Creatures and objects⁠ within the dome when you cast this spell can move through it freely. All other creatures and objects⁠ are barred from passing through it. Spells and other magical Effects can't extend through the dome or be cast through it. The atmosphere inside the space is comfortable and dry, regardless of the weather outside.\r\n\r\nUntil the spell ends, you can command⁠ the interior to become dimly lit or dark. The dome is opaque from the outside, of any color you choose, but it is transparent from the inside."]
["No",4,"Black Tentacles","Action","Conjuration","Yes",90,"1 Minute","3d6","No","DEX","VSM","Int",null,"Squirming, ebony tentacles fill a 20-foot square on ground that you can see within range. For the Duration, these tentacles turn the ground in the area into Difficult Terrain.\r\n\r\nWhen a creature enters the affected area for the first time on a turn or starts its turn there, the creature must succeed on a Dexterity saving throw or take 3d6 bludgeoning damage and be Restrained by the tentacles until the spell ends. A creature that starts its turn in the area and is already Restrained by the tentacles takes 3d6 bludgeoning damage.\r\n\r\nA creature Restrained by the tentacles can use its action to make a Strength or Dexterity check (its choice) against your spell save DC. On a success, it frees itself."]
["Yes",4,"Dimension Door","Action","Conjuration","No",500,"Instant",null,"No",null,"V","Int",null,"You Teleport yourself from your current location to any other spot within range. You arrive at exactly the spot desired. It can be a place you can see, one you can visualize, or one you can describe by stating distance and direction, such as 200 feet straight downward or upward to the northwest at a 45-degree angle, 300 feet.\r\n\r\nYou can bring along Objects as long as their weight doesn't exceed what you can carry. You can also bring one willing creature of your size or smaller who is carrying gear up to its carrying Capacity. The creature must be within 5 feet of you when you cast this spell.\r\n\r\nIf you would arrive in a place already occupied by an object or a creature, you and any creature traveling with you each take 4d6 force damage, and the spell fails to Teleport you."]
["Yes",4,"Summon Greater Demon","Action","Conjuration","Yes",60,"1 Hour",null,"Yes","CHA","VSM","Int",null,"You utter foul words, summoning one demon from the chaos of the Abyss. You choose the demon’s type, which must be one of challenge rating 5 or lower, such as a shadow demon or a barlgura. The demon appears in an unoccupied space you can see within range, and the demon disappears when it drops to 0 hit points or when the spell ends.\r\n\r\nRoll initiative for the demon, which has its own turns. When you summon it and on each of your turns thereafter, you can issue a verbal command to it (requiring no action on your part), telling it what it must do on its next turn. If you issue no command, it spends its turn attacking any creature within reach that has attacked it.\r\n\r\nAt the end of each of the demon’s turns, it makes a Charisma saving throw. The demon has disadvantage on this saving throw if you say its true name. On a failed save, the demon continues to obey you. On a successful save, your control of the demon ends for the rest of the duration, and the demon spends its turns pursuing and attacking the nearest non-demons to the best of its ability. If you stop concentrating on the spell before it reaches its full duration, an uncontrolled demon doesn’t disappear for 1d6 rounds if it still has hit points.\r\n\r\nAs part of casting the spell, you can form a circle on the ground with the blood used as a material component. The circle is large enough to encompass your space. While the spell lasts, the summoned demon can’t cross the circle or harm it, and it can’t target anyone within it. Using the material component in this manner consumes it when the spell ends.\r\n\r\nAt higher levels:\r\nWhen you cast this spell using a spell slot of 5th level or higher, the challenge rating increases by 1 for each slot level above 4th."]
["No",4,"Wall of Fire","Action","Evocation","Yes",120,"1 Minute","5d8","Yes","DEX","VSM","Int",null,"You create a wall of fire on a solid surface within range. You can make the wall up to 60 feet long, 20 feet high, and 1 foot think, or a ringed wall up to 20 feet in diameter, 20 feet high, and 1 foot thick. The wall is opaque and lasts for the Duration.\r\n\r\nWhen the wall appears, each creature within its area must make a Dexterity saving throw. On a failed save, a creature takes 5d8 fire damage, or half as much damage on a successful save.\r\n\r\nOne side of the wall, selected by you when you cast this spell, deals 5d8 fire damage to each creature that ends its turn within 10 feet of that side or inside the wall. A creature takes the same damage when it enters the wall for the first time on a turn or ends its turn there. The other side of the wall deals no damage.\r\n\r\nAt Higher Levels:\r\nWhen you cast this spell using a spell slot of 5th Level or higher, the damage increases by 1d8 for each slot level above 4th."]
["Yes",4,"Private Sanctum","10 Minutes","Abjuration","No",120,"24 Hours",null,"Yes",null,"VSM","Int",null,"You make an area within range magically secure. The area is a cube that can be as small as 5 feet to as large as 100 feet on each side. The spell lasts for the Duration or until you use an action to dismiss it.\r\n\r\nWhen you cast the spell, you decide what sort of security the spell provides, choosing any or all of the following properties.\r\n\r\n• Sound can't pass through the barrier at the edge of the warded area.\r\n\r\n• The barrier of the warded area appears dark and foggy, preventing vision (including darkvision) through it.\r\n\r\n• Sensors created by Divination Spells can't appear inside the protected area or pass through the barrier at its perimeter.\r\n\r\n• Creatures in the area can't be targeted by Divination Spells.\r\n\r\n• Nothing can Teleport into or out of the warded area.\r\n\r\n• Planar Travel is blocked within the warded area.\r\n\r\nCasting this spell on the same spot every day for a year makes this Effect permanent.\r\n\r\nAt Higher Levels:\r\nWhen you cast this spell using a spell slot of 5th Level or higher, you can increase the size of the cube by 100 feet for each slot level beyond 4th. Thus you could protect a cube that can be up to 200 feet on one side by using a spell slot of 5th Level."]
["No",4,"Conjure Minor Elementals","1 Minute","Conjuration","Yes","90 Feet","1 Hour",null,"Yes",null,"VS","Int","1/4=Mud,Smoke,Steam Mephit; 1/2=Dust,Ice,Magma Mephit, Magmin; 1=Fire snake; 2=Azer; 3=Gargoyle","You summon Elementals that appear in unoccupied spaces that you can see within range. You choose one the following options for what appears.\r\n\r\n• One elemental of Challenge rating 2 or lower\r\n\r\n• Two Elementals of Challenge rating 1 or lower\r\n\r\n• Four Elementals of Challenge rating 1/2 or lower\r\n\r\n• Eight Elementals of Challenge rating 1/4 or lower.\r\n\r\nAn elemental summoned by this spell disappears when it drops to 0 Hit Points or when the spell ends.\r\n\r\nThe summoned creatures are friendly to you and your companions. Roll Initiative for the summoned creatures as a group, which has its own turns. They obey any verbal commands that you issue to them (no action required by you). If you don't issue any commands to them, they defend themselves from Hostile creatures, but otherwise take no Actions. The DM has the creatures' Statistics.\r\n\r\nAt Higher Levels: When you cast this spell using certain higher-level Spell Slots, you choose one of the summoning options above, and more creatures appear - twice as many with a 6th-level slot and three times as many with an 8th-level slot"]
["No",4,"Phantasmal Killer","Action","Illusion","Yes",120,"1 Minute","4d10","Yes","WIS","VS","Int",null,"You tap into the nightmares of a creature you can see within range and create an illusory Manifestation of its deepest fears, visible only to that creature. The target must make a Wisdom saving throw. On a failed save, the target becomes Frightened for the Duration. At the end of each of the target's turns before the spell ends, the target must succeed on a Wisdom saving throw or take 4d10 psychic damage. On a successful save, the spell ends.\r\n\r\nAt Higher Levels:\r\nWhen you cast this spell using a spell slot of 5th Level or higher, the damage increases by 1d10 for each slot level above 4th."]
["No",4,"Sickening Radiance","Action","Evocation","Yes",120,"10 Minutes","4d10","No","CON","VS","Int",null,"Dim, greenish light spreads within a 30-foot-radius sphere centered on a point you choose within range. The light spreads around corners, and it lasts until the spell ends.\r\n\r\nWhen a creature moves into the spell’s area for the first time on a turn or starts its turn there, that creature must succeed on a Constitution saving throw or take 4d10 radiant damage, and it suffers one level of exhaustion and emits a dim, greenish light in a 5-foot radius. This light makes it impossible for the creature to benefit from being invisible. The light and any levels of exhaustion caused by this spell go away when the spell ends."]
["Yes",5,"Hold Monster","Action","Enchantment","Yes",90,"1 Minute",null,"Yes","WIS","VSM","Int",null,"Choose a creature that you can see within range. The target must succeed on a Wisdom saving throw or be Paralyzed for the Duration. This spell has no Effect on Undead. At the end of each of its turns, the target can make another Wisdom saving throw. On a success, the spell ends on the target.\r\n\r\nAt Higher Levels:\r\nWhen you cast this spell using a spell slot of 6th level or higher, you can target on additional creature for each slot level above 5th. The creatures must be within 30 feet of each other when you target them."]
["No",5,"Danse Macabre","Action","Necromancy","Yes",60,"1 Hour",null,"Yes",null,"VS","Int",null,"Threads of dark power leap from your fingers to pierce up to five Small or Medium corpses you can see within range. Each corpse immediately stands up and becomes undead. You decide whether it is a zombie or a skeleton (the statistics for zombies and skeletons are in the Monster Manual), and it gains a bonus to its attack and damage rolls equal to your spellcasting ability modifier. You can use a bonus action to mentally command the creatures you make with this spell, issuing the same command to all of them. To receive the command, a creature must be within 60 feet of you. You decide what action the creatures will take and where they will move during their next turn, or you can issue a general command, such as to guard a chamber or passageway against your foes. lfyou issue no commands, the creatures do nothing except defend themselves against hostile creatures. Once given an order, the creatures continue to follow it until their task is complete.\r\n\r\nThe creatures are under your control until the spell ends, after which they become inanimate once more.\r\n\r\nAt higher levels:\r\nWhen you cast this spell using a spell slot‘ of 6th level or higher, you animate up to two additional corpses for each slot level above 5th."]
["No",5,"Negative Energy Flood","Action","Necromancy","No",60,"Instant","5d12","No","CON","VM","Int",null,"You send ribbons of negative energy at one creature you can see within range. Unless the target is undead, it must make a Constitution saving throw, taking 5d12 necrotic damage on a failed save, or half as much damage on a successful one. A target killed by this damage rises up as a zombie at the start of your next turn. The zombie pursues whatever creature it can see that is closest to it. Statistics for the zombie are in the Monster Manual. If you target an undead with this spell, the target doesn’t make a saving throw. Instead, roll 5d12. The target gains half the total as temporary hit points.\r\n\r\n"]
["Yes",6,"Chain Lightning","Action","Evocation","No",150,"Instant","10d8","Yes","DEX","VSM","Int",null,"You create a bolt of lightning that arcs toward a target of your choice that you can see within range. Three bolts then leap from that target to as many as three other Targets, each of which must be within 30 feet of the first target. A target can be a creature or an object and can be targeted by only one of the bolts.\r\n\r\nA target must make a Dexterity saving throw. The target takes 10d8 lightning damage on a failed save, or half as much on a successful one.\r\n\r\nAt Higher Levels:\r\nWhen you cast this spell using a spell slot of 7th level or higher, one additional bolt leaps from the first target to another target for each slot level above 6th."]
["Yes",6,"Contingency","10 MInutes","Evocation","No","Self","10 Days",null,"No",null,"VSM 1500gp gem covered icon","Int",null,"Choose a spell of 5th level or lower that you can cast, that has a Casting Time of 1 action, and that can target you. You cast that spell, called the contingent spell, as part of casting contingency, expending Spell Slots for both, but the contingent spell doesn't come into Effect. Instead, it takes Effect when a certain circumstance occurs. You describe that circumstance when you cast the two Spells. For example, a contingency cast with Water Breathing might stipulate that Water Breathing comes into Effect when you are engulfed in water or a similar liquid.\r\n\r\nThe contingent spell takes Effect immediately after the circumstance is met for the first time, whether or not you want it to, and then contingency ends.\r\n\r\nThe contingent spell takes Effect only on you, even if it can normally target others. You can use only one contingency spell at a time. If you cast this spell again, the Effect of another contingency spell on you ends. Also, contingency ends on you if its material component is ever not on your person."]
["No",6,"Eyebite","Action","Necromancy","Yes",60,"1 Minute",null,"No","WIS","VS","Int",null,"For the spell's Duration, your eyes become an inky void imbued with dread power. One creature of your choice within 60 feet of you that you can see must succeed on a Wisdom saving throw or be affected by one of the following Effects of your choice for the Duration. On each of your turns until the spell ends, you can use your action to target another creature but can't target a creature again if it has succeeded on a saving throw against this casting of Eyebite.\r\n\r\nAsleep: The target falls Unconscious. It wakes up if it takes any damage or if another creature uses its action to shake the sleeper awake.\r\n\r\nPanicked: The target is Frightened of you. On each of its turns, the Frightened creature must take the Dash action and move away from you by the safest and shortest available route, unless there is nowhere to move. If the target moves to a place at least 60 feet away from you where it can no longer see you, this Effect ends.\r\n\r\nSickened: The target has disadvantage on Attack rolls and Ability Checks. At the end of each of its turns, it can make another Wisdom saving throw. If it succeeds, the Effect ends."]
["Yes",6,"True Seeing","Action","Divination","No","Touch","1 Hour",null,"No",null,"VSM 25gp Eye Ointment (consumed)","Int",null,"This spell gives the willing creature you touch the ability to see things as they actually are. For the Duration, the creature has Truesight, notices Secret doors hidden by magic, and can see into the Ethereal Plane, all out to a range of 120 feet."]
["No",7,"Etherealness","Action","Transmutation","No","Self","8 Hours",null,"Yes",null,"VS","Int",null,"You step into the border regions of the Ethereal Plane, in the area where it overlaps with your current plane. You remain in the Border Ethereal for the Duration or until you use your action to dismiss the spell. During this time, you can move in any direction. If you move up or down, every foot of Movement costs an extra foot. You can see and hear the plan you originated from, but everything there looks gray, and you can't see anything more than 60 feet away.\r\n\r\nWhile on the Ethereal Plane, you can only affect and be affected by other creatures on that plane. Creatures that aren't on the Ethereal Plane can't perceive you and can't interact with you, unless a Special ability or magic has given them the ability to do so.\r\n\r\nYou ignore all Objects and Effects that aren't on the Ethereal Plane, allowing you to move through Objects you perceive on the plan you originated from.\r\n\r\nWhen the spell ends, you immediately return to the plane you originated from in the spot you currently occupy. If you occupy the same spot as a solid object or creature when this happens, you are immediately shunted to the nearest unoccupied space that you can occupy and take force damage equal to twice the number of feet you are moved.\r\n\r\nThis spell has no Effect if you cast it while you are on the Ethereal Plane or a plane that doesn't border it, such as one of the Outer Planes.\r\n\r\nAt Higher Levels:\r\nWhen you cast this spell using a spell slot of 8th level or higher, you can target up to three willing creatures (including you) for each slot level above 7th. The creatures must be within 10 feet of you when you cast the spell."]
["No",8,"Sunburst","Action","Evocation","No","150 Feet","Instant","12d6","No","CON",null,"Int",null,"Brilliant sunlight flashes in a 60-foot radius centered on a point you choose within range. Each creature in that light must make a Constitution saving throw. On a failed save, a creature takes 12d6 radiant damage and is Blinded for 1 minute. On a successful save, it takes half as much damage and isn't Blinded by this spell. Undead and oozes have disadvantage on this saving throw.\r\n\r\nA creature Blinded by this spell makes another Constitution saving throw at the end of each of its turns. On a successful save, it is no longer Blinded.\r\n\r\nThis spell dispels any Darkness in its area that was created by a spell."]
["Yes",8,"Antimagic Field","Action","Abjuration","Yes","Self (10ft Sphere)","1 Hour",null,"No",null,"VSM","Int",null,"A 10-foot-radius Invisible Sphere of antimagic surrounds you. This area is divorced from the magical energy that suffuses the multiverse. Within the Sphere, Spells can't be cast, summoned creatures disappear, and even Magic Items become mundane. Until the spell ends, the Sphere moves with you, centered on you.\r\n\r\nSpells and other magical Effects, except those created by an artifact or a deity, are suppressed in the Sphere and can't protrude into it. A slot expended to cast a suppressed spell is consumed. While an Effect is suppressed, it doesn't function, but the time it spends suppressed counts against its Duration.\r\n\r\nTargeted Effects: Spells and other magical Effects, such as Magic Missile and Charm Person, that target a creature or an object in the Sphere have no Effect on that target.\r\n\r\nAreas of Magic: The area of another spell or magical Effect, such as Fireball, can't extend into the Sphere. If the Sphere overlaps an area of magic, the part of the area that is covered by the Sphere is suppressed. For example, the flames created by a Wall of Fire are suppressed within the Sphere, creating a gap in the wall if the overlap is large enough.\r\n\r\nSpells: Any active spell or other magical Effect on a creature or an object in the Sphere is suppressed while the creature or object is in it.\r\n\r\nMagic Items: The properties and powers of Magic Items are suppressed in the Sphere. For example, a +1 long sword in the Sphere functions as a nonmagical long sword. A magic weapon's properties and powers are suppressed if it is used against a target in the Sphere or wielded by an attacker in the Sphere. If a Magic Weapon or piece of magic Ammunition fully leaves the Sphere (For example, if you fire a Magic Arrow or throw a magic spear at a target outside the sphere), the magic of the item ceases to be suppressed as soon as it exits.\r\n\r\nMagical Travel: Teleportation and Planar Travel fail to work in the Sphere, whether the Sphere is the destination or the departure point for such magical Travel. A portal to another location, world, or plane of existence, as well as an opening to an extradimensional space such as that created by the Rope Trick Spells, temporarily closes while in the Sphere.\r\n\r\nCreatures and Objects: A creature or object summoned or created by magic temporarily winks out of existence in the Sphere. Such a creature instantly reappears once the space the creature occupied is no longer within the Sphere.\r\n\r\nDispel Magic: Spells and magical Effects such as Dispel Magic have no Effect on the Sphere. Likewise, the spheres created by different antimagic field Spells don't nullify each other."]
["Yes",8,"Maze","Action","Conjuration","Yes","60 Feet","10 Minutes",null,"No",null,"VS","Int",null,"You banish a creature that you can see within range into a labyrinthine Demiplane. The target remains there for the Duration or until it escapes the maze.\r\n\r\nThe target can use its action to attempt to escape. When it does so, it makes a DC 20 Intelligence check. If it succeeds, it escapes, and the spell ends (a Minotaur or Goristro demon automatically succeeds).\r\n\r\nWhen the spell ends, the target reappears in the space it left or, if that space is occupied, in the nearest unoccupied space."]
["Yes",9,"Wish","Action","Conjuration","No","Self","Instant",null,"No",null,"V","Int",null,"Wish is the mightiest spell a mortal creature can cast. By simply speaking aloud, you can alter the very foundations of reality in accord with your desires.\r\n\r\nThe basic use of this spell is to duplicate any other spell of 8th level or lower. You don't need to meet any requirements in that spell, including costly Components. The spell simply takes Effect. Alternatively, you can create one of the following Effects of your choice.\r\n\r\n• You create one object of up to 25,000 gp in value that isn't a magic item. The object can be no more than 300 feet in any dimension, and it appears in an unoccupied space you can see on the ground.\r\n\r\n• You allow up to twenty creatures that you can see to regain all Hit Points, and you end all Effects on them described in the Greater Restoration spell.\r\n\r\n• You grant up to ten creatures that you can see Resistance to a damage type you choose.\r\n\r\n• You grant up to ten creatures you can see immunity to a single spell or other magical Effect for 8 hours. For instance, you could make yourself and all your companions immune to a lich's Life Drain Attack.\r\n\r\n• You undo a single recent event by forcing a reroll of any roll made within the last round (including your last turn). Reality reshapes itself to accommodate the new result. For example, a wish spell could undo an opponent's successful save, a foe's critical hit, or a friend's failed save. You can force the reroll to be made with advantage or disadvantage, and you can choose whether to use the reroll or the original roll.\r\n\r\nYou might be able to achieve something beyond the scope of the above examples. State your wish to the DM as precisely as possible. The DM has great latitude in ruling what occurs in such an instance, the greater the wish, the greater the likelihood that something goes wrong. This spell might simply fail, the Effect you desire might only be partly achieved, or you might suffer some unforeseen consequence as a result of how you worded the wish. For example, wishing that a villain were dead might propel you forward in time to a period when that villain is no longer alive, effectively removing you from the game. Similarly, wishing for a legendary magic item or artifact might instantly transport you to the presence of the item's current owner.\r\n\r\nThe stress of casting this spell to produce any Effect other than duplicating another spell weakens you. After enduring that stress, each time you Cast a Spell until you finish a Long Rest, you take 1d10 necrotic damage per level of that spell. This damage can't be reduced or prevented in any way. In addition, your Strength drops to 3, if it isn't 3 or lower already, for 2d4 days. For each of those days that you spend Resting and doing nothing more than light activity, your remaining recovery time decreases by 2 days. Finally, there is a 33 percent chance that you are unable to cast wish ever again if you suffer this stress."]
["Yes",9,"Meteor Swarm","Action","Evocation","No","1 Mile","Instant","40d6","No",null,"VS","Int",null,"Blazing orbs of fire plummet to the ground at four different points you can see within range. Each creature in a 40-foot-radius Sphere centered on each point you choose must make a Dexterity saving throw. The Sphere spreads around corners. A creature takes 20d6 fire damage and 20d6 bludgeoning damage on a failed save, or half as much damage on a successful one. A creature in the area of more than one fiery burst is affected only once.\r\n\r\nThe spell damages Objects in the area and ignites flammable Objects that aren't being worn or carried."]
[]
[]
["Spell Bank Controls"]
["Spell bank"]
[]
["Classes","Level","Spell Name","Time to cast","School","Concentration","Range","Duration","Damage","Upcast","Save","Components","Expand","Notes","Description"]
["Sorcerer, Wizard",0,"Fire Bolt","Action","Evocation","No",120,"Instant","1d10 (Level)","No",null,"VS","Expand",null,"You hurl a mote of fire at a creature or object within range. On a hit, the target takes 1d10 fire damage. A flammable object hit by this spell ignites if it isn't being worn or carried.\r\n\r\nThis spell's damage increases by 1d10 when you reach 5th Level (2d10), 11th level (3d10), and 17th level (4d10)."]
["Bard, Sorcerer, Warlock, Wizard",0,"Mage Hand","Action","Conjuration","No",30,"1 Minute",null,"No",null,"VS","Expand",null,"A spectral, floating hand appears at a point you choose within range. The hand lasts for the Duration or until you dismiss it as an action. The hand vanishes if it is ever more than 30 feet away from you or if you cast this spell again.\n\nYou can use your action to control the hand. You can use the hand to manipulate an object, open an unlocked door or container, stow or retrieve an item from an open container, or pour the contents out of a vial. You can move the hand up to 30 feet each time you use it.\n\nThe hand can't Attack, activate magical items, or carry more than 10 pounds."]
["Bard, Sorcerer, Wizard",0,"Message","Action","Transmutation","No",120,"1 Round",null,"No",null,"VSM","Expand",null,"You point your finger toward a creature within range and Whisper a message. The target (and only the target) hears the message and can reply in a Whisper that only you can hear.\r\n\r\nYou can cast this spell through solid Objects if you are familiar with the target and know it is beyond the barrier. Magical Silence, 1 foot of stone, 1 inch of Common metal, a thin sheet of lead, or 3 feet of wood blocks the spell. The spell doesn't have to follow a straight line and can Travel freely around corners or through openings."]
["Cleric",0,"Thaumaturgy","Action","Transmutation","No",30,"1 Minute",null,"No",null,"V","Expand",null,"You manifest a minor wonder, a sign of supernatural power, within range. You create one of the following magical Effects within range.\r\n\r\n• Your voice booms up to three times as loud as normal for 1 minute.\r\n\r\n• You cause flames to flicker, brighten, dim, or change color for 1 minute.\r\n\r\n• You cause harmless tremors in the ground for 1 minute.\r\n\r\n• You create an Instantaneous sound that originates from a point of your choice within range, such as a rumble of thunder, the cry of a raven, or ominous whispers.\r\n\r\n• You instantaneously cause an unlocked door or window to fly open or slam shut.\r\n\r\n• You alter the appearance of your eyes for 1 minute.\r\n\r\nIf you cast this spell multiple times, you can have up to three of its 1-minute Effects active at a time, and you can dismiss such an Effect as an action."]
["Wizard",0,"Minor Conjuration","Action","Transmutation","No",10,"1 Hour",null,"No",null,"S","Expand",null,"(School of Conjuration) Starting at 2nd level when you select this school, you can use your action to conjure up an inanimate object in your hand or on the ground in an unoccupied space that you can see within 10 feet of you. This object can be no larger than 3 feet on a side and weigh no more than 10 pounds, and its form must be that of a nonmagical object that you have seen. The object is visibly magical, radiating dim light out to 5 feet.\r\n\r\nThe object disappears after 1 hour, when you use this feature again, or if it takes any damage."]
["Wizard",0,"Benign Transport","Action","Conjuration","No",30,"Instant",null,"No",null,"S","Expand",null,"(School of Conjuration) Starting at 6th level, you can use your action to teleport up to 30 feet to an unoccupied space that you can see. Alternatively, you can choose a space within range that is occupied by a Small or Medium creature. If that creature is willing, you both teleport, swapping places."]
["Bard, Sorcerer, Warlock, Wizard",0,"Prestidigitation","Action","Transmutation","No",10,"1 Hour",null,"No",null,"VS","Expand",null,"This spell is a minor magical trick that novice spellcasters use for practice. You create one of the following magical Effects within range.\r\n\r\n• You create an Instantaneous, harmless sensory Effect, such as a shower of sparks, a puff of wind, faint musical notes, or an odd odor.\r\n\r\n• You instantaneously light or snuff out a Candle, a torch, or a small campfire.\r\n\r\n• You instantaneously clean or soil an object no larger than 1 cubic foot.\r\n\r\n• You chill, warm, or flavor up to 1 cubic foot of nonliving material for 1 hour.\r\n\r\n• You make a color, a small mark, or a Symbol appear on an object or a surface for 1 hour.\r\n\r\n• You create a nonmagical trinket or an illusory image that can fit in your hand and that lasts until the end of your next turn.\r\n\r\nIf you cast this spell multiple times, you can have up to three of its non-instantaneous Effects active at a time, and you can dismiss such an Effect as an action."]
["Bard, Sorcerer, Warlock, Wizard",0,"Minor Illusion","Action","Illusion","No",30,"1 Minute",null,"No",null,"VSM","Expand",null,"You create a sound or an image of an object within range that lasts for the Duration. The Illusion also ends if you dismiss it as an action or cast this spell again.\r\n\r\nIf you create a sound, its volume can range from a Whisper to a scream. It can be your voice, someone else's voice, a lion's roar, a beating of drums, or any other sound you choose. The sound continues unabated throughout the Duration, or you can make discrete sounds at different times before the spell ends.\r\n\r\nIf you create an image of an object - such as a chair, muddy footprints, or a small chest - it must be no larger than a 5-foot cube. The image can't create sound, light, smell, or any other sensory Effect. Physical interaction with the image reveals it to be an Illusion, because things can pass through it.\r\n\r\nIf a creature uses its action to examine the sound or image, the creature can determine that it is an Illusion with a successful Intelligence (Investigation) check against your spell save DC. If a creature discerns the Illusion for what it is, the Illusion becomes faint to the creature."]
["Sorcerer, Wizard",0,"Acid Splash","Action","Conjuration","No",60,"Instant","1d6 (level)","No","DEX","VS","Expand",null,"You hurl a bubble of acid. Choose one creature within range, or choose two creatures within range that are within 5 feet of each other. A target must succeed on a Dexterity saving throw or take 1d6 acid damage.\r\n\r\nThis spell's damage increases by 1d6 when you reach 5th Level (2d6), 11th level (3d6) and 17th level (4d6)."]
["Sorcerer, Warlock, Wizard",0,"Chill Touch","Action","Necromancy","No",120,"1 Round","1d8 (level)","No",null,"VS","Expand",null,"You create a ghostly, skeletal hand in the space of a creature within range. Make a ranged spell Attack against the creature to assail it with the chill of the grave. On a hit, the target takes 1d8 necrotic damage, and it can't regain Hit Points until the start of your next turn. Until then, the hand clings to the target.\r\n\r\nIf you hit an Undead target, it also has disadvantage on Attack rolls against you until the end of your next turn.\r\n\r\nThis spell's damage increases by 1d8 when you reach 5th Level (2d8), 11th level (3d8), and 17th level (4d8)."]
["Bard, Sorcerer, Wizard",0,"Dancing Lights","Action","Evocation","Yes",120,"1 Minute",null,"No",null,"VSM","Expand",null,"You create up to four torch-sized lights within range, making them appear as torches, lanterns, or glowing orbs that hover in the air for the Duration. You can also combine the four lights into one glowing vaguely Humanoid form of Medium size. Whichever form you choose, each light sheds dim light in a 10-foot radius.\r\n\r\nAs a Bonus Action on Your Turn, you can move the lights up to 60 feet to a new spot within range. A light must be within 20 feet of another light created by this spell, and a light winks out if it exceeds the spell's range."]
["Bard, Cleric, Sorcerer, Wizard",0,"Light","Action","Evocation","No","Touch","1 Hour",null,"No","DEX","VM","Expand",null,"You touch one object that is no larger than 10 feet in any dimension. Until the spell ends, the object sheds bright light in a 20-foot radius and dim light for an additional 20 feet. The light can be colored as you like. Completely covering the object with something opaque blocks the light. The spell ends if you cast it again or dismiss it as an action.\r\n\r\nIf you target an object held or worn by a Hostile creature, that creature must succeed on a Dexterity saving throw to avoid the spell."]
["Bard, Cleric, Druid, Sorcerer, Wizard",0,"Mending","1 Minute","Transmutation","No","Touch","Instant",null,"No",null,"VSM","Expand",null,"This spell Repairs a single break or tear in an object you touch, such as broken chain link, two halves of a broken key, a torn clack, or a leaking wineskin. As long as the break or tear is no larger than 1 foot in any dimension, you mend it, leaving no trace of the former damage.\r\n\r\nThis spell can physically repair a magic item or Construct, but the spell can't restore magic to such an object."]
["Druid, Sorcerer, Warlock, Wizard",0,"Poison Spray","Action","Conjuration","No",10,"Instant","1d10 (Level)","No","CON","VS","Expand",null,"You extend your hand toward a creature you can see within range and project a puff of noxious gas from your palm. The creature must succeed on a Constitution saving throw or take 1d12 poison damage.\r\n\r\nThis spell's damage increases by 1d12 when you reach 5th Level (2d12), 11th level (3d12), and 17th level (4d12)."]
["Sorcerer, Wizard",0,"Ray of Frost","Action","Evocation","No",60,"Instant","1d8 (Level)","No",null,"VS","Expand",null,"A frigid beam of blue-white light streaks toward a creature within range. Make a ranged spell Attack against the target. On a hit, it takes 1d8 cold damage, and its speed is reduced by 10 feet until the start of your next turn.\r\n\r\nThe spell's damage increases by 1d8 when you reach 5th Level (2d8), 11th level (3d8), and 17th level (4d8)."]
["Sorcerer, Wizard",0,"Shocking Grasp","Action","Evocation","No","Touch","Instant","1d8","No",null,"VS","Expand",null,"Lightning springs from your hand to deliver a shock to a creature you try to touch. Make a melee spell Attack against the target. You have advantage on the Attack roll if the target is wearing armor made of metal. On a hit, the target takes 1d8 lightning damage, and it can't take Reactions until the start of its next turn.\r\n\r\nThe spell's damage increases by 1d8 when you reach 5th Level (2d8), 11th level (3d8), and 17th level (4d8)."]
["Bard, Sorcerer, Warlock, Wizard",0,"True Strike","Action","Divination","Yes",30,"1 Round",null,"No",null,"S","Expand",null,"You extend your hand and point a finger at a target in range. Your magic grants you a brief Insight into the target's defenses. On your next turn, you gain advantage on your first Attack roll against the target, provided that this spell hasn't ended."]
["Sorcerer, Warlock, Wizard",0,"Booming Blade","Action","Evocation","No","5 Feet","1 Round","1d8 (LV)","Yes",null,"VM","Expand",null,"As part of the action used to cast this spell, you must make a melee attack with a weapon against one creature within the spell's range, otherwise the spell fails.\r\nOn a hit, the target suffers the attack's normal effects, and it becomes sheathed in booming energy until the start of your next turn. If the target willingly moves be- fore then, it immediately takes 1d8 thunder damage, and the spell ends.\r\nThis spell's damage increases when you reach higher levels.\r\n\r\nAt 5th level, the melee attack deals an extra 1d8 thunder damage to the target, and the damage the target takes for moving increases to 2d8. Both damage rolls increase by 1d8 at 11th level and 17th level."]
["Artificer, Sorcerer, Warlock, Wizard",0,"Green Flame Blade","Action","Evocation","No","Self","Instant","Sp Ability (LV)","Yes",null,"SM","Expand",null,"You brandish the weapon used in the spell’s casting and make a melee attack with it against one creature within 5 feet of you. On a hit, the target suffers the weapon attack’s normal effects, and you can cause green ire to leap from the target to a different creature of your choice that you can see within 5 feet of it. The second creature takes ire damage equal to your spellcasting ability modifier.\r\n\r\nAt Higher Levels\r\nAt 5th level, the melee attack deals an extra 1d8 fire damage to the target on a hit, and the fire damage to the second creature increases to 1d8 + your spellcasting ability modifier. Both damage rolls increase by 1d8 at 11th level (2d8 and 2d8) and 17th level (3d8 and 3d8)."]
["Bard",0,"Vicious Mockery","Action","Enchantment","No",60,"Instant","1d4 (Lv)","No","WIS","V","Expand",null,"You unleash a string of insults laced with subtle enchantments at a creature you can see within range. If the target can hear you (though it need not understand you), it must succeed on a Wisdom saving throw or take 1d4 psychic damage and have disadvantage on the next Attack roll it makes before the end of its next turn.\r\n\r\nThis spell's damage increases by 1d4 when you reach 5th Level (2d4), 11th level (3d4), and 17th level (4d4)."]
["Sorcerer, Wizard",1,"Chromatic Orb","Action","Evocation","No",90,"Instant","3d8","No",null,"VSM 50gp Diamond","Expand",null,"You hurl a 4-inch-diameter sphere of energy at a creature that you can see within range. You choose acid, cold, fire, lightning, poison, or thunder for the type of orb you create, and then make a ranged spell attack against the target. If the attack hits, the creature takes 3d8 damage of the type you chose.\r\n\r\nAt higher levels:\r\nWhen you cast this spell using a spell slot of 2nd level or higher, the damage increases by 1d8 for each slot level above 1st."]
["Bard, Cleric, Druid, Paladin, Ranger, Sorcerer, Wizard",1,"Detect Magic","Action (Ritual)","Divination","Yes","Self","10 Minutes",null,"No",null,"VS","Expand",null,"For the Duration, you sense the presence of magic within 30 feet of you. If you sense magic in this way, you can use your action to see a faint aura around any visible creature or object in the area that bears magic, and you learn its school of magic, if any.\r\n\r\nThe spell can penetrate most barriers, but is blocked by 1 foot of stone, 1 inch of Common metal, a thin sheet of lead, or 3 feet of wood or dirt."]
["Sorcerer, Wizard",1,"Mage Armor","Action","Abjuration","No",0,"8 Hours",null,"No",null,"VSM","Expand",null,"You touch a willing creature who isn't wearing armor, and a protective magical force surrounds it until the spell ends. The target's base AC becomes 13 + its Dexterity modifier. The spell ends it if the target dons armor or if you dismiss the spell as an action."]
["Sorcerer, Wizard",1,"Magic Missile","Action","Evocation","No",120,"Instant","1d4+1 / dart","Yes",null,"VS","Expand",null,"You create three glowing darts of magical force. Each dart hits a creature of your choice that you can see within range. A dart deals 1d4+1 force damage to its target. The darts all strike simultaneously and you can direct them to hit one creature or several.\r\n\r\nAt Higher Levels:\r\nWhen you cast this spell using a spell slot of 2nd Level or higher, the spell creates one more dart for each slot above 1st."]
["Sorcerer, Wizard",1,"Shield","Reaction","Abjuration","No","Self","1 Round",null,"No",null,"VS","Expand",null,"An Invisible barrier of magical force appears and protects you. Until the start of your next turn, you have a +5 bonus to AC, including against the triggering Attack, and you take no damage from Magic Missile."]
["Sorcerer, Warlock, Wizard",1,"Witch Bolt","Action","Evocation","Yes",30,"1 Minute","1d12","Yes",null,"VSM","Expand",null,"A beam of crackling, blue energy lances out toward a creature within range, forming a sustained arc of lightning between you and the target.\r\nMake a ranged spell attack against that creature. On a hit, the target takes 1d12 lightning damage, and on each of your turns for the duration, you can use your action to deal 1d12 lightning damage to the target automatically. The spell ends if you use your action to do anything else. The spell also ends if the target is ever outside the spell’s range or if it has total cover from you.\r\n\r\nAt higher levels:\r\nWhen you cast this spell using a spell slot of 2nd level or higher, the initial damage increases by 1d12 for each slot level above 1st."]
["Sorcerer, Wizard",1,"Ray of Sickness","Action","Necromancy","No",60,"Instant","2d8","No","CON","VS","Expand",null,"A ray of sickening greenish energy lashes out toward a creature within range. Make a ranged spell attack against the target. On a hit, the target takes 2d8 poison damage and must make a Constitution saving throw. On a failed save, it is also poisoned until the end of your next turn.\r\n\r\nAt higher levels:\r\nWhen you cast this spell using a spell slot of 2nd level or higher, the damage increases by 1d8 for each slot level above 1st."]
["Cleric, Paladin, Warlock, Wizard",1,"Protection from Evil and Good","Action","Abjuration","Yes",0,"10 Minutes",null,"No",null,"VSM","Expand",null,"Until the spell ends, one willing creature you touch is protected against certain types of creatures - Aberrations, Celestials, Elementals, fey, Fiends, and Undead.\r\n\r\nThe Protection grants several benefits. Creatures of those types have disadvantage on Attack rolls against the target. The target also can't be Charmed, Frightened, or possessed by them. If the target is already Charmed, Frightened, or possessed by such a creature, the target has advantage on any new saving throw against the relevant Effect."]
["Druid, Ranger, Sorcerer, Wizard",1,"Fog Cloud","Action","Conjuration","Yes",120,"1 Hour",null,"Yes",null,"VS","Expand",null,"You create a 20-foot-radius Sphere of fog centered on a point within range. The Sphere spreads around corners, and its area is heavily obscured. It lasts for the Duration or until a wind of moderate or greater speed (at least 10 miles per hour) disperses it.\r\n\r\nAt Higher Levels:\r\nWhen you cast this spell using a spell slot of 2nd Level or higher, the radius of the fog increases by 20 feet for each slot level above 1st."]
["Bard, Druid, Sorcerer, Wizard",1,"Thunderwave","Action","Evocation","No","15 cube","Instant","2d8","Yes","CON","VS","Expand",null,"A wave of thunderous force sweeps out from you. Each creature in a 15-foot cube originating from you must make a Constitution saving throw. On a failed save, a creature takes 2d8 thunder damage and is pushed 10 feet away from you. On a successful save, the creature takes half as much damage and isn't pushed.\r\n\r\nIn addition, unsecured Objects that are completely within the area of Effect are automatically pushed 10 feet away from you by the spell's Effect, and the spell emits a thunderous boom audible out to 300 feet.\r\n\r\nAt Higher Levels: When you cast this spell using a spell slot of 2nd Level or higher, the damage increases by 1d8 for each slot level above 1st."]
["Bard, Sorcerer, Warlock, Wizard",1,"Comprehend Languages","Action","Divination","No","Self","1 Hour",null,"No",null,"VSM","Expand",null,"For the Duration, you understand the literal meaning of any spoken language that you hear. You also understand any written language that you see, but you must be touching the surface on which the words are written. It takes about 1 minute to read one page of text.\r\n\r\nThis spell doesn’t decode Secret messages in a text or a glyph, such as an arcane sigil, that isn’t part of a written language."]
["Bard, Wizard",1,"Hideous Laughter","Action","Evocation","Yes",30,"1 Minute",null,"No","WIS","VSM","Expand",null,"A creature of your choice that you can see within range perceives everything as hilariously funny and falls into fits of laugher if this spell affects it. The target must succeed on a Wisdom saving throw of fall prone, becoming Incapacitated and unable to stand up for the Duration. A creature with an Intelligence score of 4 or less isn't affected.\r\n\r\nAt the end of each of its turns, and each time it takes damage, the target can make another Wisdom saving throw. The target has advantage on the saving throw if it's triggered by damage. On a success, the spell ends."]
["Sorcerer, Wizard",1,"False Life","Action","Necromancy","No","Self","1 Hour","1d4+4","Yes",null,"VSM","Expand",null,"Bolstering yourself with a necromantic facsimile of life, you gain 1d4+4 Temporary Hit Points for the Duration.\r\n\r\nAt Higher Levels:\r\nWhen you cast this spell using a spell slot of 2nd Level or higher, you gain 5 additional Temporary Hit Points for each slot level above 1st."]
["Sorcerer, Wizard",1,"Color Spray","Action","Illusion","No","15 cube","1 Round","6d10","Yes",null,"VSM","Expand",null,"A dazzling array of flashing, colored light springs from your hand. Roll 6d10, the total is how many Hit Points of creatures this spell can Effect. Creatures in a 15-foot cone originating from you are affected in ascending order of their current Hit Points (ignoring Unconscious creatures and creatures that can't see).\r\n\r\nStarting with the creature that has the lowest current Hit Points, each creature affected by this spell is Blinded until the spell ends. Subtract each creature's Hit Points from the total before Moving On to the creature with the next lowest Hit Points. A creature's Hit Points must be equal to or less than the remaining total for the creature to be affected.\r\n\r\nAt Higher Levels:\r\nWhen you cast this spell using a spell slot of 2nd Level or higher, roll an additional 2d10 for each slot level above 1st."]
["Ranger, Wizard",1,"Alarm","1 Minute (Ritual)","Abjuration","No",30,"8 Hours",null,"No",null,"VSM","Expand",null,"You set an alarm against unwanted intrusion. Choose a door, a window, or an area within range that is no larger than a 20-foot cube. Until the spell ends, an alarm alerts you whenever a tiny or larger creature touches or enters the warded area. When you cast the spell, you can designate creatures that won't set off the alarm. You also choose whether the alarm is mental or audible.\r\n\r\nA mental alarm alerts you with a ping in your mind if you are within 1 mile of the warded area. This ping awakens you if you are sleeping.\r\n\r\nAn audible alarm produces the sound of a hand bell for 10 seconds within 60 feet."]
["Sorcerer, Wizard",1,"Burning Hands","Action","Evocation","No","15 Cone","Instant","3d6","Yes","DEX","VS","Expand",null,"As you hold your hands with thumbs touching and fingers spread, a thin sheet of flames shoots forth from your outstretched fingertips. Each creature in a 15-foot cone must make a Dexterity saving throw. A creature takes 3d6 fire damage on a failed save, or half as much damage on a successful one.\r\n\r\nThe fire ignites any flammable Objects in the area that aren't being worn or carried.\r\n\r\nAt Higher Levels: When you cast this spell using a spell slot of 2nd Level or higher, the damage increases by 1d6 for each slot level above 1st."]
["Bard, Druid, Sorcerer, Warlock, Wizard",1,"Charm Person","Action","Enchantment","No",30,"1 Hour",null,"No","WIS","VS","Expand",null,"You attempt to charm a Humanoid you can see within range. It must make a Wisdom saving throw, and does so with advantage if you or your companions are fighting it. If it fails the saving throw, it is Charmed by you until the spell ends or until you or your companions do anything harmful to it. The Charmed creature regards you as a friendly acquaintance. When the spell ends, the creature knows it was Charmed by you.\r\n\r\nAt Higher Levels:\r\nWhen you cast this spell using a spell slot of 2nd Level or higher, you can target one additional creature for each slot level above 1st. The creatures must be within 30 feet of each other when you target them."]
["Bard, Sorcerer, Wizard",1,"Disguise Self","Action","Illusion","No","Self","1 Hour",null,"No",null,"VS","Expand",null,"You make yourself, including your clothing, armor, Weapons, and other belongings on your person, look different until the spell ends or until you use your action to dismiss it. You can seem 1 foot shorter or taller and can appear thin, fat, or in between. You can't change your body type, so you must adopt a form that has the same basic arrangement of limbs. Otherwise, the extent of the Illusion is up to you.\r\n\r\nThe changes wrought by this spell fail to hold up to physical inspection. For example, if you use this spell to add a hat to your outfit, Objects pass through the hat, and anyone who touches it would feel nothing or would feel your head and hair. If you use this spell to appear thinner than you are, the hand of someone who reaches out to touch you would bump into you while it was seemingly still in midair.\r\n\r\nTo discern that you are disguised, a creature can use its action to inspect your appearance and must succeed on an Intelligence (Investigation) check against your spell save DC."]
["Sorcerer, Warlock, Wizard",1,"Expeditious Retreat","Bonus Action","Transmutation","Yes","Self","10 Minutes",null,"No",null,"VS","Expand",null,"This spell allows you to move at an incredible pace. When you cast this spell, and then as a Bonus Action on each of your turns until the spell ends, you can take the Dash action."]
["Bard, Sorcerer, Wizard",1,"Feather Fall","Reaction","Transmutation","No",60,"1 minute",null,"No",null,"VM","Expand",null,"Reaction - When you or a creature within 60 feet of you falls Choose up to five Falling creatures within range. A Falling creature's rate of descent slows to 60 feet per round until the spell ends. If the creature lands before the spell ends, it takes no Falling damage and can land on its feet, and the spell ends for that creature."]
["Wizard",1,"Find Familiar","1 Hour","Conjuration","No",10,"Instant",null,"No",null,"VSM 10gp charcoal, incense, herbs (consumed)","Expand",null,"You gain the service of a familiar, a spirit that takes an animal form you choose: bat, cat, crab, frog (toad), hawk, Lizard, Octopus, owl, Poisonous Snake, fish (quipper), rat, raven, Sea Horse, Spider, or Weasel. Appearing in an unoccupied space within range, the familiar has the Statistics of the chosen form, though it is a Celestial, fey, or fiend (your choice) instead of a beast.\r\n\r\nYour familiar acts independently of you, but it always obeys your commands. In Combat, it rolls its own Initiative and acts on its own turn. A familiar can't Attack, but it can take other Actions as normal.\r\n\r\nWhen the familiar drops to 0 Hit Points, it disappears, leaving behind no physical form. It reappears after you cast this spell again.\r\n\r\nWhile your familiar is within 100 feet of you, you can communicate with it telepathically. Additionally, as an action, you can see through your familiar's eyes and hear what it hears until the start of your next turn, gaining the benefits of any Special Senses that the familiar has. During this time, you are deaf and blind with regard to your own Senses.\r\n\r\nAs an action, you can temporarily dismiss your familiar. It disappears into a pocket dimension where it awaits your summons. Alternatively, you can dismiss it forever. As an action while it is temporarily dismissed, you can cause it to reappear in any unoccupied space within 30 feet of you.\r\n\r\nYou can't have more than one familiar at a time. If you cast this spell while you already have a familiar, you instead cause it to adopt a new form. Choose one of the forms from the above list. Your familiar transforms into the chosen creature.\r\n\r\nFinally, when you Cast a Spell with a range of touch, your familiar can deliver the spell as if it had cast the spell. Your familiar must be within 100 feet of you, and it must use its Reaction to deliver the spell when you cast it. If the spell requires an Attack roll, you use your Attack modifier for the roll."]
["Wizard",1,"Floating Disk","Action (Ritual)","Conjuration","No",30,"1 Hour",null,"No",null,"VSM","Expand",null,"This spell creates a circular, horizontal plane of force, 3 feet in diameter and 1 inch thick, that floats 3 feet above the ground in an unoccupied space of your choice that you can see within range. The disk remains for the Duration, and can hold up to 500 pounds. If more weight is placed on it, the spell ends, and everything on the disk falls to the ground.\r\n\r\nThe disk is immobile while you are within 20 feet of it. If you move more than 20 feet away from it, the disk follows you so that it remains within 20 feet of you. It can more across uneven terrain, up or down stairs, slopes and the like, but it can't cross an elevation change of 10 feet or more. For example, the disk can't move across a 10-foot-deep pit, nor could it leave such a pit if it was created at the bottom.\r\n\r\nIf you move more than 100 feet from the disk (typically because it can't move around an obstacle to follow you), the spell ends."]
["Wizard",1,"Grease","Action","Conjuration","No",60,"1 Minute",null,"No","DEX","VSM","Expand",null,"Slick grease covers the ground in a 10-foot square centered on a point within range and turns it into Difficult Terrain for the Duration.\r\n\r\nWhen the grease appears, each creature standing in its area must succeed on a Dexterity saving throw or fall prone. A creature that enters the area or ends its turn there must also succeed on a Dexterity saving throw or fall prone."]
["Bard, Wizard",1,"Identify","1 Minute (Ritual)","Divination","No","Touch","Instant",null,"No",null,"VSM 100gp pearl","Expand",null,"You choose one object that you must touch throughout the casting of the spell. If it is a magic item or some other magic-imbued object, you learn its properties and how to use them, whether it requires Attunement to use, and how many Charges it has, if any. You learn whether any Spells are affecting the item and what they are. If the item was created by a spell, you learn which spell created it.\r\n\r\nIf you instead touch a creature throughout the casting, you learn what Spells, if any, are currently affecting it."]
["Bard, Warlock, Wizard",1,"Illusory Script","1 Minute (Ritual)","Illusion","No","Touch","10 Days",null,"No",null,"SM 10gp lead-based ink (consumed)","Expand",null,"You write on Parchment, paper, or some other suitable writing material and imbue it with a potent Illusion that lasts for the Duration.\r\n\r\nTo you and any creatures you designate when you cast the spell, the writing appears normal, written in your hand, and conveys whatever meaning you intended when you wrote the text. To all others, the writing appears as if it were written in an unknown or magical script that is unintelligible. Alternatively, you can cause the writing to appear to be an entirely different Message, written in a different hand and language, though the language must be one you know.\r\n\r\nShould the spell be dispelled, the original script and the Illusion both disappear.\r\n\r\nA creature with Truesight can read the hidden Message."]
["Druid, Ranger, Sorcerer, Wizard",1,"Jump","Action","Transmutation","No","Touch","1 Minute",null,"No",null,"VSM","Expand",null,"You touch a creature. The creature's jump distance is tripled until the spell ends."]
["Bard, Druid, Ranger, Wizard",1,"Longstrider","Action","Transmutation","No","Touch","1 Hour",null,"Yes",null,"VSM","Expand",null,"You touch a creature. The target's speed increases by 10 feet until the spell ends.\r\n\r\nAt Higher Levels:\r\nWhen you cast this spell using a spell slot of 2nd Level or higher, you can target one additional creature for each slot level above 1st."]
["Bard, Sorcerer, Wizard",1,"Silent Image","Action","Illusion","Yes",60,"10 Minutes",null,"No",null,"VSM","Expand",null,"You create the image of an object, a creature, or some other visible phenomenon that is no larger than a 15-foot cube. The image appears at a spot within range and lasts for the Duration. The image is purely visual, it isn't accompanied by sound, smell, or other sensory Effects.\r\n\r\nYou can use your action to cause the image to move to any spot within range. As the image changes location, you can alter its appearance so that its movements appear natural for the image. For example, if you create an image of a creature and move it, you can alter the image so that it appears to be walking.\r\n\r\nPhysical interaction with the image reveals it to be an Illusion, because things can pass through it. A creature that uses its action to examine the image can determine that it is an Illusion with a successful Intelligence (Investigation) check against your spell save DC. If a creature discerns the Illusion for what it is, the creature can see through the image."]
["Bard, Sorcerer, Wizard",1,"Sleep","Action","Enchantment","No",90,"1 minute","5d8","Yes",null,"VSM","Expand",null,"This spell sends creatures into a magical slumber. Roll 5d8, the total is how many Hit Points of creatures this spell can affect. Creatures within 20 feet of a point you choose within range are affected in ascending order of their current Hit Points (ignoring Unconscious creatures).\r\n\r\nStarting with the creature that has the lowest current Hit Points, each creature affected by this spell falls Unconscious until the spell ends, the sleeper takes damage, or someone uses an action to shake or slap the sleeper awake. Subtract each creature's Hit Points from the total before Moving On to the creature with the next lowest Hit Points. A creature's Hit Points must be equal to or less than the remaining total for that creature to be affected.\r\n\r\nUndead and creatures immune to being Charmed aren't affected by this spell.\r\n\r\nAt Higher Levels: When you cast this spell using a spell slot of 2nd Level or higher, roll an additional 2d8 for each slot level above 1st."]
["Bard, Warlock, Wizard",1,"Unseen Servant","Action (Ritual)","Conjuration","No",60,"1 Hour",null,"No",null,"VSM","Expand",null,"This spell creates an Invisible, mindless, shapeless force that performs simple tasks at your Command until the spell ends. The servant springs into existence in an unoccupied space on the ground within range. It has AC 10, 1 hit point, and a Strength of 2, and it can't Attack. If it drops to 0 Hit Points, the spell ends.\r\n\r\nOnce on each of your turns as a Bonus Action, you can mentally Command the servant to move up to 15 feet and interact with an object. The servant can perform simple tasks that a human servant could do, such as fetching things, cleaning, Mending, folding clothes, lighting fires, serving food, and pouring wine. Once you give the Command, the servant performs the task to the best of its ability until it completes the task, then waits for your next Command.\r\n\r\nIf you Command the servant to perform a task that would move it more than 60 feet away from you, the spell ends."]
["Cleric, Paladin",1,"Bless","Action","Enchantment","Yes",30,"1 Minute",null,"Yes",null,"VSM","Expand",null,"You bless up to three creatures of your choice within range. Whenever a target makes an attack roll or a saving throw before the spell ends, the target can roll a d4 and add the number rolled to the attack roll or saving throw.\r\n\r\nAt Higher Levels:\r\nWhen you cast this spell using a spell slot of 2nd level or higher, you can target one additional creature for each slot level above 1st."]
["Cleric, Paladin",1,"Command","Action","Evocation","No",60,"1 Round",null,"Yes","WIS","V","Expand",null,"You speak a one-word command to a creature you can see within range. The target must succeed on a Wisdom saving throw or follow the command on its next turn. The spell has no Effect if the target is Undead, if it doesn't understand your language, or if your command is directly harmful to it.\r\n\r\nSome typical commands and their Effects follow. You might issue a command other than one described here. If you do so, the DM determines how the target behaves. If the target can't follow your command, the spell ends.\r\n\r\nApproach: The target moves toward you by the shortest and most direct route, Ending its turn if it moves within 5 feet of you.\r\n\r\nDrop: The target drops whatever it is holding and then ends its turn.\r\n\r\nFlee: The target spends its turn moving away from you by the fastest available means.\r\n\r\nGrovel: The target falls prone and then ends its turn.\r\n\r\nHalt: The target doesn't move and takes no Actions. A flying creature stays aloft, provided that it is able to do so. If it must move to stay aloft, it flies the minimum distance needed to remain in the air.\r\n\r\nAt Higher Levels: When you cast this spell using a spell slot of 2nd Level or higher, you can affect one additional creature for each slot level above 1st. The creatures must be within 30 feet of each other when you target them."]
["Bard, Cleric, Druid, Paladin, Ranger",1,"Cure Wounds","Action","Evocation","No","Touch","Instant",null,"Yes",null,"VS","Expand",null,"A creature you touch regains a number of Hit Points equal to 1d8 + your Spellcasting Ability modifier. This spell has no Effect on Undead or Constructs.\r\n\r\nAt Higher Levels: When you cast this spell using a spell slot of 2nd Level or higher, the Healing increases by 1d8 for each slot level above 1st."]
["Cleric, Paladin",1,"Detect Evil and Good","Action","Divination","Yes","Self","10 Minutes",null,"No",null,"VS","Expand",null,"For the Duration, you know if there is an Aberration, Celestial, elemental, fey, fiend, or Undead within 30 feet of you, as well as where the creature is located. Similarly, you know if there is a place or object within 30 feet of you that has been magically consecrated or desecrated. The spell can penetrate most barriers, but it is blocked by 1 foot of stone, 1 inch of Common metal, a thin sheet of lead, or 3 feet of wood or dirt."]
["Cleric, Druid, Paladin, Ranger",1,"Detect Poison And Disease","Action","Divination","Yes","SElf","10 Minutes",null,"No",null,"VSM","Expand",null,"For the Duration, you can sense the presence and location of Poisons, poisonous creatures, and Diseases within 30 feet of you. You also Identify the kind of poison, poisonous creature, or disease in each case.\r\n\r\nThe spell can penetrate most barriers, but is blocked by 1 foot of stone, 1 inch of Common metal, a thin sheet of lead, or 3 feet of wood or dirt."]
["Paladin",1,"Divine Favor","Bonus Action","Evocation","Yes","Self","1 Minute",null,"No",null,"VS","Expand",null,"Your prayer empowers you with divine radiance. Until the spell ends, your weapon attacks deal an extra 1d4 radiant damage on a hit."]
["Bard, Paladin",1,"Heroism","Action","Evocation","Yes","Touch","1 Minute",null,"Yes",null,"VS","Expand",null,"A willing creature you touch is imbued with bravery. Until the spell ends, the creature is immune to being Frightened and gains Temporary Hit Points equal to your Spellcasting Ability modifier at the start of each of its turns. When the spell ends, the target loses any remaining Temporary Hit Points from this spell.\r\n\r\nAt Higher Levels\r\nWhen you cast this spell using a spell slot of 2nd Level or higher, you can target one additional creature for each slot level above 1st."]
["Cleric, Druid, Paladin",1,"Purify Food and Drink","Action (ritual)","Transmutation","No","10 Feet","Instant",null,"No",null,"VS","Expand",null,"All nonmagical food and drink within a 5-foot-radius Sphere centered on a point of your choice within range is Purified and rendered free of poison and disease."]
["Cleric, Paladin",1,"Shield of Faith","Bonus Action","Abjuration","Yes","60 Feet","10 Minutes",null,"No",null,"VSM","Expand",null,"A shimmering field appears and surrounds a creature of your choice within range, granting it a +2 bonus to AC for the Duration."]
["Bard, Cleric",1,"Bane","Action","Enchantment","Yes",30,"1 Minute",null,"No","CHA","VSM","Expand",null,"Up to three creatures of your choice that you can see within range must make Charisma Saving Throws. Whenever a target that fails this saving throw makes an Attack roll or a saving throw before the spell ends, the target must roll a d4 and subtract the number rolled from the Attack roll or saving throw.\r\n\r\nAt Higher Levels\r\nWhen you cast this spell using a spell slot of 2nd Level or higher, you can target one additional creature for each slot level above 1st."]
["Ranger",1,"Hunter's Mark","Bonus Action","Divination","Yes",90,"1 Hour","1d6","No",null,"V","Expand",null,"You choose a creature you can see within range and mystically mark it as your quarry. Until the spell ends, you deal an extra 1d6 damage to the target whenever you hit it with a weapon Attack, and you have advantage on any Wisdom (Perception) or Wisdom (Survival) check you make to find it. If the target drops to 0 Hit Points before this spell ends, you can use a Bonus Action on a subsequent turn of yours to mark a new creature.\r\n\r\nAt Higher Levels: When you cast this spell using a spell slot of 3rd or 4th Level, you can maintain your Concentration on the spell for up to 8 hours. When you use a spell slot of 5th Level or higher, you can maintain your Concentration on the spell for up to 24 hours."]
["Bard, Druid, Ranger",1,"Animal Friendship","Action","Enchantment","No",30,"24 Hours",null,"Yes","WIS","VSM","Expand",null,"This spell lets you convince a beast that you mean it no harm. Choose a beast that you can see within range. It must see and hear you. If the beast's Intelligence is 4 or higher, the spell fails. Otherwise, the beast must succeed on a Wisdom saving throw or be Charmed by you for the spell's Duration. If you or one of your companions harms the target, the Spells ends.\r\n\r\nAt Higher Levels: When you cast this spell using a spell slot of 2nd Level or higher, you can affect one additional beast level above 1st."]
["Bard, Druid",1,"Faerie Fire","Action","Evocation","Yes",60,"1 Minute",null,"No","DEX","V","Expand",null,"Each object in a 20-foot cube within range is outlined in blue, green, or violet light (your choice). Any creature in the area when the spell is cast is also outlined in light if it fails a Dexterity saving throw. For the Duration, Objects and affected creatures shed dim light in a 10-foot radius.\r\n\r\nAny Attack roll against an affected creature or object has advantage if the attacker can see it, and the affected creature or object can't benefit from being Invisible."]
["Bard, Cleric, Druid",1,"Healing Word","Bonus Action","Evocation","No",60,"Instant","1d4 + SpAbil","Yes",null,"V","Expand",null,"A creature of your choice that you can see within range regains Hit Points equal to 1d4 + your Spellcasting Ability modifier. This spell has no Effect on Undead or Constructs.\r\n\r\nAt Higher Levels: When you cast this spell using a spell slot of 2nd Level or higher, the Healing increases by 1d4 for each slot level above 1st."]
["Bard, Druid, Ranger",1,"Speak With Animals","Action (Ritual)","Divination","No","Self","10 Minutes",null,"No",null,"VS","Expand",null,"You gain the ability to comprehend and verbally communicate with Beasts for the Duration. The knowledge and awareness of many Beasts is limited by their Intelligence, but at minimum, Beasts can give you information about nearby locations and Monsters, including whatever they can perceive or have perceived within the past day. You might be able to persuade a beast to perform a small favor for you, at the DM's discretion."]
["Sorcerer, Warlock, Wizard",2,"Darkness","Action","Evocation","Yes",60,"10 Minutes",null,"No",null,"VM","Expand",null,"Magical darkness spreads from a point you choose within range to fill a 15-foot radius Sphere for the Duration. The darkness spreads around corners. A creature with Darkvision can't see through this darkness, and nonmagical light can't illuminate it.\r\n\r\nIf the point you choose is on an object you are holding or one that isn't being worn or carried, the darkness emanates from the object and moves with it. Completely covering the source of the darkness with an opaque object, such as a bowl or a helm, blocks the darkness.\r\n\r\nIf any of this spell's area overlaps with an area of light created by a spell of 2nd Level or lower, the spell that created the light is dispelled."]
["Warlock",2,"Hellish Rebuke","Reaction","Evocation","No",60,"Instant","2d10","No","DEX","VS","Expand",null,"You point your finger, and the creature that damaged you is momentarily surrounded by hellish flames. The creature must make a Dexterity saving throw. It takes 2d10 fire damage on a failed save, or half as much damage on a successful one.\r\n\r\nAt Higher Levels:\r\nWhen you cast this spell using a spell slot of 2nd Level or higher, the damage increases by 1d10 for each slot level above 1st."]
["Bard, Cleric, Druid, Sorcerer, Warlock, Wizard",2,"Hold Person","Action","Enchantment","Yes",60,"1 Minute",null,"No","WIS","VSM","Expand",null,"Choose a Humanoid that you can see within range. The target must succeed on a Wisdom saving throw or be Paralyzed for the Duration. At the end of each of its turns, the target can make another Wisdom saving throw. On a success, the spell ends on the target.\r\n\r\nAt Higher Levels:\r\nWhen you cast this spell using a spell slot of 3rd Level or higher, you can target on additional Humanoid for each slot level above 2nd. The Humanoids must be within 30 feet of each other when you target them."]
["Bard, Sorcerer, Warlock, Wizard",2,"Invisibility","Action","Illusion","Yes",0,"1 Hour",null,"No",null,"VSM","Expand",null,"A creature you touch becomes Invisible until the spell ends. Anything the target is wearing or carrying is Invisible as long as it is on the target's person. The spell ends for a target that attacks or casts a spell.\r\n\r\nAt Higher Levels:\r\nWhen you cast this spell using a spell slot of 3rd Level or higher, you can target one additional creature for each slot level above 2nd."]
["Sorcerer, Warlock, Wizard",2,"Misty Step","Bonus Action","Conjuration","No","Self","Instant",null,"No",null,"V","Expand",null,"Briefly surrounded by silvery mist, you Teleport up to 30 feet to an unoccupied space that you can see."]
["Sorcerer, Wizard",2,"Scorching Ray","Action","Evocation","No",120,"Instant","2d6","Yes",null,"VS","Expand",null,"You create three rays of fire and hurl them at Targets within range. You can hurl them at one target or several.\r\n\r\nMake a ranged spell Attack for each ray. On a hit, the target takes 2d6 fire damage.\r\n\r\nAt Higher Levels:\r\nWhen you cast this spell using a spell slot of 3rd Level or higher, you create one additional ray for each slot level above 2nd."]
["Bard, Sorcerer, Warlock, Wizard",2,"Suggestion","Action","Enchantment","Yes",30,"8 Hours",null,"No","WIS","VM","Expand",null,"You suggest a course of activity (limited to a sentence or two) and magically influence a creature you can see within range that can hear and understand you. Creatures that can't be Charmed are immune to this Effect. The suggestion must be worded in such a manner as to make the course of action sound reasonable. Asking the creature to stab itself, throw itself onto a spear, immolate itself, or do some other obviously harmful act ends the spell.\r\n\r\nThe target must make a Wisdom saving throw. On a failed save, it purses the course of action you described to the best of its ability. The suggested course of action can continue for the entire Duration. If the suggested activity can be completed in a shorter time, the spell ends when the subject finishes what it was asked to do.\r\n\r\nYou can also specify Conditions that will trigger a Special activity during the Duration. For example, you might suggest that a Knight give her Warhorse to the first Beggar she meets. If the condition isn't met before the spell expires, the activity isn't preformed.\r\n\r\nIf you or any of your companions damage the target, the spell ends."]
["Druid, Wizard",2,"Flaming Sphere","Action","Conjuration","Yes",60,"1 Minute","2d6","Yes","DEX","VSM","Expand",null,"A 5-foot-diameter Sphere of fire appears in an unoccupied space of your choice within range and lasts for the Duration. Any creature that ends its turn within 5 feet of the Sphere must make a Dexterity saving throw. The creature takes 2d6 fire damage on a failed save, or half as much damage on a successful one.\r\n\r\nAs a Bonus Action, you can move the Sphere up to 30 feet. If you ram the Sphere into a creature, that creature must make the saving throw against the sphere's damage, and the Sphere stops moving this turn.\r\n\r\nWhen you move the Sphere, you can direct it over barriers up to 5 feet tall and jump it across pits up to 10 feet wide. The Sphere ignites flammable Objects not being worn or carried, and it sheds bright light in a 20-foot radius and dim light for an additional 20 feet.\r\n\r\nAt Higher Levels:\r\nWhen you cast this spell using a spell slot of 3rd Level or higher, the damage increases by 1d6 for each slot level above 2nd."]
["Bard, Sorcerer, Wizard",2,"Knock","Action","Transmutation","No",60,"Instant",null,"No",null,"V","Expand",null,"Choose an object that you can see within range. The object can be a door, a box, a chest, a set of Manacles, a padlock, or another object that contains a mundane or magical means that prevents access.\r\n\r\nA target that is held shut by a mundane lock or that is stuck or barred becomes unlocked, unstuck, or unbarred. If the object has multiple locks, only one of them is unlocked.\r\n\r\nIf you choose a target that is held shut with Arcane Lock, that spell is suppressed for 10 minutes, during which time the target can be opened and shut normally.\r\n\r\nWhen you cast the spell, a loud knock, audible from as far away as 300 feet, emanates from the target object."]
["Paladin, Wizard",2,"Magic Weapon","Bonus Action","Transmutation","Yes","Touch","1 Hour",null,"Yes",null,"VS","Expand",null,"You touch a nonmagical weapon. Until the spell ends, that weapon becomes a magic weapon with a +1 bonus to Attack rolls and Damage Rolls.\r\n\r\nAt Higher Levels:\r\nWhen you cast this spell using a spell slot of 4th Level or higher, the bonus increases to +2. When you use a spell slot of 6th level or higher, the bonus increases to +3."]
["Wizard",2,"Acid Arrow","Action","Evocation","No",90,"Instant","4d4","Yes",null,"VSM","Expand",null,"You step into the border regions of the Ethereal Plane, in the area where it overlaps with your current plane. You remain in the Border Ethereal for the Duration or until you use your action to dismiss the spell. During this time, you can move in any direction. If you move up or down, every foot of Movement costs an extra foot. You can see and hear the plan you originated from, but everything there looks gray, and you can't see anything more than 60 feet away.\r\n\r\nWhile on the Ethereal Plane, you can only affect and be affected by other creatures on that plane. Creatures that aren't on the Ethereal Plane can't perceive you and can't interact with you, unless a Special ability or magic has given them the ability to do so.\r\n\r\nYou ignore all Objects and Effects that aren't on the Ethereal Plane, allowing you to move through Objects you perceive on the plan you originated from.\r\n\r\nWhen the spell ends, you immediately return to the plane you originated from in the spot you currently occupy. If you occupy the same spot as a solid object or creature when this happens, you are immediately shunted to the nearest unoccupied space that you can occupy and take force damage equal to twice the number of feet you are moved.\r\n\r\nThis spell has no Effect if you cast it while you are on the Ethereal Plane or a plane that doesn't border it, such as one of the Outer Planes.\r\n\r\nAt Higher Levels:\r\nWhen you cast this spell using a spell slot of 8th level or higher, you can target up to three willing creatures (including you) for each slot level above 7th. The creatures must be within 10 feet of you when you cast the spell."]
["Sorcerer, Wizard",2,"Alter Self","Action","Transmutation","Yes","Self","1 Hour",null,"No",null,"VS","Expand",null,"You assume a different form. When you cast the spell, choose one of the following options, the Effects of which last for the Duration of the spell. While the spell lasts, you can end one option as an action to gain the benefits of a different one.\r\n\r\nAquatic Adaptation: You adapt your body to an aquatic Environment, sprouting gills, and growing webbing between your fingers. You can breathe Underwater and gain a swimming speed equal to your walking speed.\r\n\r\nChange Appearance: You transform your appearance. You decide what you look like, including your height, weight, facial features, sound of your voice, hair length, coloration, and distinguishing characteristics, if any. You can make yourself appear as a member of another race, though none of your Statistics change. You also don't appear as a creature of a different size than you, and your basic shape stays the same, if you're bipedal, you can't use this spell to become quadrupedal, for instance. At any time for the Duration of the spell, you can use your action to change your appearance in this way again.\r\n\r\nNatural Weapons: You grow claws, fangs, spines, horns, or a different natural weapon of your choice. Your unarmed strikes deal 1d6 bludgeoning, piercing, or slashing damage, as appropriate to the natural weapon you chose, and you are proficient with your unarmed strikes. Finally, the natural weapon is magic and you have a +1 bonus to the Attack and Damage Rolls you make using it."]
["Wizard",2,"Arcane Lock","Action","Abjuration","No","Touch","Indef",null,"No",null,"VSM 25gp gold dust (consumed)","Expand",null,"You touch a closed door, window, gate, chest, or other entryway, and it becomes locked for the Duration. You and the creatures you designate when you cast this spell can open the object normally. You can also set a password that, when spoken within 5 feet of the object, suppresses this spell for 1 minute. Otherwise, it is impassable until it is broken or the spell is dispelled or suppressed. Casting knock on the object suppresses arcane lock for 10 minutes.\r\n\r\nWhile affected by this spell, the object is more difficult to break or force open; the DC to break it or pick any locks on it increases by 10."]
["Wizard",2,"Arcanist's Magic Aura","Action","Illusion","No","Touch","24 Hours",null,"No",null,"VSM","Expand",null,"You place an Illusion on a creature or an object you touch so that Divination Spells reveal false information about it. The target can be a willing creature or an object that isn't being carried or worn by another creature.\r\n\r\nWhen you cast the spell, choose one or both of the following Effects. The Effect lasts for the Duration. If you cast this spell on the same creature or object every day for 30 days, placing the same Effect on it each time, the Illusion lasts until it is dispelled.\r\n\r\nFalse Aura: You change the way the target appears to Spells and magical Effects, such as Detect Magic, that detect magical auras. You can make a nonmagical object appear magical, a magical object appear nonmagical, or change the object's magical aura so that it appears to belong to a specific school of magic that you choose. When you use this Effect on an object, you can make the false magic apparent to any creature that handles the item.\r\n\r\nMask: You change the way the target appears to Spells and magical Effects that detect creature types, such as a paladin's Divine Sense or the trigger of a Symbol spell. You choose a creature type and other Spells and magical Effects treat the target as if it were a creature of that type or of that Alignment."]
["Bard, Cleric, Sorcerer, Wizard",2,"Blindness Deafness","Action","Necromancy","No",30,"1 Minute",null,"Yes","CON","V","Expand",null,"You can blind or deafen a foe. Choose one creature that you can see within range to make a Constitution saving throw. If it fails, the target is either Blinded or Deafened (your choice) for the Duration. At the end of each of its turns, the target can make a Constitution saving throw. On a success, the spell ends.\r\n\r\nAt Higher Levels:\r\nWhen you cast this spell using a spell slot of 3rd Level or higher, you can target one additional creature for each slot level above 2nd."]
["Sorcerer, Wizard",2,"Blur","Action","Illusion","Yes","Self","1 Minute",null,"No",null,"V","Expand",null,"Your body becomes blurred, shifting and wavering to all who can see you. For the Duration, any creature has disadvantage on Attack rolls against you. An attacker is immune to this Effect if it doesn't rely on sight, as with Blindsight, or can see through illusions, as with Truesight."]
["Cleric, Wizard",2,"Continual Flame","Action","Evocation","No","Touch","Indef",null,"No",null,"VSM 50gp Ruby Dust (consumed)","Expand",null,"A flame, equivalent in brightness to a torch, springs forth from an object that you touch. The Effect looks like a regular flame, but it creates no heat and doesn't use oxygen. A continual flame can be covered or hidden but not smothered or quenched."]
["Druid, Ranger, Sorcerer, Wizard",2,"Darkvision","Action","Transmutation","No","Touch","8 Hours",null,"No",null,"VSM","Expand",null,"You touch a willing creature to grant it the ability to see in the dark. For the Duration, that creature has Darkvision out to a range of 60 feet."]
["Bard, Sorcerer, Wizard",2,"Detect Thoughts","Action","Divination","Yes","Self","1 Minute",null,"No","WIS",null,"Expand",null,"For the Duration, you can read the thoughts of certain creatures. When you cast the spell and as your action on each turn until the spell ends, you can focus your mind on any one creature that you can see within 30 feet of you. If the creature you choose has an Intelligence of 3 or lower or doesn't speak any language, the creature is unaffected.\r\n\r\nYou initially learn the surface thoughts of the creature - what is most on its mind in that moment. As an action, you can either shift your attention to another creature's thoughts or attempt to probe deeper into the same creature's mind. If you probe deeper, the target must make a Wisdom saving throw. If it fails, you gain Insight into its reasoning (if any), its emotional state, and something that looms large in its mind (such as something it worries over, loves, or hates). If it succeeds, the spell ends. Either way, the target knows that you are probing into its mind, and unless you shift your attention to another creature's thoughts, the creature can use its action on its turn to make an Intelligence check contested by your Intelligence check if it succeeds, the spell ends.\r\n\r\nQuestions verbally directed at the target creature naturally shape the course of its thoughts, so this spell is particularly effective as part of an interrogation.\r\n\r\nYou can also use this spell to detect the presence of thinking creatures you can't see. When you cast the spell or as your action during the Duration, you can Search for thoughts within 30 feet of you. The spell can penetrate barriers, but 2 feet of rock, 2 inches of any metal other than lead, or a thin sheet of lead blocks you. You can't detect a creature with an Intelligence of 3 or lower or one that doesn't speak any language.\r\n\r\nOnce you detect the presence of a creature in this way, you can read its thoughts for the rest of the Duration as described above, even if you can't see it, but it must still be within range."]
["Sorcerer, Wizard",2,"Enlarge Reduce","Action","Transmutation","Yes",30,"1 Minute",null,"No","CON","VSM","Expand",null,"You cause a creature or an object you can see within range to grow larger or smaller for the Duration. Choose either a creature or an object that is neither worn nor carried. If the target is unwilling, it can make a Constitution saving throw. On a success, the spell has no Effect.\r\n\r\nIf the target is a creature, everything it is wearing and carrying changes size with it. Any item dropped by an affected creature returns to normal size at once.\r\n\r\nEnlarge. The target's size doubles in all dimensions, and its weight is multiplied by eight. This growth increases its size by one category - from Medium to Large, for example. If there isn't enough room for the target to double its size, the creature or object attains the maximum possible size in the space available. Until the spell ends, the target also has advantage on Strength Checks and Strength Saving Throws. The target's Weapons also grow to match its new size. While these Weapons are enlarged, the target's Attack with them deal 1d4 extra damage.\r\n\r\nReduce. The target's size is halved in all dimensions, and its weight is reduced to one-eighth of normal. This reduction decreases its size by one category - from Medium to Small, for example. Until the spell ends, the target also has disadvantage on Strength Checks and Strength Saving Throws. The target's Weapons also shrink to match its new size. While these Weapons are reduced, the target's attacks with them deal 1d4 less damage (this can't reduce the damage below 1)."]
["Cleric, Wizard",2,"Gentle Repose","Action","Necromancy","No","Touch","10 Days",null,"No",null,"VSM","Expand",null,"You touch a corpse or other remains. For the Duration, the target is protected from decay and can't become Undead.\r\n\r\nThe spell also effectively extends the time limit on raising the target from the dead, since days spent under the influence of this spell don't count against the time limit of Spells such as Raise Dead."]
["Druid, Sorcerer, Wizard",2,"Gust of Wind","Action","Evocation","Yes","60 Line","1 Minute",null,"No","STR","VSM","Expand",null,"A line of strong wind 60 feet long and 10 feet wide blasts from you in a direction you choose for the spell's Duration. Each creature that starts its turn in the line must succeed on a Strength saving throw or be pushed 15 feet away from you in a direction following the line.\r\n\r\nAny creature in the line must spend 2 feet of Movement for every 1 foot it moves when moving closer to you.\r\n\r\nThe gust disperses gas or vapor, and it extinguishes candles, torches, and similar unprotected flames in the area. It causes protected flames, such as those of lanterns, to dance wildly and has a 50 percent chance to extinguish them.\r\n\r\nAs a Bonus Action on each of your turns before the spell ends, you can change the direction in which the line blasts from you."]
["Sorcerer, Wizard",2,"Levitate","Action","Transmutation","Yes",60,"10 Minutes",null,"No","CON","VSM","Expand",null,"One creature or object of your choice that you can see within range rises vertically, up to 20 feet, and remains suspended there for the Duration. The spell can levitate a target that weighs up to 500 pounds. An unwilling creature that succeeds on a Constitution saving throw is unaffected.\r\n\r\nThe target can move only by pushing or pulling against a fixed object or surface within reach (such as a wall or a ceiling), which allows it to move as if it were climbing. You can change the target's altitude by up to 20 feet in either direction on Your Turn. If you are the target, you can move up or down as part of your move. Otherwise, you can use your action to move the target, which must remain within the spell's range.\r\n\r\nWhen the spell ends, the target floats gently to the ground if it is still aloft."]
["Bard, Cleric, Druid, Paladin, Ranger, Wizard",2,"Locate Object","Action","Divination","Yes","Self","10 Minutes",null,"No",null,"VSM","Expand",null,"Describe or name an object that is familiar to you. You sense the direction to the object's location, as long as that object is within 1,000 feet of you. If the object is in motion, you know the direction of its Movement.\r\n\r\nThe spell can locate a specific object known to you, as long as you have seen it up close - within 30 feet - at least once. Alternatively, the spell can locate the nearest object of a particular kind, such as a certain kind of apparel, jewelry, furniture, tool, or weapon.\r\n\r\nThis spell can't locate an object if any thickness of lead, even a thin sheet, blocks a direct path between you and the object."]
["Bard, Wizard",2,"Magic Mouth","1 minute (Ritual)","Illusion","No",30,"Indef",null,"No",null,"VSM 10gp Jade dust (consumed)","Expand",null,"You implant a Message within an object in range, a Message that is uttered when a trigger condition is met. Choose an object that you can see and that isn't being worn or carried by another creature. Then speak the Message, which must be 25 words or less, though it can be delivered over as long as 10 minutes. Finally, determine the circumstance that will trigger the spell to deliver your Message.\r\n\r\nWhen that circumstance occurs, a magical mouth appears on the object and recites the Message in your voice and at the same volume you spoke. If the object you chose has a mouth or something that looks like a mouth (for example, the mouth of a statue), the magical mouth appears there so that words appear to come from the object's mouth. When you cast this spell, you can have the spell end after it delivers its Message, or it can remain and repeats its Message whenever the trigger occurs.\r\n\r\nThe triggering circumstance can be as general or as detailed as you like, though it must be based on visual or audible Conditions that occur within 30 feet of the object. For example, you could instruct the mouth to speak when any creature moves within 30 feet of the object or when a silver bell rings within 30 feet of it."]
["Sorcerer, Warlock, Wizard",2,"Mirror Image","Action","Illusion","No","Self","1 Minute",null,"No",null,"VS","Expand",null,"Three illusory duplicates of yourself appear in your space. Until the spell ends, the duplicates move with you and mimic your Actions, shifting position so it's impossible to track which image is real. You can use your action to dismiss the illusory duplicates.\r\n\r\nEach time a creature Targets you with an Attack during the spell's Duration, roll a d20 to determine whether the Attack instead Targets one of your duplicates.\r\n\r\nIf you have three duplicates, you must roll a 6 or higher to change the attack's target to a duplicate. With two duplicates, you must roll an 8 or higher. With one duplicate, you must roll an 11 or higher.\r\n\r\nA duplicate's AC equals 10 + your Dexterity modifier. If an Attack hits a duplicate, the duplicate is destroyed. A duplicate can be destroyed only by an Attack that hits it. It ignores all other damage and Effects. The spell ends when all three duplicates are destroyed.\r\n\r\nA creature is unaffected by this spell if it can't see, if it relies on Senses other than sight, such as Blindsight, or if it can perceive illusions as false, as with Truesight."]
["Warlock, Wizard",2,"Ray of Enfeeblement","Action","Necromancy","Yes",60,"1 Minute",null,"No","CON","VS","Expand",null,"A black beam of enervating energy springs from your finger toward a creature within range. Make a ranged spell Attack against the target. On a hit, the target deals only half damage with weapon attacks that use Strength until the spell ends.\r\n\r\nAt the end of each of the target's turns, it can make a Constitution saving throw against the spell. On a success, the spell ends."]
["Wizard",2,"Rope Trick","Action","Transmutation","No","Touch","1 Hour",null,"No",null,"VSM","Expand",null,"You touch a length of rope that is up to 60 feet long. One end of the rope then rises into the air until the whole rope hangs perpendicular to the ground. At the upper end of the rope, an Invisible entrance opens to an extradimensional space that lasts until the spell ends.\r\n\r\nThe extradimensional space can be reached by climbing to the top of the rope. The space can hold as many as eight Medium or smaller creatures. The rope can be pulled into the space, making the rope disappear from view outside the space.\r\n\r\nAttacks and Spells can't cross through the entrance into or out of the extradimensional space, but those inside can see out of it as if through a 3-foot-by-5-foot window centered on the rope.\r\n\r\nAnything inside the extradimensional space drops out when the spell ends."]
["Bard, Sorcerer, Wizard",2,"See Invisibility","Action","Divination","No","Self","1 Hour",null,"No",null,"VSM","Expand",null,"For the Duration, you see Invisible creatures and Objects as if they were visible, and you can see into the Ethereal Plane. Ethereal creatures and Objects appear ghostly and translucent."]
["Bard, Sorcerer, Warlock, Wizard",2,"Shatter","Action","Evocation","No",60,"Instant","3d8","Yes","CON","VSM","Expand",null,"A sudden loud ringing noise, painfully intense, erupts from a point of your choice within range. Each creature in a 10-foot-radius Sphere centered on that point must make a Constitution saving throw. A creature takes 3d8 thunder damage on a failed save, or half as much damage on a successful one. A creature made of inorganic material such as stone, Crystal, or metal has disadvantage on this saving throw.\r\n\r\nA nonmagical object that isn't being worn or carried also takes the damage if it's in the spell's area.\r\n\r\nAt Higher Levels: When you cast this spell using a spell slot of or higher, the damage increases by 1d8 for each slot level above 2nd."]
["Sorcerer, Warlock, Wizard",2,"Spider Climb","Action","Transmutation","Yes","Touch","1 Hour",null,"No",null,"VSM","Expand",null,"Until the spell ends, one willing creature you touch gains the ability to move up, down, and across vertical surfaces and upside down along ceilings, while leaving its hands free. The target also gains a climbing speed equal to its walking speed."]
["Sorcerer, Wizard",2,"Web","Action","Conjuration","Yes",60,"1 Hour",null,"No","DEX","VSM","Expand",null,"You conjure a mass of thick, sticky webbing at a point of your choice within range. The webs fill a 20-foot cube from that point for the Duration. The webs are Difficult Terrain and lightly obscure their area.\r\n\r\nIf the webs aren't anchored between two solid masses (such as walls or trees) or layered across a floor, wall, or ceiling, the conjured web collapses on itself, and the spell ends at the start of your next turn. Webs layered over a flat surface have a depth of 5 feet.\r\n\r\nEach creature that starts its turn in the webs or that enters them during its turn must make a Dexterity saving throw. On a failed save, the creature is Restrained as long as it remains in the webs or until it breaks free.\r\n\r\nA creature Restrained by the webs can use its Actions to make a Strength check against your spell save DC. If it succeeds, it is no longer Restrained.\r\n\r\nThe webs are flammable. Any 5-foot cube of webs exposed to fire burns away in 1 round, dealing 2d4 fire damage to any creature that starts its turn in the fire."]
["Cleric, Paladin",2,"Aid","Action","Abjuration","No",30,"8 Hours",null,"Yes",null,"VSM","Expand",null,"Your spell bolsters your allies with toughness and resolve. Choose up to three creatures within range. Each target's hit point maximum and current Hit Points increase by 5 for the Duration.\r\n\r\nAt Higher Levels\r\nWhen you cast this spell using a spell slot of 3rd Level or higher, a target's Hit Points increase by an additional 5 for each slot level above 2nd."]
["Paladin",2,"Branding Smite","Bonus Action","Evocation","Yes","Self","1 Minute","2d6","No",null,"V","Expand",null,"The next time you hit a creature with a weapon Attack before this spell ends, the weapon gleams with astral radiance as you strike. The Attack deals an extra 2d6 radiant damage to the target, which becomes visible if it's Invisible, and the target sheds dim light in a 5-foot radius and can't become Invisible until the spell ends.\r\n\r\nAt Higher Levels. When you cast this spell using a spell slot of 3rd Level or higher, the extra damage increases by 1d6 for each slot level above 2nd."]
["Paladin",2,"Find Steed","10 Minutes","Conjuration","No","30 Feet","Instant",null,"No",null,"VS","Expand",null,"You summon a spirit that assumes the form of an unusually intelligent, strong, and loyal steed, creating a long-lasting bond with it. Appearing in an unoccupied space within range, the steed takes on a form that you choose, such as a Warhorse, a pony, a camel, an elk, or a Mastiff. (Your DM might allow Other Animals to be summoned as steeds.) The steed has the Statistics of the chosen form, though it is a Celestial, fey, or fiend (your choice) instead of its normal type. Additionally, if your steed has an Intelligence of 5 or less, its Intelligence becomes 6, and it gains the ability to understand one language of your choice that you speak.\r\n\r\nYour steed serves you as a mount, both in Combat and out, and you have an instinctive bond with it that allows you to fight as a seamless unit. While mounted on your steed, you can make any spell you cast that Targets only you also target your steed.\r\n\r\nWhen the steed drops to 0 Hit Points, it disappears, leaving behind no physical form. You can also dismiss your steed at any time as an action, causing it to disappear. In either case, casting this spell again summons the same steed, restored to its hit point maximum.\r\n\r\nWhile your steed is within 1 mile of you, you can communicate with it telepathically.\r\n\r\nYou can't have more than one steed bonded by this spell at a time. As an action, you can release the steed from its bond at any time, causing it to disappear."]
["Bard, Cleric, Druid, Paladin, Ranger",2,"Lesser Restoration","Action","Abjuration","No","Touch","Instant",null,"No",null,"VS","Expand",null,"You touch a creature and can end either one disease or one condition afflicting it. The condition can be Blinded, Deafened, Paralyzed, or Poisoned."]
["Cleric, Druid, Paladin, Ranger",2,"Protection from Poison","Action","Abjuration","No","Touch","1 Hour",null,"No",null,"VS","Expand",null,"You touch a creature. If it is Poisoned, you neutralize the poison. If more than one poison afflicts the target, you neutralize on poison that you know is present, or you neutralize one at random.\r\n\r\nFor the Duration, the target has advantage on Saving Throws against being Poisoned, and it has Resistance to poison damage."]
["Bard, Cleric, Paladin",2,"Zone of Truth","Action","Enchantment","No",60,"10 Minutes",null,"No","CHA","VS","Expand",null,"You create a magical zone that guards against Deception in a 15-foot-radius Sphere centered on a point of your choice within range. Until the spell ends, a creature that enters the spell's area for the first time on a turn or starts its turn there must make a Charisma saving throw. On a failed save, a creature can't speak a deliberate lie while in the radius. You know whether each creature succeeds or fails on its saving throw.\r\n\r\nAn affected creature is aware of the spell and can thus avoid answering questions to which it would normally respond with a lie. Such creatures can be evasive in its answers as long as it remains within the boundaries of the truth."]
["Bard, Druid, Ranger",2,"Animal Messenger","Action (Ritual)","Enchantment","No",30,"24 Hours",null,"Yes",null,"VSM","Expand",null,"By means of this spell, you use an animal to deliver a Message. Choose a Tiny beast you can see within range, such as a squirrel, a blue ray, or a bird. You specify a Location, which you must have visited, and a recipient who matches a general description, such as a man or woman dressed in the uniform of the town guard or a red-haired dwarf wearing a pointed hat. You also speak a Message of up to twenty-five words. The target beast travels for the Duration of the spell towards the specified Location, covering about 50 miles per 24 hours for a flying messenger or 25 miles for Other Animals.\r\n\r\nWhen the messenger arrives, it delivers your Message to the creature that you described, replicating the sound of your voice. The messenger speaks only to a creature matching the description you gave. If the messenger doesn't reach its destination before the spell ends, the Message is lost, and the beast makes its way back to where you cast this spell.\r\n\r\nAt Higher Levels: If you cast this spell using a spell slot of 3rd Level or higher, the Duration of the spell increases by 48 hours for each slot level above 2nd."]
["Bard, Cleric",2,"Calm Emotions","Action","Enchantment","Yes",60,"1 Minute",null,"No","CHA",null,"Expand",null,"You attempt to suppress strong emotions in a group of people. Each Humanoid in a 20-foot-radius Sphere centered on a point you choose within range must make a Charisma saving throw; a creature can choose to fail this saving throw if it wishes. If a creature fails its saving throw, choose one of the following two Effects.\r\n\r\nYou can suppress any Effect causing a target to be Charmed or Frightened. When this spell ends, any suppressed Effect resumes, provided that its Duration has not expired in the meantime.\r\n\r\nAlternatively, you can make a target indifferent about creatures of your choice that it is Hostile toward. This indifference ends if the target is attacked or harmed by a spell or if it witnesses any of its Friends being harmed. When the spell ends, the creature becomes Hostile again, unless the DM rules otherwise."]
["Bard, Cleric, Druid, Sorcerer",2,"Enhance Ability","Action","Transmutation","Yes","Touch","1 Hour",null,"Yes",null,"VSM","Expand",null,"You touch a creature and bestow upon it a magical enhancement. Choose one of the following Effects - the target gains the Effect until the spell ends.\r\n\r\nBear's Endurance: The target has advantage on Constitution Checks. It also gains 2d6 Temporary Hit Points, which are lost when the spell ends.\r\n\r\nBull's Strength: The target has advantage on Strength Checks, and his or her carrying Capacity doubles.\r\n\r\nCat's Grace: The target has advantage on Dexterity Checks. It also doesn't take damage from Falling 20 feet or less if it isn't Incapacitated.\r\n\r\nEagle's Splendor: The target has advantage on Charisma Checks.\r\n\r\nFox's Cunning: The target has advantage on Intelligence Checks.\r\n\r\nOwl's Wisdom: The target has advantage on Wisdom Checks.\r\n\r\nAt Higher Levels: When you cast this spell using a spell slot of 3rd Level or higher, you can target one additional creature for each slot level above 2nd."]
["Bard, Warlock",2,"Enthrall","Action","Enchantment","No",60,"1 Minute",null,"No","WIS","VS","Expand",null,"You weave a distracting string of words, causing creatures of your choice that you can see within range and that can hear you to make a Wisdom saving throw. Any creature that can't be Charmed succeeds on this saving throw automatically, and if you or your companions are Fighting a creature, it has advantage on the save. On a failed save, the target has disadvantage on Wisdom (Perception) checks made to perceive any creature other than you until the spell ends or until the target can no longer hear you. The spell ends if you are Incapacitated or can no longer speak."]
["Bard, Druid",2,"Heat Metal","Action","Transmutation","Yes",60,"1 Minute","2d6","Yes","CON","VSM","Expand",null,"Choose a manufactured metal object, such as a metal weapon or a suit of heavy or medium metal armor, that you can see within range. You cause the object to glow red-hot. Any creature in physical contact with the object takes 2d8 fire damage when you cast the spell. Until the spell ends, you can use a Bonus Action on each of your subsequent turns to cause this damage again.\r\n\r\nIf a creature is holding or wearing the object and takes the damage from it, the creature must succeed on a Constitution saving throw or drop the object if it can. If it doesn't drop the object, it has disadvantage on Attack Rolls and Ability Checks until the start of your next turn.\r\n\r\nAt Higher Levels: When you cast this spell using a spell slot of 3rd Level or higher, the damage increases by 1d8 for each slot above 2nd."]
["Bard, Druid, Ranger",2,"Locate Animals or Plants","Action (Ritual)","Divination","No","Self","Instant",null,"No",null,"VSM","Expand",null,"Describe or name a specific kind of beast or plant. Concentrating on the voice of Nature in your surroundings, you learn the direction and distance to the closest creature or plant of that kind within 5 miles, if any are present."]
["Bard, Cleric, Ranger",2,"Silence","Action (Ritual)","Illusion","Yes",120,"10 Minutes",null,"No",null,"VS","Expand",null,"For the Duration, no sound can be created within or pass through a 20-foot-radius Sphere centered on a point you choose within range. Any creature or object entirely inside the Sphere is immune to thunder damage, and creatures are Deafened while entirely inside it. Casting a Spell that includes a verbal component is impossible there."]
["Sorcerer, Warlock, Wizard",3,"Counterspell","Reaction","Abjuration","No",60,"Instant",null,"Yes",null,"S","Expand",null,"You attempt to interrupt a creature in the process of Casting a Spell. If the creature is Casting a Spell of 3rd Level or lower, its spell fails and has no Effect. If it is Casting a Spell of 4th Level or higher, make an ability check using your Spellcasting Ability. The DC equals 10 + the spell's level. On a success, the creature's spell fails and has no Effect.\r\n\r\nAt Higher Levels:\r\nWhen you cast this spell using a spell slot of 4th Level or higher, the interrupted spell has no Effect if its level is less than or equal to the level of the spell slot you used."]
["Bard, Cleric, Druid, Paladin, Sorcerer, Warlock, Wizard",3,"Dispel Magic","Action","Abjuration","No",120,"Instant",null,"Yes",null,"VS","Expand",null,"Choose any creature, object, or magical Effect within range. Any spell of 3rd Level or lower on the target ends. For each spell of or higher on the target, make an ability check using your Spellcasting Ability. The DC equals 10 + the spell's level. On a successful check, the spell ends.\r\n\r\nAt Higher Levels:\r\nWhen you cast this spell using a spell slot of 4th Level or higher, you automatically end the Effects of a spell on the target if the spell's level is equal to or less than the level of the spell slot you used."]
["Sorcerer, Warlock, Wizard",3,"Fly","Action","Transmutation","Yes",0,"10 Minutes",null,"Yes",null,"VSM","Expand",null,"You touch a willing creature. The target gains a flying speed of 60 feet for the Duration. When the spell ends, the target falls if it is still aloft, unless it can stop the fall.\r\n\r\nAt Higher Levels:\r\nWhen you cast this spell using a spell slot of 4th Level or higher, you can target one additional creature for each slot level above 3rd."]
["Bard, Cleric, Wizard",3,"Glyph of Warding","1 Hour","Abjuration","No",0,"Infinite","5d8","Yes","DEX","VSM 200gp Powdered diamond, consumed","Expand",null,"When you cast this spell, you inscribe a glyph that harms other creatures, either upon a surface (such as a table or a section of floor or wall) or within an object that can be closed (such as a book, a scroll, or a Treasure chest) to conceal the glyph. If you choose a surface, the glyph can cover an area of the surface no larger than 10 feet in diameter. If you choose an object, that object must remain in its place, if the object is moved more than 10 feet from where you cast this spell, the glyph is broken and the spell ends without being triggered.\r\n\r\nThe glyph is nearly Invisible and requires a successful Intelligence (Investigation) check against your spell save DC to be found.\r\n\r\nYou decide what triggers the glyph when you cast the spell. For glyphs inscribed on a surface, the most typical triggers include touching or standing on the glyph, removing another object covering the glyph, approaching within a certain distance of the glyph, or manipulating the object on which the glyph is inscribed. For glyphs inscribed within an object, the most Common triggers include opening that object, approaching within a certain distance of the object, or seeing or reading the glyph. Once a glyph is triggered, this spell ends.\r\n\r\nYou can further refine the trigger so the spell activates only under certain circumstances or according to Physical Characteristics (such as height or weight), creature kind (for example, the ward could be set to affect Aberrations or drow), or Alignment. You can also set Conditions for creatures that don't trigger the glyph, such as those who say a certain password.\r\n\r\nWhen you inscribe the glyph, choose explosive runes or a spell glyph.\r\n\r\nExplosive Runes: When triggered, the glyph erupts with magical energy in a 20-foot-radius Sphere centered on the glyph. The Sphere spreads around corners. Each creature in the aura must make a Dexterity saving throw. A creature takes 5d8 acid, cold, fire, lightning, or thunder damage on a failed saving throw (your choice when you create the glyph), or half as much damage on a successful one.\r\n\r\nSpell Glyph: You can store a prepared spell of 3rd Level or lower in the glyph by casting it as part of creating the glyph. The spell must target a single creature or an area. The spell being stored has no immediate Effect when cast in this way. When the glyph is triggered, the stored spell is cast. If the spell has a target, it Targets the creature that triggered the glyph. If the spell affects an area, the area is centered on that creature. If the spell summons Hostile creatures or creates harmful Objects or traps, they appear as close as possible to the intruder and Attack it. If the spell requires Concentration, it lasts until the end of its full Duration.\r\n\r\nAt Higher Levels:\r\nWhen you cast this spell using a spell slot of 4th Level or higher, the damage of an explosive runes glyph increases by 1d8 for each slot level above 3rd. If you create a spell glyph, you can store any spell of up to the same level as the slot you use for the glyph of warding."]
["Sorcerer, Wizard",3,"Haste","Action","Transmutation","Yes",30,"1 Minute",null,"No",null,"VSM","Expand",null,"Choose a willing creature that you can see within range. Until the spell ends, the target's speed is doubled, it gains a +2 bonus to AC, it has advantage on Dexterity Saving Throws, and it gains an additional action on each of its turns. That action can be used only to take the Attack (one weapon Attack only), Dash, Disengage, Hide, or Use an Object action.\r\n\r\nWhen the spell ends, the target can't move or take Actions until after its next turn, as a wave of lethargy sweeps over it."]
["Sorcerer, Wizard",3,"Lightning Bolt","Action","Evocation","No",100,"Instant","8d6","Yes","DEX","VSM","Expand",null,"A stroke of lightning forming a line of 100 feet long and 5 feet wide blasts out from you in a direction you choose. Each creature in the line must make a Dexterity saving throw. A creature takes 8d6 lightning damage on a failed save, or half as much damage on a successful one.\r\n\r\nThe lightning ignites flammable Objects in the area that aren't being worn or carried.\r\n\r\nAt Higher Levels:\r\nWhen you cast this spell using a spell slot of 4th Level or higher, the damage increases by 1d6 for each slot above 3rd."]
["Bard, Sorcerer, Warlock, Wizard",3,"Major Image","Action","Illusion","Yes",120,"10 Minutes",null,"Yes",null,"VSM","Expand",null,"You create the image of an object, a creature, or some other visible phenomenon that is no larger than a 20-foot cube. The image appears at a spot that you can see within range and lasts for the Duration. It seems completely real, including sounds, smells, and temperature appropriate to the thing depicted. You can't create sufficient heat or cold to cause damage, a sound loud enough to deal thunder damage or deafen a creature, or a smell that might sicken a creature (like a troglodyte's stench).\r\n\r\nAs long as you are within range of the Illusion, you can use your action to cause the image to move to any other spot within range. As the image changes location, you can alter its appearance so that its movements appear natural for the image. For example, if you create an image of a creature and move it, you can alter the image so that it appears to be walking. Similarly, you can cause the Illusion to make different sounds at different times, even making it carry on a conversation, for example.\r\n\r\nPhysical interaction with the image reveals it to be an Illusion, because things can pass through it. A creature that uses its action to examine the image can determine that it is an Illusion with a successful Intelligence (Investigation) check against your spell save DC. If a creature discerns the Illusion for what it is, the creature can see through the image, and its other sensory qualities become faint to the creature.\r\n\r\nAt Higher Levels:\r\nWhen you cast this spell using a spell slot of 6th level or higher, the spell lasts until dispelled, without requiring your Concentration."]
["Bard, Wizard",3,"Tiny Hut","1 Minute (Ritual)","Evocation","No","Self","8 Hours",null,"No",null,"VSM","Expand",null,"A 10-foot-radius immobile dome of force springs into existence around and above you and remains stationary for the Duration. The spell ends if you leave its area.\r\n\r\nNine creatures of Medium size or smaller can fit inside the dome with you. The spell fails if its area includes a larger creature or more than nine creatures. Creatures and objects⁠ within the dome when you cast this spell can move through it freely. All other creatures and objects⁠ are barred from passing through it. Spells and other magical Effects can't extend through the dome or be cast through it. The atmosphere inside the space is comfortable and dry, regardless of the weather outside.\r\n\r\nUntil the spell ends, you can command⁠ the interior to become dimly lit or dark. The dome is opaque from the outside, of any color you choose, but it is transparent from the inside."]
["Sorcerer, Wizard",3,"Fireball","Action","Evocation","No",150,"Instant","8d6","Yes","DEX","VSM","Expand",null,"A bright streak flashes from your pointing finger to a point you choose within range then blossoms with a low roar into an explosion of flame. Each creature in a 20-foot radius Sphere centered on that point must make a Dexterity saving throw. A target takes 8d6 fire damage on a failed save, or half as much damage on a successful one.\r\n\r\nThe fire spreads around corners. It ignites flammable Objects in the area that aren't being worn or carried.\r\n\r\nAt Higher Levels:\r\nWhen you cast this spell using a spell slot of 4th Level or higher, the damage increases by 1d6 for each slot level above 3rd."]
["Cleric, Wizard",3,"Animate Dead","1 Minute","Necromancy","No","10 Feet","Instant",null,"Yes",null,"VSM","Expand",null,"This spell creates an Undead servant. Choose a pile of bones or a corpse of a Medium or Small Humanoid within range. Your spell imbues the target with a foul mimicry of life, raising it as an Undead creature. The target becomes a Skeleton if you chose bones or a Zombie if you chose a corpse (the DM has the creature's game statistics).\r\n\r\nOn each of your turns, you can use a Bonus Action to mentally Command any creature you made with this spell if the creature is within 60 feet of you (if you control multiple creatures, you can Command any or all of them at the same time, issuing the same Command to each one). You decide what action the creature will take and where it will move during its next turn, or you can issue a general Command, such as to guard a particular chamber or corridor. If you issue no commands, the creature only defends itself against Hostile creatures. Once given an order, the creature continues to follow it until its task is complete.\r\n\r\nThe creature is under your control for 24 hours, after which it stops obeying any Command you've given it. To maintain the control of the creature for another 24 hours, you must cast this spell on the creature again before the current 24-hour period ends. This use of the spell reasserts your control over up to four creatures you have animated with this spell, rather than animating a new one.\r\n\r\nAt Higher Levels: When you cast this spell using a spell slot of 4th Level or higher, you animate or reassert control over two additional Undead creatures for each slot above 3rd. Each of the creatures must come from a different corpse or pile of bones."]
["Bard, Cleric, Wizard",3,"Bestow Curse","Action","Necromancy","Yes","Touch","1 Minute",null,"Yes","WIS",null,"Expand",null,"You touch a creature, and that creature must succeed on a Wisdom saving throw or become Cursed for the Duration of the spell. When you cast this spell, choose the Nature of the curse from the following options.\r\n\r\n• Choose one ability score. While Cursed, the target has disadvantage on Ability Checks and Saving Throws made with that ability score.\r\n\r\n• While Cursed, the target has disadvantage on Attack rolls against you.\r\n\r\n• While Cursed, the target must make a Wisdom saving throw at the start of each of its turns. If it fails, it wastes its action that turn doing nothing.\r\n\r\n• While the target is Cursed, your attacks and Spells deal an extra 1d8 necrotic damage to the target.\r\n\r\nA Remove Curse spell ends this Effect. At the DM's option, you may choose an alternative curse Effect, but it should be no more powerful than those described above. The DM has final say on such a curse's Effect.\r\n\r\nAt Higher Levels:\r\nIf you cast this spell using a spell slot of 4th Level or higher, the Duration is Concentration, up to 10 minutes. If you use a spell slot of 5th Level or higher, the Duration is 8 hours. If you use a spell slot of 7th level or higher, the Duration is 24 hours. If you use a 9th level spell slot, the spell lasts until it is dispelled. Using a spell slot of 5th Level or higher grants a Duration that doesn't require Concentration."]
["Sorcerer, Wizard",3,"Blink","Action","Transmutation","No","Slef","1 Minute",null,"No",null,"VS","Expand",null,"Roll a d20 at the end of each of your turns for the Duration of the spell. On a roll of 11 or higher, you Vanish from your current plane of existence and appear in the Ethereal Plane (the spell fails and the casting is wasted if you were already on that plane). At the start of you next turn, and when the spell ends if you are on the Ethereal Plane, you return to an unoccupied space of your choice that you can see within 10 feet of the space you vanished from. If no unoccupied space is available within that range, you appear in the nearest unoccupied space (chosen at random if more than one space is equally near). You can dismiss this spell as an action.\r\n\r\nWhile on the Ethereal Plane, you can see and hear the plane you originated from, which is cast in Shades of Gray, and you can't see anything more than 60 feet away. You can only affect and be affected by other creatures on the Ethereal Plane. Creature that aren't there can't perceive you or interact with you, unless they have the ability to do so."]
["Bard, Cleric, Sorcerer, Wizard",3,"Clairvoyance","10 Minutes","Divination","Yes","1 Mile","10 Minutes",null,"No",null,null,"Expand",null,"You create an Invisible sensor within range in a location familiar to you (a place you have visited or seen before) or in an obvious location that is unfamiliar to you (such as behind a door, around a corner, or in a grove of trees). The sensor remains in place for the Duration, and it can't be attacked or otherwise interacted with.\r\n\r\nWhen you cast the spell, you choose seeing or hearing. You can use the chosen sense through the sensor as if you were in its space. As your action, you can switch between seeing and hearing.\r\n\r\nA creature that can see the sensor (such as a creature benefitting from See Invisibility or truesight) sees a luminous, intangible orb about the size of your fist."]
["Bard, Sorcerer, Warlock, Wizard",3,"Fear","Action","Illusion","Yes",30,"1 Minute",null,"No","WIS","VSM","Expand",null,"You project a phantasmal image of a creature's worst fears. Each creature in a 30-foot cone must succeed on a Wisdom saving throw or drop whatever it is holding and become Frightened for the Duration.\r\n\r\nWhile Frightened by this spell, a creature must take the Dash action and move away from you by the safest available route on each of its turns, unless there is nowhere to move. If the creature ends its turn in a location where it doesn't have line of sight to you, the creature can make a Wisdom saving throw. On a successful save, the spell ends for that creature."]
["Sorcerer, Warlock, Wizard",3,"Gaseous Form","Action","Transmutation","Yes","Touch","1 Hour",null,"No",null,"VSM","Expand",null,"You transform a willing creature you touch, along with everything it's wearing and carrying, into a misty cloud for the Duration. The spell ends if the creature drops to 0 Hit Points. An incorporeal creature isn't affected.\r\n\r\nWhile in this form, the target's only method of Movement is a flying speed of 10 feet. The target can enter and occupy the space of another creature. The target has Resistance to nonmagical damage, and it has advantage on Strength, Dexterity, and Constitution Saving Throws. The target can pass through small holes, narrow openings, and even mere cracks, though it treats liquids as though they were solid surfaces. The target can't fall and remains hovering in the air even when Stunned or otherwise Incapacitated.\r\n\r\nWhile in the form of a misty cloud, the target can't talk or manipulate Objects, and any Objects it was carrying or holding can't be dropped, used, or otherwise interacted with. The target can't Attack or cast Spells."]
["Bard, Sorcerer, Warlock, Wizard",3,"Hypnotic Pattern","Action","Illusion","Yes","120 Feet","1 Minute",null,"No","WIS","SM","Expand",null,"You create a twisting pattern of colors that weaves through the air inside a 30-foot cube within range. The pattern appears for a moment and vanishes. Each creature in the area who sees the pattern must make a Wisdom saving throw. On a failed save, the creature becomes Charmed for the Duration. While Charmed by this spell, the creature is Incapacitated and has a speed of 0.\r\n\r\nThe spell ends for an affected creature if it takes any damage or if someone else uses an action to shake the creature out of its stupor."]
["Cleric, Paladin, Warlock, Wizard",3,"Magic Circle","1 Minute","Abjuration","No","10 Feet","1 Hour",null,"Yes",null,"VSM","Expand",null,"You create a 10-foot-radius, 20-foot-tall Cylinder of magical energy centered on a point on the ground that you can see within range. Glowing runes appear wherever the Cylinder intersects with the floor or other surface.\r\n\r\nChoose one or more of the following types of creatures - Celestials, Elementals, fey, Fiends, or Undead. The circle affects a creature of the chosen type in the following ways.\r\n\r\n• The creature can't willingly enter the Cylinder by nonmagical means. If the creature tries to use teleportation or interplanar Travel to do so, it must first succeed on a Charisma saving throw.\r\n\r\n• The creature has disadvantage on Attack rolls against Targets within the Cylinder.\r\n\r\n• Targets within the Cylinder can't be Charmed, Frightened, or possessed by the creature.\r\n\r\nWhen you cast this spell, you can elect to cause its magic to operate in the reverse direction, preventing a creature of the specified type from leaving the Cylinder and protecting Targets outside it.\r\n\r\nAt Higher Levels: When you cast this spell using a spell slot of 4th Level or higher, the Duration increases by 1 hour for each slot level above 3rd."]
["Bard, Ranger, Wizard",3,"Nondetection","Action","Abjuration","No","Touch","8 Hours",null,"No",null,"VSM","Expand",null,"For the Duration, you hide a target that you touch from Divination magic. The target can be a willing creature or a place or an object no larger than 10 feet in any dimension. The target can't be targeted by any Divination magic or perceived through magical Scrying sensors."]
["Wizard",3,"Phantom Steed","1 Minute (Ritual)","Illusion","No","30 Feet","1 Hour",null,"No",null,"VS","Expand",null,"A Large quasi-real, horse-like creature appears on the ground in an unoccupied space of your choice within range. You decide the creature's appearance, but it is equipped with a saddle, bit, and bridle. Any of the Equipment created by the spell vanishes in a Puff Of Smoke if it is carried more than 10 feet away from the steed.\r\n\r\nFor the Duration, you or a creature you choose can ride the steed. The creature uses the Statistics for a Riding Horse, except it has a speed of 100 feet and can Travel 10 miles in an hour, or 13 miles at a fast pace. When the spell ends, the steed gradually fades, giving the rider 1 minute to dismount. The spell ends if you use an action to dismiss it or if the steed takes any damage."]
["Cleric, Druid, Ranger, Sorcerer, Wizard",3,"Protection from Energy","Action","Abjuration","Yes","Touch","1 Hour",null,"No",null,"VS","Expand",null,"For the Duration, the willing creature you touch has Resistance to one damage type of your choice - acid, cold, fire, lightning, or thunder."]
["Cleric, Paladin, Warlock, Wizard",3,"Remove Curse","Action","Abjuration","No","Touch","Instant",null,"No",null,"VS","Expand",null,"At your touch, all curses affecting one creature or object end. If the object is a Cursed magic item, its curse remains, but the spell breaks its owner's Attunement to the object so it can be removed or discarded."]
["Bard, Cleric, Wizard",3,"Sending","Action","Evocation","No","Unlimited","1 Round",null,"No",null,"VSM","Expand",null,"You send a short Message of twenty-five words or less to a creature with you are familiar. The creature hears the Message in its mind, recognizes you as the sender if it knows you, and can answer in a like manner immediately. The spell enables creatures with Intelligence scores of at least 1 to understand the meaning of your Message.\r\n\r\nYou can send the Message across any distance and even to other Planes of Existence, but if the target is on a different plane than you, there is a 5 percent chance that the Message doesn't arrive."]
["Druid, Sorcerer, Wizard",3,"Sleet Storm","Action","Conjuration","Yes","150 Feet","1 Minute",null,"No","DEX","VSM","Expand",null,"Until the spell ends, freezing rain and sleet fall in a 20-foot-tall Cylinder with a 40-foot radius centered on a point you choose within range. The area is heavily obscured, and exposed flames in the area are doused.\r\n\r\nThe ground in the area is covered with slick ice, making it Difficult Terrain. When a creature enters the spell's area for the first time on a turn or starts its turn there, it must make a Dexterity saving throw. On a failed save, it falls prone.\r\n\r\nIf a creature is concentrating in the spell's area, the creature must make a successful Constitution saving throw against your spell save DC or lose Concentration."]
["Sorcerer, Wizard",3,"Slow","Action","Transmutation","Yes","120 Feet","1 Minute",null,"No","WIS",null,"Expand",null,"You alter time around up to six creatures of your choice in a 40-foot cube within range. Each target must succeed on a Wisdom saving throw or be affected by this spell for the Duration.\r\n\r\nAn affected target's speed is halved, it takes a -2 penalty to AC and Dexterity Saving Throws, and it can't use Reactions. On its turn, it can use either an action or a Bonus Action, not both. Regardless of the creature's Abilities or Magic Items, it can't make more than one melee or ranged Attack during its turn.\r\n\r\nIf the creature attempts to Cast a Spell with a Casting Time of 1 action, roll a d20. On an 11 or higher, the spell doesn't take Effect until the creature's next turn, and the creature must use its action on that turn to complete the spell. If it can't, the spell is wasted.\r\n\r\nA creature affected by this spell makes another Wisdom saving throw at the end of its turn. On a successful save, the Effect ends for it."]
["Bard, Sorcerer, Wizard",3,"Stinking Cloud","Action","Conjuration","Yes","90 Feet","1 Minute",null,"No","CON","VSM","Expand",null,"You create a 20-foot-radius Sphere of yellow, nauseating gas centered on a point within range. The cloud spreads around corners, and its area is heavily obscured. The cloud lingers in the air for the Duration.\r\n\r\nEach creature that is completely within the cloud at the start of its turn must make a Constitution saving throw against poison. On a failed save, the creature spends its action that turn retching and reeling. Creatures that don't need to breathe or are immune to poison automatically succeed on this saving throw.\r\n\r\nA moderate wind (at least 10 miles per hour) disperses the cloud after 4 rounds. A strong wind (at least 20 miles per hour) disperses it after 1 round."]
["Bard, Cleric, Sorcerer, Warlock, Wizard",3,"Tongues","Action","Divination","No","Touch","1 Hour",null,"No",null,"VSM","Expand",null,"This spell grants the creature you touch the ability to understand any spoken language it hears. Moreover, when the target speaks, any creature that knows at least one language and can hear the target understands what it says."]
["Warlock, Wizard",3,"Vampiric Touch","Action","Necromancy","Yes","Self","1 Minute","3d6","Yes",null,"VS","Expand",null,"The touch of your shadow-wreathed hand can siphon force from others to heal your wounds. Make a melee spell Attack against a creature within your reach. On a hit, the target takes 3d6 necrotic damage, and you regain Hit Points equal to half the amount of necrotic damage dealt. Until the spell ends, you can make the Attack again on each of your turns as an action.\r\n\r\nAt Higher Levels:\r\nWhen you cast this spell using a spell slot of 4th Level or higher, the damage increases by 1d6 for each slot level above 3rd."]
["Druid, Ranger, Sorcerer, Wizard",3,"Water Breathing","Action","Transmutation","No",30,"24 Hours",null,"No",null,"VSM","Expand",null,"This spell grants up to ten willing creatures you can see within range the ability to breathe Underwater until the spell ends. Affected creatures also retain their normal mode of respiration."]
["Bard, Druid, Ranger",3,"Plant Growth","Action (8 Hours)","Transmutation","No",150,"Instant",null,"No",null,"VS","Expand",null,"This spell channels vitality into Plants within a specific area. There are two possible uses for the spell, granting either immediate or long-term benefits.\r\n\r\nIf you cast this spell using 1 action, choose a point within range. All normal Plants in a 100-foot radius centered on that point become thick and overgrown. A creature moving through the area must spend 4 feet of Movement for every 1 foot it moves.\r\n\r\nYou can exclude one or more areas of any size within the spell's area from being affected.\r\n\r\nIf you cast this spell over 8 hours, you enrich the land. All Plants in a half-mile radius centered on a point within range become enriched for 1 year. The Plants yield twice the normal amount of food when harvested."]
["Bard, Cleric",3,"Speak With Dead","Action","Necromancy","No",10,"10 Minutes",null,"No",null,"VSM","Expand",null,"You grant the semblance of life and Intelligence to a corpse of your choice within range, allowing it to answer the questions you pose. The corpse must still have a mouth and can't be Undead. The spell fails if the corpse was the target of this spell within the last 10 days.\r\n\r\nUntil the spell ends, you can ask the corpse up to five questions. The corpse knows only what it knew in life, including the Languages it knew. Answers are usually brief, cryptic, or repetitive, and the corpse is under no Compulsion to offer a truthful answer if you are Hostile to it or it recognizes you as an enemy. This spell doesn't return the creature's soul to its body, only its animating spirit. Thus, the corpse can't learn new information, doesn't comprehend anything that has happened since it died, and can't speculate about future events."]
["Bard, Druid, Ranger",3,"Speak With Plants","Action","Transmutation","No","Self (30 radius)","10 Minutes",null,"No",null,"VS","Expand",null,"You imbue Plants within 30 feet of you with limited sentience and animation, giving them the ability to communicate with you and follow your simple commands. You can question Plants about events in the spell's area within the past day, gaining information about creatures that have passed, weather, and other circumstances.\r\n\r\nYou can also turn Difficult Terrain caused by Plant Growth (such as thickets and undergrowth) into ordinary terrain that lasts for the Duration. Or you can turn ordinary terrain where Plants are present into Difficult Terrain that lasts for the Duration, causing vines and branches to hinder pursuers, for example.\r\n\r\nPlants might be able to perform other tasks on your behalf, at the DM's discretion. The spell doesn't enable Plants to uproot themselves and move about, but they can freely move branches, tendrils, and stalks.\r\n\r\nIf a plant creature is in the area, you can communicate with it as if you shared a Common language, but you gain no magical ability to Influence it.\r\n\r\nThis spell can cause the Plants created by the Entangle spell to release a Restrained creature."]
["Cleric, Druid, Paladin",3,"Aura of Vitality","Action","Evocation","Yes","Self (30ft)","1 Minute",null,"No",null,"V","Expand",null,"Healing energy radiates from you in an aura with a 30-foot radius. Until the spell ends, the aura moves with you, centered on you.\r\n\r\nYou can use a bonus action to cause one creature in the aura (including you) to regain 2d6 hit points."]
["Paladin",3,"Blinding Smite","Bonus Action","Evocation","Yes","Self","1 Minute","3d8","No","CON","V","Expand",null,"The next time you hit a creature with a melee weapon attack during this spell’s duration, you weapon flares with a bright light, and the attack deals an extra 3d8 radiant damage to the target. Additionally, the target must succeed on a Constitution saving throw or be blinded until the spell ends.\r\n\r\nA creature blinded by this spell makes another Constitution saving throw at the end of each of its turns. On a successful save, it is no longer blinded."]
["Artificer, Cleric, Paladin",3,"Create Food and Water","Action","Conjuration","No",30,"Instant",null,"No",null,"VS","Expand",null,"You create 45 pounds of food and 30 gallons of water on the ground or in containers within range, enough to sustain up to fifteen humanoids or five steeds for 24 hours. The food is bland but nourishing, and spoils if uneaten after 24 hours. The water is clean and doesn’t go bad."]
["Paladin",3,"Crusader's Mantle","Action","Evocation","Yes","Self (30ft)","1 Minute","1d4","No",null,null,"Expand",null,"Holy power radiates from you in an aura with a 30-foot radius, awakening boldness in friendly creatures.\r\n\r\nUntil the spell ends, the aura moves with you, centered on you.\r\n\r\nWhile in the aura, each non-hostile creature in the aura (including you) deals an extra 1d4 radiant damage when it hits with a weapon attack."]
["Cleric, Druid, Paladin, Ranger, Sorcerer",3,"Daylight","Action","Evocation","No",60,"1 Hour",null,"No",null,"VS","Expand",null,"A 60-foot-radius sphere of light spreads out from a point you choose within range. The sphere is bright light and sheds dim light for an additional 60 feet.\r\n\r\nIf you chose a point on an object you are holding or one that isn’t being worn or carried, the light shines from the object with and moves with it. Completely covering the affected object with an opaque object, such as a bowl or a helm, blocks the light.\r\n\r\nIf any of this spell’s area overlaps with an area of darkness created by a spell of 3rd level or lower, the spell that created the darkness is dispelled."]
["Artificer, Druid, Paladin, Ranger",3,"Elemental Weapon","Action","Transmutation","Yes","Touch","1 Hour",null,"Yes",null,"VS","Expand",null,"A nonmagical weapon you touch becomes a magic weapon. Choose one of the following damage types: acid, cold, fire, lightning, or thunder. For the duration, the weapon has a +1 bonus to attack rolls and deals an extra 1d4 damage of the chosen type when it hits.\r\n\r\nAt Higher Levels\r\nWhen you cast this spell using a spell slot of 5th or 6th level, the bonus to attack rolls increases to +2 and the extra damage increases to 2d4. When you use a spell slot of 7th level or higher, the bonus increases to +3 and the extra damage increases to 3d4."]
["Artificer, Cleric, Druid, Paladin, Ranger",3,"Revivify","Action","Necromancy","No","Touch","Instant",null,"No",null,"VSM (300g Diamonds consumed)","Expand",null,"You touch a creature that has died within the last minute. That creature returns to life with 1 hit point. This spell can’t return to life a creature that has died of old age, nor can it restore any missing body parts."]
["Cleric, Paladin, Warlock, Wizard",3,"Spirit Shroud","Bonus Action","Necromancy","Yes","Self","1 Minute","1d8","Yes",null,"VS","Expand",null,"You call forth spirits of the dead, which flit around you for the spell’s duration. The spirits are intangible and invulnerable.\r\n\r\nUntil the spell ends, any attack you make deals 1d8 extra damage when you hit a creature within 10 feet of you. This damage is radiant, necrotic, or cold (your choice when you cast the spell). Any creature that takes this damage can’t regain hit points until the start of your next turn.\r\n\r\nIn addition, any creature of your choice that you can see that starts its turn within 10 feet of you has its speed reduced by 10 feet until the start of your next turn.\r\n\r\nAt Higher Levels\r\nWhen you cast this spell using a spell slot of 4th level or higher, the damage increases by 1d8 for every two slot levels above 3rd."]
["Wizard",4,"Black Tentacles","Action","Conjuration","Yes",90,"1 Minute","3d6","No","DEX","VSM","Expand",null,"Squirming, ebony tentacles fill a 20-foot square on ground that you can see within range. For the Duration, these tentacles turn the ground in the area into Difficult Terrain.\r\n\r\nWhen a creature enters the affected area for the first time on a turn or starts its turn there, the creature must succeed on a Dexterity saving throw or take 3d6 bludgeoning damage and be Restrained by the tentacles until the spell ends. A creature that starts its turn in the area and is already Restrained by the tentacles takes 3d6 bludgeoning damage.\r\n\r\nA creature Restrained by the tentacles can use its action to make a Strength or Dexterity check (its choice) against your spell save DC. On a success, it frees itself."]
["Bard, Sorcerer, Warlock, Wizard",4,"Dimension Door","Action","Conjuration","No",500,"Instant",null,"No",null,"V","Expand",null,"You Teleport yourself from your current location to any other spot within range. You arrive at exactly the spot desired. It can be a place you can see, one you can visualize, or one you can describe by stating distance and direction, such as 200 feet straight downward or upward to the northwest at a 45-degree angle, 300 feet.\r\n\r\nYou can bring along Objects as long as their weight doesn't exceed what you can carry. You can also bring one willing creature of your size or smaller who is carrying gear up to its carrying Capacity. The creature must be within 5 feet of you when you cast this spell.\r\n\r\nIf you would arrive in a place already occupied by an object or a creature, you and any creature traveling with you each take 4d6 force damage, and the spell fails to Teleport you."]
["Wizard",4,"Phantasmal Killer","Action","Illusion","Yes",120,"1 Minute","4d10","Yes","WIS","VS","Expand",null,"You tap into the nightmares of a creature you can see within range and create an illusory Manifestation of its deepest fears, visible only to that creature. The target must make a Wisdom saving throw. On a failed save, the target becomes Frightened for the Duration. At the end of each of the target's turns before the spell ends, the target must succeed on a Wisdom saving throw or take 4d10 psychic damage. On a successful save, the spell ends.\r\n\r\nAt Higher Levels:\r\nWhen you cast this spell using a spell slot of 5th Level or higher, the damage increases by 1d10 for each slot level above 4th."]
["Sorcerer, Warlock, Wizard",4,"Sickening Radiance","Action","Evocation","Yes",120,"10 Minutes","4d10","No","CON","VS","Expand",null,"Dim, greenish light spreads within a 30-foot-radius sphere centered on a point you choose within range. The light spreads around corners, and it lasts until the spell ends.\r\n\r\nWhen a creature moves into the spell’s area for the first time on a turn or starts its turn there, that creature must succeed on a Constitution saving throw or take 4d10 radiant damage, and it suffers one level of exhaustion and emits a dim, greenish light in a 5-foot radius. This light makes it impossible for the creature to benefit from being invisible. The light and any levels of exhaustion caused by this spell go away when the spell ends."]
["Warlock, Wizard",4,"Summon Greater Demon","Action","Conjuration","Yes",60,"1 Hour",null,"Yes","CHA","VSM","Expand",null,"You utter foul words, summoning one demon from the chaos of the Abyss. You choose the demon’s type, which must be one of challenge rating 5 or lower, such as a shadow demon or a barlgura. The demon appears in an unoccupied space you can see within range, and the demon disappears when it drops to 0 hit points or when the spell ends.\r\n\r\nRoll initiative for the demon, which has its own turns. When you summon it and on each of your turns thereafter, you can issue a verbal command to it (requiring no action on your part), telling it what it must do on its next turn. If you issue no command, it spends its turn attacking any creature within reach that has attacked it.\r\n\r\nAt the end of each of the demon’s turns, it makes a Charisma saving throw. The demon has disadvantage on this saving throw if you say its true name. On a failed save, the demon continues to obey you. On a successful save, your control of the demon ends for the rest of the duration, and the demon spends its turns pursuing and attacking the nearest non-demons to the best of its ability. If you stop concentrating on the spell before it reaches its full duration, an uncontrolled demon doesn’t disappear for 1d6 rounds if it still has hit points.\r\n\r\nAs part of casting the spell, you can form a circle on the ground with the blood used as a material component. The circle is large enough to encompass your space. While the spell lasts, the summoned demon can’t cross the circle or harm it, and it can’t target anyone within it. Using the material component in this manner consumes it when the spell ends.\r\n\r\nAt higher levels:\r\nWhen you cast this spell using a spell slot of 5th level or higher, the challenge rating increases by 1 for each slot level above 4th."]
["Druid, Sorcerer, Wizard",4,"Wall of Fire","Action","Evocation","Yes",120,"1 Minute","5d8","Yes","DEX","VSM","Expand",null,"You create a wall of fire on a solid surface within range. You can make the wall up to 60 feet long, 20 feet high, and 1 foot think, or a ringed wall up to 20 feet in diameter, 20 feet high, and 1 foot thick. The wall is opaque and lasts for the Duration.\r\n\r\nWhen the wall appears, each creature within its area must make a Dexterity saving throw. On a failed save, a creature takes 5d8 fire damage, or half as much damage on a successful save.\r\n\r\nOne side of the wall, selected by you when you cast this spell, deals 5d8 fire damage to each creature that ends its turn within 10 feet of that side or inside the wall. A creature takes the same damage when it enters the wall for the first time on a turn or ends its turn there. The other side of the wall deals no damage.\r\n\r\nAt Higher Levels:\r\nWhen you cast this spell using a spell slot of 5th Level or higher, the damage increases by 1d8 for each slot level above 4th."]
["Wizard",4,"Private Sanctum","10 Minutes","Abjuration","No",120,"24 Hours",null,"Yes",null,"VSM","Expand",null,"You make an area within range magically secure. The area is a cube that can be as small as 5 feet to as large as 100 feet on each side. The spell lasts for the Duration or until you use an action to dismiss it.\r\n\r\nWhen you cast the spell, you decide what sort of security the spell provides, choosing any or all of the following properties.\r\n\r\n• Sound can't pass through the barrier at the edge of the warded area.\r\n\r\n• The barrier of the warded area appears dark and foggy, preventing vision (including darkvision) through it.\r\n\r\n• Sensors created by Divination Spells can't appear inside the protected area or pass through the barrier at its perimeter.\r\n\r\n• Creatures in the area can't be targeted by Divination Spells.\r\n\r\n• Nothing can Teleport into or out of the warded area.\r\n\r\n• Planar Travel is blocked within the warded area.\r\n\r\nCasting this spell on the same spot every day for a year makes this Effect permanent.\r\n\r\nAt Higher Levels:\r\nWhen you cast this spell using a spell slot of 5th Level or higher, you can increase the size of the cube by 100 feet for each slot level beyond 4th. Thus you could protect a cube that can be up to 200 feet on one side by using a spell slot of 5th Level."]
["Bard, Druid, Sorcerer, Wizard",4,"Confusion","Action","Enchantment","Yes",90,"1 Minute",null,"Yes","WIS","VSM","Expand",null,"This spell assaults and twists creatures' minds, spawning delusions and provoking uncontrolled Actions. Each creature in a 10-foot-radius Sphere centered on a point you choose within range must succeed on a Wisdom saving throw when you cast this spell or be affected by it.\r\n\r\nAn affected target can't take Reactions and must roll a d10 at the start of each of its turns to determine its behavior for that turn.\r\n\r\n1: The creature uses all its Movement to move in a random direction. To determine the direction, roll a d8 and assign a direction to each die face. The creature doesn't take an action this turn.\r\n\r\n2-6: The creature doesn't move or take Actions this turn.\r\n\r\n7-8: The creature uses its action to make a melee Attack against a randomly determined creature within its reach. If there is no creature within its reach, the creature does nothing this turn.\r\n\r\n9-10: The creature can act and move normally.\r\n\r\nAt the end of its turns, an affected target can make a Wisdom saving throw. If it succeeds, this Effect ends for that target.\r\n\r\nAt Higher Levels:\r\nWhen you cast this spell using a spell slot of 5th Level or higher, the radius of the Sphere increases by 5 feet for each slot above 4th."]
["Druid, Sorcerer, Wizard",4,"Ice Storm","Action","Evocation","No",300,"Instant","2d8 + 4d6","Yes","DEX","VSM","Expand",null,"A hail of rock-hard ice pounds to the ground in a 20-foot-radius, 40-foot-high Cylinder centered on a point within range. Each creature in the Cylinder must make a Dexterity saving throw. A creature takes 2d8 bludgeoning damage and 4d6 cold damage on a failed save, or half as much damage on a successful one.\r\n\r\nHailstones turn the storm's area of Effect into Difficult Terrain until the end of your next turn.\r\n\r\nAt Higher Levels:\r\nWhen you cast this spell using a spell slot of 5th Level or higher, the bludgeoning damage increases by 1d8 for each slot level above 4th."]
["Wizard",4,"Arcane Eye","Action","Divination","Yes","30 Feet","1 Hour",null,"No",null,"VSM","Expand",null,"You create an Invisible, magical eye within range that hovers in the air for the Duration.\r\n\r\nYou mentally receive visual information from the eye, which has normal vision and Darkvision out to 30 feet. The eye can look in every direction.\r\n\r\nAs an action, you can move the eye up to 30 feet in any direction. There is no limit to how far away from you the eye can move, but it can't enter another plane of existence. A solid barrier blocks the eye's Movement, but the eye can pass through an opening as small as 1 inch in diameter."]
["Paladin, Cleric, Sorcerer, Warlock, Wizard",4,"Banishment","Action","Abjuration","Yes","60 Feet","1 Minute",null,"Yes","CHA","VSM","Expand",null,"You attempt to send one creature that you can see within range to another place of existence. The target must succeed on a Charisma saving throw or be banished.\r\n\r\nIf the target is native to the plane of existence you're on, you banish the target to a harmless Demiplane. While there, the target is Incapacitated. The target remains there until the spell ends, at which point the target reappears in the space it left or in the nearest unoccupied space if that space is occupied.\r\n\r\nIf the target is native to a different plane of existence that the one you're on, the target is banished with a faint popping noise, returning to its home plane. If the spell ends before 1 minute has passed, the target reappears in the space it left or in the nearest unoccupied space if that space is occupied. Otherwise, the target doesn't return.\r\n\r\nAt Higher Levels:\r\nWhen you cast this spell using a spell slot of 5th Level or higher, you can target one additional creature for each slot level above 4th."]
["Druid, Sorcerer, Warlock, Wizard",4,"Blight","Action","Necromancy","No","30 Feet","Instant","8d8","Yes","CON","VS","Expand",null,"Necromantic energy washes over a creature of your choice that you can see within range, draining moisture and vitality from it. The target must make a Constitution saving throw. The target takes 8d8 necrotic damage on a failed save, or half as much damage on a successful one. This spell has no Effect on Undead or Constructs.\r\n\r\nIf you target a plant creature or a magical plant, it makes the saving throw with disadvantage, and the spell deals maximum damage to it.\r\n\r\nIf you target a nonmagical plant that isn't a creature, such as a tree or shrub, it doesn't make a saving throw, it simply withers and dies.\r\n\r\nAt Higher Levels:\r\nWhen you cast this spell using a spell slot of 5th Level or higher, the damage increases by 1d8 for each slot level above 4th."]
["Druid, Wizard",4,"Conjure Minor Elementals","1 Minute","Conjuration","Yes","90 Feet","1 Hour",null,"Yes",null,"VS","Expand",null,"You summon Elementals that appear in unoccupied spaces that you can see within range. You choose one the following options for what appears.\r\n\r\n• One elemental of Challenge rating 2 or lower\r\n\r\n• Two Elementals of Challenge rating 1 or lower\r\n\r\n• Four Elementals of Challenge rating 1/2 or lower\r\n\r\n• Eight Elementals of Challenge rating 1/4 or lower.\r\n\r\nAn elemental summoned by this spell disappears when it drops to 0 Hit Points or when the spell ends.\r\n\r\nThe summoned creatures are friendly to you and your companions. Roll Initiative for the summoned creatures as a group, which has its own turns. They obey any verbal commands that you issue to them (no action required by you). If you don't issue any commands to them, they defend themselves from Hostile creatures, but otherwise take no Actions. The DM has the creatures' Statistics.\r\n\r\nAt Higher Levels: When you cast this spell using certain higher-level Spell Slots, you choose one of the summoning options above, and more creatures appear - twice as many with a 6th-level slot and three times as many with an 8th-level slot"]
["Cleric, Druid, Wizard",4,"Control Water","Action","Transmutation","Yes","300 Feet","10 Minutes","2d8","No","STR","VSM","Expand",null,"Until the spell ends, you control any freestanding water inside an area you choose that is a cube up to 100 feet on a side. You can choose from any of the following Effects when you cast this spell. As an action on Your Turn, you can repeat the same Effect or choose a different one.\r\n\r\nFlood:\r\nYou cause the water level of all standing water in the area to rise by as much as 20 feet. If the area includes a shore, the flooding water spills over onto dry land. If you choose an area in a large body of water, you instead create a 20-foot tall wave that travels from one side of the area to the other and then crashes down. Any Huge or smaller vehicles in the wave's path are carried with it to the other side. Any Huge or smaller vehicles struck by the wave have a 25 percent chance of capsizing. The water level remains elevated until the spell ends or you choose a different Effect. If this Effect produced a wave, the wave repeats on the start of your next turn while the flood Effect lasts.\r\n\r\nPart Water:\r\nYou cause water in the area to move apart and create a Trench. The Trench extends across the spell's area, and the separated water forms a wall to either side. The Trench remains until the spell ends or you choose a different Effect. The water then slowly fills in the Trench over the course of the next round until the normal water level is restored.\r\n\r\nRedirect Flow:\r\nYou cause flowing water in the area to move in a direction you choose, even if the water has to flow over obstacles, up walls, or in other unlikely directions. The water in the area moves as you direct it, but once it moves beyond the spell's area, it resumes its flow based on the terrain Conditions. The water continues to move in the direction you chose until the spell ends or you choose a different Effect.\r\n\r\nWhirlpool:\r\nThis Effect requires a body of water at least 50 feet square and 25 feet deep. You cause a whirlpool to form in the center of the area. The whirlpool forms a vortex that is 5 feet wide at the base, up to 50 feet wide at the top, and 25 feet tall. Any creature or object in the water and within 25 feet of the vortex is pulled 10 feet toward it. A creature can swim away from the vortex by making a Strength (Athletics) check against your spell save DC. When a creature enters the vortex for the first time on a turn or starts its turn there, it must make a Strength saving throw. On a failed save, the creature takes 2d8 bludgeoning damage and is caught in the vortex until the spell ends. On a successful save, the creature takes half damage, and isn't caught in the vortex. A creature caught in the vortex can use its action to try to swim away from the vortex as described above, but has disadvantage on the Strength (Athletics) check to do so. The first time each turn that an object enters the vortex, the object takes 2d8 bludgeoning damage, this damage occurs each round it remains in the vortex."]
["Wizard",4,"Fabricate","10 Minutes","Transmutation","No","120 Feet","Instant",null,"No",null,"VS","Expand",null,"You convert raw materials into products of the same material. For example, you can fabricate a wooden bridge from a clump of trees, a rope from a patch of hemp, and clothes from flax or wool.\r\n\r\nChoose raw materials that you can see within range. You can fabricate a Large or smaller object (contained within a 10-foot cube, or eight connected 5-foot cubes), given a sufficient quantity of raw material. If you are working with metal, stone, or another mineral substance, however, the fabricated object can be no larger than Medium (contained within a single 5-foot cube). The quality of Objects made by the spell is commensurate with the quality of the raw materials.\r\n\r\nCreatures or Magic Items can't be created or transmuted by this spell. You also can't use it to create items that ordinarily require a high degree of craftsmanship, such as jewelry, Weapons, glass, or armor, unless you have proficiency with the type of artisan's tools used to craft such Objects."]
["Wizard",4,"Faithful Hound","Action","Conjuration","No","30 Feet","8 Hours","4d8","No",null,"VSM","Expand",null,"You conjure a Phantom watchdog in an unoccupied space that you can see within range, where it remains for the Duration, until you dismiss it as an action, or until you move more than 100 feet away from it.\r\n\r\nThe hound is Invisible to all creatures except you and can't be harmed. When a Small or larger creature comes within 30 feet of it without first speaking the password that you specify when you cast this spell, the hound starts barking loudly. The hound sees Invisible creatures and can see into the Ethereal Plane. It ignores illusions.\r\n\r\nAt the start of each of your turns, the hound attempts to bite one creature within 5 feet of it that is Hostile to you. The hound's Attack bonus is equal to your Spellcasting Ability modifier + your Proficiency Bonus. On a hit, it deals 4d8 piercing damage."]
["Wizard",4,"Fire Shield","Action","Evocation","No","Self","10 Minutes","2d8","No",null,"VSM","Expand",null,"Thin and wispy flames wreathe your body for the Duration, shedding bright light in a 10-foot radius and dim light for an additional 10 feet. You can end the spell early by using an action to dismiss it.\r\n\r\nThe flames provide you with a warm Shield or a chill Shield, as you choose. The warm Shield grants you Resistance to cold damage, and the chill Shield grants you Resistance to fire damage.\r\n\r\nIn addition, whenever a creature within 5 feet of you hits you with a melee Attack, the Shield erupts with flame. The attacker takes 2d8 fire damage from a warm Shield, or 2d8 cold damage from a cold Shield."]
["Bard, Sorcerer, Wizard",4,"Greater Invisibility","Action","Illusion","Yes","Touch","1 Minute",null,"No",null,"VS","Expand",null,"You or a creature you touch becomes Invisible until the spell ends. Anything the target is wearing or carrying is Invisible as long as it is on the target's person."]
["Bard, Druid, Warlock, Wizard",4,"Hallucinatory Terrain","10 Minutes","Illusion","No","300 Feet","24 Hours",null,"No",null,"VSM","Expand",null,"You make natural terrain in a 150-foot cube in range look, sound, and smell like some other sort of natural terrain. Thus, open fields or a road can be made to resemble a swamp, hill, crevasse, or some other difficult or impassable terrain. A pond can be made to seem like a grassy meadow, a precipice like a gentle slope, or a rock-strewn gully like a wide and smooth road. Manufactured structures, Equipment, and creatures within the area aren't changed in appearance.\r\n\r\nThe tactile characteristics of the terrain are unchanged, so creatures entering the area are likely to see through the Illusion. If the difference isn't obvious by touch, a creature carefully examining the Illusion can attempt an Intelligence (Investigation) check against your spell save DC to disbelieve it. A creature who discerns the Illusion for what it is, sees it as a vague image superimposed on the terrain."]
["Bard, Cleric, Druid, Paladin, Ranger, Wizard",4,"Locate Creature","Action","Divination","Yes","Self","1 Hour",null,"No",null,"VSM","Expand",null,"Describe or name a creature that is familiar to you. You sense the direction to the creature's location, as long as that creature is within 1,000 feet of you. If the creature is moving, you know the direction of its Movement.\r\n\r\nThe spell can locate a specific creature known to you, or the nearest creature of a specific kind (such as a human or a unicorn), so long as you have seen such a creature up close - within 30 feet - at least once. If the creature you described or named is in a different form, such as being under the Effects of a Polymorph spell, this spell doesn't locate the creature.\r\n\r\nThis spell can't locate a creature if running water at least 10 feet wide blocks a direct path between you and the creature."]
["Bard, Druid, Sorcerer, Wizard",4,"Polymorph","Action","Transmutation","Yes","60 Feet","1 Hour",null,"No","WIS","VSM","Expand",null,"This spell transforms a creature with at least 1 hit point that you can see within range into a new form. An unwilling creature must make a Wisdom saving throw to avoid the Effect. A Shapechanger automatically succeeds on this saving throw.\r\n\r\nThe transformation lasts for the Duration, or until the target drops to 0 Hit Points or dies. The new form can be any beast whose Challenge rating is equal to or less than the target's (or the target's level, if it doesn't have a Challenge rating). The target's game Statistics, including mental Ability Scores, are replaced by the Statistics of the chosen beast. It retains its Alignment and personality.\r\n\r\nThe target assumes the Hit Points of its new form. When it reverts to its normal form, the creature returns to the number of Hit Points it had before it transformed. If it reverts as a result of Dropping to 0 Hit Points, any excess damage carries over to its normal form. As long as the excess damage doesn't reduce the creature's normal form to 0 Hit Points, it isn't knocked Unconscious.\r\n\r\nThe creature is limited in the Actions it can perform by the Nature of its new form, and it can't speak, cast Spells, or take any other action that requires hands or Speech.\r\n\r\nThe target's gear melds into the new form. The creature can't activate, use, wield, or otherwise benefit from any of its Equipment."]
["Wizard",4,"Resilient Sphere","Action","Evocation","Yes","30 Feet","1 Minute",null,"No","DEX","VSM","Expand",null,"A Sphere of shimmering force encloses a creature or object of Large size or smaller within range. An unwilling creature must make a Dexterity saving throw. On a failed save, the creature is enclosed for the Duration.\r\n\r\nNothing, not physical Objects, energy, or other spell Effects, can pass through the barrier, in or out, though a creature in the Sphere can breathe there. The Sphere is immune to all damage, and a creature or object inside can't be damaged by attacks or Effects originating from outside, nor can a creature inside the Sphere damage anything outside it.\r\n\r\nThe Sphere is weightless and just large enough to contain the creature or object inside. An enclosed creature can use its action to push against the sphere's walls and thus roll the Sphere at up to half the creature's speed. Similarly, the globe can be picked up and moved by other creatures.\r\n\r\nA Disintegrate spell targeting the globe destroys it without harming anything inside it."]
["Wizard",4,"Secret Chest","Action","Conjuration","No","Touch","Instant",null,"No",null,"VSM 5000gp Chest, 50gp tiny replica","Expand",null,"You hide a chest, and all its contents, on the Ethereal Plane. You must touch the chest and the miniature replica that serves as a material component for the spell. The chest can contain up to 12 cubic feet of nonliving material (3 feet by 2 feet by 2 feet).\r\n\r\nWhile the chest remains on the Ethereal Plane, you can use an action and touch the replica to recall the chest. It appears in an unoccupied space on the ground within 5 feet of you. You can send the chest back to the Ethereal Plane by using an action and touching both the chest and the replica.\r\n\r\nAfter 60 days, there is a cumulative 5 percent chance per day that the spell's Effect ends. This Effect ends if you cast this spell again, if the smaller replica chest is destroyed, or if you choose to end the spell as an action. If the spell ends and the larger chest is on the Ethereal Plane, it is irretrievably lost."]
["Cleric, Druid, Wizard",4,"Stone Shape","Action","Transmutation","No","TOuch","Instant",null,"No",null,"VSM","Expand",null,"You touch a stone object of Medium size or smaller or a section of stone no more than 5 feet in any dimension and form it into any shape that suits your purpose. So, for example, you could shape a large rock into a weapon, idol, or coffer, or make a small Passage through a wall, as long as the wall is less than 5 feet thick. You could also shape a stone door or its frame to seal the door shut. The object you create can have up to two hinges and a latch, but finer mechanical detail isn't possible."]
["Druid, Paladin, Ranger, Sorcerer, Wizard",4,"Stoneskin","Action","Abjuration","Yes","Touch","1 Hour",null,"No",null,"VSM 100gp Diamond (consumed)","Expand",null,"This spell turns the flesh of a willing creature you touch as hard as stone. Until the spell ends, the target has Resistance to nonmagical bludgeoning, piercing, and slashing damage."]
["Bard",4,"Complusion","Action","Enchantment","Yes",30,"1 Minute",null,"No","WIS","VS","Expand",null,"Creatures of your choice that you can see within range and that can hear you must make a Wisdom saving throw. A target automatically succeeds on this saving throw if it can't be charmed. On a failed save, a target is affected by this spell. Until the spell ends, you can use a bonus action on each of your turns to designate a direction that is horizontal to you. Each affected target must use as much of its movement as possible to move in that direction on its next turn. It can take its action before it moves. After moving in this way, it can make another Wisdom saving to try to end the effect. A target isn't compelled to move into an obviously deadly hazard, such as a fire or pit, but it will provoke opportunity attacks to move in the designated direction."]
["Bard, Cleric, Druid, Ranger",4,"Freedom of Movement","Action","Abjuration","No","Touch","1 Hour",null,"No",null,"VSM","Expand",null,"You touch a willing creature. For the Duration, the target's Movement is unaffected by Difficult Terrain, and Spells and other magical Effects can neither reduce the target's speed nor cause the target to be Paralyzed or Restrained.\r\n\r\nThe target can also spend 5 feet of Movement to automatically Escape from nonmagical restraints, such as Manacles or a creature that has it Grappled. Finally, being Underwater imposes no penalties on the target's Movement or attacks."]
["Warlock, Wizard",5,"Danse Macabre","Action","Necromancy","Yes",60,"1 Hour",null,"Yes",null,"VS","Expand",null,"Threads of dark power leap from your fingers to pierce up to five Small or Medium corpses you can see within range. Each corpse immediately stands up and becomes undead. You decide whether it is a zombie or a skeleton (the statistics for zombies and skeletons are in the Monster Manual), and it gains a bonus to its attack and damage rolls equal to your spellcasting ability modifier. You can use a bonus action to mentally command the creatures you make with this spell, issuing the same command to all of them. To receive the command, a creature must be within 60 feet of you. You decide what action the creatures will take and where they will move during their next turn, or you can issue a general command, such as to guard a chamber or passageway against your foes. lfyou issue no commands, the creatures do nothing except defend themselves against hostile creatures. Once given an order, the creatures continue to follow it until their task is complete.\r\n\r\nThe creatures are under your control until the spell ends, after which they become inanimate once more.\r\n\r\nAt higher levels:\r\nWhen you cast this spell using a spell slot‘ of 6th level or higher, you animate up to two additional corpses for each slot level above 5th."]
["Bard, Sorcerer, Warlock, Wizard",5,"Hold Monster","Action","Enchantment","Yes",90,"1 Minute",null,"Yes","WIS","VSM","Expand",null,"Choose a creature that you can see within range. The target must succeed on a Wisdom saving throw or be Paralyzed for the Duration. This spell has no Effect on Undead. At the end of each of its turns, the target can make another Wisdom saving throw. On a success, the spell ends on the target.\r\n\r\nAt Higher Levels:\r\nWhen you cast this spell using a spell slot of 6th level or higher, you can target on additional creature for each slot level above 5th. The creatures must be within 30 feet of each other when you target them."]
["Warlock, Wizard",5,"Negative Energy Flood","Action","Necromancy","No",60,"Instant","5d12","No","CON","VM","Expand",null,"You send ribbons of negative energy at one creature you can see within range. Unless the target is undead, it must make a Constitution saving throw, taking 5d12 necrotic damage on a failed save, or half as much damage on a successful one. A target killed by this damage rises up as a zombie at the start of your next turn. The zombie pursues whatever creature it can see that is closest to it. Statistics for the zombie are in the Monster Manual. If you target an undead with this spell, the target doesn’t make a saving throw. Instead, roll 5d12. The target gains half the total as temporary hit points.\r\n\r\n"]
["Sorcerer, Wizard",5,"Cone of Cold","Action","Evocation","No","60 Cone","Instant","8d8","Yes","CON","VSM","Expand",null,"A blast of cold air erupts from your hands. Each creature in a 60-foot cone must make a Constitution saving throw. A creature takes 8d8 cold damage on a failed save, or half as much damage on a successful one.\r\n\r\nA creature killed by this spell becomes a frozen statue until it thaws.\r\n\r\nAt Higher Levels:\r\nWhen you cast this spell using a spell slot of 6th level or higher, the damage increases by 1d8 for each slot level above 5th."]
["Bard, Sorcerer, Wizard",5,"Animate Objects","Action","Transmutation","Yes","120 Feet","1 Minute","Varies","Yes",null,"VS","Expand",null,"Objects come to life at your Command. Choose up to ten nonmagical Objects within range that are not being worn or carried. Medium Targets count as two Objects, Large Targets count as four Objects, Huge Targets count as eight Objects. You can't animate any object larger than Huge. Each target animates and becomes a creature under your control until the spell ends or until reduced to 0 Hit Points.\r\n\r\nAs a Bonus Action, you can mentally Command any creature you made with this spell if the creature is within 500 feet of you (if you control multiple creatures, you can Command any or all of them at the same time, issuing the same Command to each one). You decide what action the creature will take and where it will move during its next turn, or you can issue a general Command, such as to guard a particular chamber or corridor. If you issue no commands, the creature only defends itself against Hostile creatures. Once given an order, the creature continues to follow it until its task is complete.\r\n\r\nAnimated Object Statistics\r\n\r\nTiny - HP: 20, AC: 18, Attack: +8 to hit, 1d4 + 4 damage, Str: 4, Dex: 18\r\n\r\nSmall - HP: 25, AC: 16, Attack: +6 to hit, 1d8 + 2 damage, Str: 6, Dex: 14\r\n\r\nMedium - HP: 40, AC: 13, Attack: +5 to hit, 2d6 + 1 damage, Str: 10, Dex: 12\r\n\r\nLarge - HP: 50, AC: 10, Attack: +6 to hit, 2d10 + 2 damage, Str: 14, Dex: 10\r\n\r\nHuge - HP: 80, AC: 10, Attack: +8 to hit, 2d12 + 4 damage, Str: 18, Dex: 6\r\n\r\nAn animated object is a Construct with AC, Hit Points, attacks, Strength, and Dexterity determine by its size. Its Constitution is 10 and its Intelligence and Wisdom are 3, and its Charisma is 1. Its speed is 30 feet, if the Objects lack legs or other appendages it can use for locomotion, it instead has a flying speed of 30 feet and can hover. If the object is securely attached to a surface or larger object, such as a chain bolted to a wall, its speed is 0. It has Blindsight with a radius of 30 feet and is blind beyond that distance. When the animated object drops to 0 Hit Points, it reverts to its original object form, and any remaining damage carries over to its original object form.\r\n\r\nIf you Command an object to Attack, it can make a single melee Attack against a creature within 5 feet of it. It makes a slam Attack with an Attack bonus and bludgeoning damage determine by its size. The DM might rule that a specific object inflicts slashing or piercing damage based on its form.\r\n\r\nAt Higher Levels:\r\nIf you cast this spell using a spell slot of 6th level or higher, you can animate two additional Objects for each slot level above 5th."]
["Wizard",5,"Arcane Hand","Action","Evocation","Yes","120 Feet","1 Minute","Varies","Yes",null,"VSM","Expand",null,"You create a Large hand of shimmering, translucent force in an unoccupied space that you can see within range. The hand lasts for the spell's Duration, and it moves at your Command, mimicking the movements of your own hand.\r\n\r\nThe hand is an object that has AC 20 and Hit Points equal to your hit point maximum. If it drops to 0 Hit Points, the spell ends. It has a Strength of 26 (+8) and a Dexterity of 10 (+0). The hand doesn't fill its space.\r\n\r\nWhen you cast the spell and as a Bonus Action on your subsequent turns, you can move the hand up to 60 feet and then cause one of the following Effects with it.\r\n\r\nClenched Fist. The hand strikes one creature or object within 5 feet of it. Make a melee spell Attack for the hand using your game Statistics. On a hit, the target takes 4d8 force damage.\r\n\r\nForceful Hand. The hand attempts to push a creature within 5 feet of it in a direction you choose. Make a check with the hand's Strength contested by the Strength (Athletics) check of the target. If the target is Medium or smaller, you have advantage on the check. If you succeed, the hand pushes the target up to 5 feet plus a number of feet equal to five times your Spellcasting Ability modifier. The hand moves with the target to remain within 5 feet of it.\r\n\r\nGrasping Hand. The hand attempts to grapple a Huge or smaller creature within 5 feet of it. You use the hand's Strength score to resolve the grapple. If the target is Medium or smaller, you have advantage on the check. While the hand is Grappling the target, you can use a Bonus Action to have the hand crush it. When you do so, the target takes bludgeoning damage equal to 2d6 + your Spellcasting Ability modifier.\r\n\r\nInterposing Hand. The hand interposes itself between you and a creature you choose until you give the hand a different Command. The hand moves to stay between you and the target, providing you with half cover against the target. The target can't move through the hand's space if its Strength score is less than or equal to the hand's Strength score. If its Strength score is higher than the hand's Strength score, the target can move toward you through the hand's space, but that space is Difficult Terrain for the target.\r\n\r\nAt Higher Levels:\r\nWhen you cast this spell using a spell slot of 6th level or higher, the damage from the clenched fist option increases by 2d8 and the damage from the grasping hand increases by 2d6 for each slot level above 5th."]
["Sorcerer, Wizard",5,"Cloudkill","Action","Conjuration","Yes","120 Feet","10 Minutes","5d8","Yes","CON","VS","Expand",null,"You create a 20-foot-radius Sphere of poisonous, yellow-green fog centered on a point you choose within range. The fog spreads around corners. It lasts for the Duration or until strong wind disperses the fog, ending the spell. Its area is heavily obscured.\r\n\r\nWhen a creature enters the spell's area for the first time on a turn or starts its turn there, that creature must make a Constitution saving throw. The creature takes 5d8 poison damage on a failed save, or half as much damage on a successful one. Creatures are affected even if they hold their breath or don't need to breathe.\r\n\r\nThe fog moves 10 feet away from you at the start of each of your turns, rolling along the surface of the ground. The vapors, being heavier than air, sink to the lowest level of the land, even pouring down openings.\r\n\r\nAt Higher Levels:\r\nWhen you cast this spell using a spell slot of 6th level or higher, the damage increases by 1d8 for each slot level above 5th."]
["Druid, Wizard",5,"Conjure Elemental","1 Minute","Conjuration","Yes","90 Feet","1 Hour",null,"Yes",null,"VSM","Expand",null,"You call forth an elemental servant. Choose an area of air, earth, fire, or water that fills a 10-foot cube within range. An elemental of Challenge rating 5 or lower appropriate to the area you chose appears in an unoccupied space within 10 feet of it. For example, a Fire Elemental emerges from a bonfire, and an Earth Elemental rises up from the ground. The elemental disappears when it drops to 0 Hit Points or when the spell ends.\r\n\r\nThe elemental is friendly to you and your companions for the Duration. Roll Initiative for the elemental, which has its own turns. It obeys any verbal commands that you issue to it (no action required by you). If you don't issue any commands to the elemental, it defends itself from Hostile creatures but otherwise takes no Actions.\r\n\r\nIf your Concentration is broken, the elemental doesn't disappear. Instead, you lose control of the elemental, it becomes Hostile toward you and your companions, and it might Attack. An uncontrolled elemental can't be dismissed by you, and it disappears 1 hour after you summoned it. The DM has the elemental's Statistics.\r\n\r\nAt Higher Levels:\r\nWhen you cast this spell using a spell slot of 6th level or higher, the Challenge rating increases by 1 for each slot level above 5th."]
["Warlock, Wizard",5,"Contact Other Plane","1 Minute (Ritual)","Divination","No","Self","1 Minute","6d6","No","INT","V","Expand",null,"You mentally contact a demigod, the spirit of a long-dead sage, or some other mysterious entity from another plane. Contacting this extraplanar Intelligence can strain or even break your mind. When you cast this spell, make a DC 15 Intelligence saving throw. On a failure, you take 6d6 psychic damage and are insane until you finish a Long Rest. While insane, you can't take Actions, can't understand what other creatures say, can't read, and speak only in gibberish. A Greater Restoration spell cast on you ends this Effect.\r\n\r\nOn a successful save, you can ask the entity up to five questions. You must ask your questions before the spell ends. The DM answers each question with one word, such as yes, no, maybe, never, irrelevant, unclear (if the entity doesn't know the answer to the question). If a one-word answer would be misleading, the DM might instead offer a short phrase as an answer."]
["Sorcerer, Wizard",5,"Creation","1 Minute","Illusion","No","30 Feet","Special",null,"Yes",null,"VSM","Expand",null,"You pull wisps of Shadow material from the Shadowfell to create a nonliving object of vegetable matter within range - soft goods, rope, wood, or something similar. You can also use this spell to create mineral Objects such as stone, Crystal, or metal. The object created must be no larger than a 5-foot cube, and the object must be of a form and material that you have seen before.\r\n\r\nThe Duration depends on the object's material. If the object is composed of multiple materials, use the shortest Duration.\r\n\r\nMaterial - Duration:\r\nVegetable matter - 1 day\r\nStone/crystal - 12 hours\r\nPrecious metals - 1 hour\r\nGems - 10 minutes\r\nAdamantine/Mithral - 1 minute\r\n\r\nUsing any material created by this spell as another spell's material component causes that spell to fail.\r\n\r\nAt Higher Levels:\r\nWhen you cast this spell using a spell slot of 6th level or higher, the cube increases by 5 feet for each slot level above 5th."]
["Bard, Sorcerer, Wizard",5,"Dominate Person","Action","Evocation","Yes","60 Feet","1 Minute",null,"Yes","WIS","VS","Expand",null,"You attempt to beguile a Humanoid that you can see within range. It must succeed on a Wisdom saving throw or be Charmed by you for the Duration. If you or creatures that are friendly to you are fighting it, it has advantage on the saving throw.\r\n\r\nWhile the target is Charmed, you have a telepathic link with it as long as the two of you are on the same plane of existence. You can use this telepathic link to issue commands to the creature while you are conscious (no action required), which it does its best to obey. You can specify a simple and general course of action, such as Attack that creature, Run over there, or Fetch that object. If the creature completes the order and doesn't receive further direction from you, it defends and preserves itself to the best of its ability.\r\n\r\nYou can use your action to take total and precise control of the target. Until the end of your next turn, the creature takes only the Actions you choose, and doesn't do anything that you don't allow it to do. During this time you can also cause the creature to use a Reaction, but this requires you to use your own Reaction as well.\r\n\r\nEach time the target takes damage, it makes a new Wisdom saving throw against the spell. If the saving throw succeeds, the spell ends.\r\n\r\nAt Higher Levels:\r\nWhen you cast this spell using a 6th-level spell slot, the Duration is Concentration, up to 10 minutes. When you use a 7th-level spell slot, the Duration is Concentration, up to 1 hour. When you use a spell slot of 8th level or higher, the Duration is Concentration, up to 8 hours."]
["Bard, Druid, Warlock, Wizard",5,"Dream","1 Minute","Illusion","No","Special","8 Hours","3d6","No","WIS","VSM","Expand",null,"This spell shapes a creature's dreams. Choose a creature known to you as the target of this spell. The target must be on the same plane of existence as you. Creatures that don't sleep, such as elves, can't be contacted by this spell. You, or a willing creature you touch, enters a trance state, acting as a messenger. While in the trance, the messenger is aware of his or her surroundings, but can't take Actions or move.\r\n\r\nIf the target is asleep, the messenger appears in the target's dreams and can converse with the target as long as it remains asleep, through the Duration of the spell. The messenger can also shape The Environment of the dream, creating landscapes, Objects, and other images. The messenger can emerge from the trance at any time, ending the Effect of the spell early. The target recalls the dream perfectly upon waking. If the target is awake when you cast the spell, the messenger knows it, and can either end the trance (and the spell) or wait for the target to fall asleep, at which point the messenger appears in the target's dreams.\r\n\r\nYou can make the messenger appear monstrous and terrifying to the target. If you do, the messenger can deliver a Message of no more than ten words and then the target must make a Wisdom saving throw. On a failed save, echoes of the phantasmal Monstrosity spawn a Nightmare that lasts the Duration of the target's sleep and prevents the target from gaining any benefit from that rest. In addition, when the target wakes up, it takes 3d6 psychic damage.\r\n\r\nIf you have a body part, lock of hair, clipping from a nail, or similar portion of the target's body, the target makes its saving throw with disadvantage."]
["Bard, Cleric, Druid, Paladin, Wizard",5,"Geas","1 Minute","Enchantment","No","60 Feet","30 Days","5d10","Yes","WIS","V","Expand",null,"You place a magical Command on a creature that you can see within range, forcing it to carry out some service or refrain from some action or course of activity as you decide. If the creature can understand you, it must succeed on a Wisdom saving throw or become Charmed by you for the Duration. While the creature is Charmed by you, it takes 5d10 psychic damage each time it acts in a manner directly counter to your instructions, but no more than once each day. A creature that can't understand you is unaffected by the spell.\r\n\r\nYou can issue any Command you choose, short of an activity that would result in certain death. Should you issue a suicidal Command, the spell ends.\r\n\r\nYou can end the spell early by using an action to dismiss it. A Remove Curse, Greater Restoration, or wish spell also ends it.\r\n\r\nAt Higher Levels:\r\nWhen you cast this spell using a spell slot of 7th or 8th level, the Duration is 1 year. When you cast this spell using a spell slot of 9th level, the spell lasts until it is ended by one of the Spells mentioned above."]
["Bard, Cleric, Wizard",5,"Legend Lore","10 Minutes","Divination","No","Self","Instant",null,"No",null,"VSM 250gp Incense (consumed), 4 50gp ivory strips","Expand",null,"Name or describe a person, place, or object. The spell brings to your mind a brief summary of the significant lore about the thing you named. The lore might consist of current tales, forgotten stories, or even Secret lore that has never been widely known. If the thing you named isn't of legendary importance, you gain no information.\r\n\r\nThe more information you already have about the thing, the more precise and detailed the information you receive is. The information you learn is accurate but might be couched in figurative language. For example, if you have a mysterious magic axe on hand, the spell might yield this information - Woe to the evildoer whose hand touches the axe, for even the haft slices the hand of the evil ones. Only a true Child of Stone, lover and beloved of Moradin, may Awaken the true powers of the axe, and only with the sacred word Rudnogg on the lips."]
["Bard, Wizard",5,"Mislead","Action","Illusion","Yes","Self","1 Hour",null,"No",null,"S","Expand",null,"You become Invisible at the same time that an illusory double of you appears where you are standing. The double lasts for the Duration, but the Invisibility ends if you Attack or Cast a Spell.\r\n\r\nYou can use your action to move your illusory double up to twice your speed and make it gesture, speak, and behave in whatever way you choose. You can see through its eyes and hear through its ears as if you were located where it is. On each of your turns as a Bonus Action, you can switch from using its Senses to using your own, or back again. While you are using its Senses, you are Blinded and Deafened in regard to your own surroundings."]
["Bard, Wizard",5,"Modify Memory","Action","Enchantment","Yes","30 Feet","1 Minute",null,"Yes","WIS","VS","Expand",null,"You attempt to reshape another creature's memories. One creature that you can see must make a Wisdom saving throw. If you are fighting the creature, it has advantage on the saving throw. On a failed save, the target becomes Charmed by you for the Duration. The Charmed target is Incapacitated and unaware of its surroundings, though it can still hear you. If it takes any damage or is targeted by another spell, this spell ends, and none of the target's memories are modified.\r\n\r\nWhile this charm lasts, you can affect the target's memory of an event that it experienced within the last 24 hours and that lasted no more than 10 minutes. You can permanently eliminate all memory of the event, allow the target to recall the event with perfect clarity and exacting detail, change its memory of the details of the event, or create a memory of some other event.\r\n\r\nYou must speak to the target to describe how its memories are affected, and it must be able to understand your language for the modified memories to take root. Its mind fills in any gaps in the details of your description. If the spell ends before you have finished describing the modified memories, the creature's memory isn't altered. Otherwise, the modified memories take hold when the spell ends.\r\n\r\nA modified memory doesn't necessarily affect how a creature behaves, particularly if the memory contradicts the creature's natural inclinations, Alignment, or beliefs. An illogical modified memory, such as implanting a memory of how much the creature enjoyed dousing itself in acid, is dismissed, perhaps as a bad dream. The DM might deem a modified memory too nonsensical to affect a creature in a significant manner.\r\n\r\nA Remove Curse or Greater Restoration spell cast on the target restores the creature's true memory.\r\n\r\nAt Higher Levels:\r\nIf you cast this spell using a spell slot of 6th level or higher, you can alter the target's memories of an event that took place up to 7 days ago (6th level), 30 days ago (7th level), 1 year ago (8th level), or any time in the creature's past (9th level)."]
["Wizard",5,"Passwall","Action","Transmutation","No","30 Feet","1 Hour",null,"No",null,"VSM","Expand",null,"A Passage appears at a point of your choice that you can see on a wooden, plaster, or stone surface (such as a wall, a ceiling, or a floor) within range, and lasts for the Duration. You choose the opening's dimensions - up to 5 feet wide, 8 feet tall, and 20 feet deep. The Passage creates no instability in a structure surrounding it.\r\n\r\nWhen the opening disappears, any creatures or Objects still in the Passage created by the spell are safely ejected to an unoccupied space nearest to the surface on which you cast the spell."]
["Bard, Cleric, Druid, Wizard",5,"Planar Binding","1 Hour","Abjuration","No","60 Feet","24 Hours",null,"Yes","CHA","VSM 1000gp Jewel (consumed)","Expand",null,"With this spell, you attempt to bind a Celestial, an elemental, a fey, or a fiend to your service. The creature must be within range for the entire casting of the spell. (Typically, the creature is first summoned into the center of an inverted Magic Circle in order to keep it trapped while this spell is cast.) At the completion of the casting, the target must make a Charisma saving throw. On a failed save, it is bound to serve you for the Duration. If the creature was summoned or created by another spell, that spell's Duration is extended to match the Duration of this spell.\r\n\r\nA bound creature must follow your instructions to the best of its ability. You might Command the creature to accompany you on an adventure, to guard a location, or to deliver a Message. The creature obeys the letter of your instructions, but if the creature is Hostile to you, it strives to twist your words to achieve its own objectives. If the creature carries out your instructions completely before the spell ends, it travels to you to report this fact if you are on the same plane of existence. If you are on a different plane of existence, it returns to the place where you bound it and remains there until the spell ends.\r\n\r\nAt Higher Levels:\r\nWhen you cast this spell using a spell slot of a higher level, the Duration increases to 10 days with a 6th-level slot, to 30 days with a 7th-level slot, to 180 days with an 8th-level slot, and to a year and a day with a 9th-level spell slot."]
["Bard, Cleric, Druid, Warlock, Wizard",5,"Scrying","10 Minutes","Divination","Yes","Self","10 Minutes",null,"No","WIS","VSM 1000gp Focus","Expand",null,"You can see and hear a particular creature you choose that is on the same plane of existence as you. The target must make a Wisdom saving throw, which is modified by how well you know the target and the sort of physical connection you have to it. If a target knows you're casting this spell, it can fail the saving throw voluntarily if it wants to be observed.\r\n\r\nKnowledge - Save Modifier\r\n\r\nSecondhand (you have heard of the target) - +5\r\n\r\nFirsthand (you have met the target) +0\r\nFamiliar (you know the target well) - -5\r\n\r\nConnection - Save Modifier\r\n\r\nLikeness or picture - -2\r\n\r\nPossession or garment - -4\r\n\r\nBody part, lock of hair, bit of nail, or the like - -10\r\n\r\nOn a successful save, the target isn't affected, and you can't use this spell against it again for 24 hours.\r\n\r\nOn a failed save, the spell creates an Invisible sensor within 10 feet of the target. You can see and hear through the sensor as if you were there. The sensor moves with the target, remaining within 10 feet of it for the Duration. A creature that can see Invisible Objects sees the sensor as a luminous orb about the size of your fist.\r\n\r\nInstead of targeting a creature, you can choose a location you have seen before as the target of this spell. When you do, the sensor appears at that location and doesn't move."]
["Bard, Sorcerer, Wizard",5,"Seeming","Action","Illusion","No",null,"8 Hours",null,"No","CHA","VS","Expand",null,"This spell allows you to change the appearance of any number of creatures that you can see within range. You give each target you choose a new, illusory appearance. An unwilling target can make a Charisma saving throw, and if it succeeds, it is unaffected by this spell.\r\n\r\nThe spell disguises physical appearances as well as clothing, armor, Weapons, and Equipment. You can make each creature seem 1 foot shorter or taller and appear thin, fat, or in-between. You can't change a target's body type, so you must choose a form that has the same basic arrangement of limbs. Otherwise, the extent of the Illusion is up to you. The spell lasts for the Duration, unless you use your action to dismiss it sooner.\r\n\r\nThe changes wrought by this spell fail to hold up to physical inspections. For example, if you use this spell to add a hat to a creature's outfit Objects pass through the hat, and anyone who touches it would feel nothing or would feel the creature's head and hair. If you use this spell to appear thinner then you are, the hand of someone who reaches out to touch you would bump into you while it was seemingly still in midair.\r\n\r\nA creature can use its action to inspect a target and make an Intelligence (Investigation) check against your spell save DC. If it succeeds, it becomes aware that the target is disguised."]
["Sorcerer, Wizard",5,"Telekinesis","Action","Transmutation","Yes","60 Feet","10 Minutes",null,"No",null,"VS","Expand",null,"You gain the ability to move or manipulate creatures or Objects by thought. When you cast the spell, and as your action each round for the Duration, you can exert your will on one creature or object that you can see within range, causing the appropriate Effect below. You can affect the same target round after round, or choose a new one at any time. If you switch Targets, the prior target is no longer affected by the spell.\r\n\r\nCreature: You can try to move a Huge or smaller creature. Make an ability check with your Spellcasting Ability contested by the creature's Strength check. If you win the contest, you move the creature up to 30 feet in any direction, including upward but not beyond the range of this spell. Until the end of your next turn, the creature is Restrained in your telekinetic grip. A creature lifted upward is suspended in mid-air.\r\n\r\nOn subsequent rounds, you can use your action to attempt to maintain your telekinetic grip on the creature by repeating the contest.\r\n\r\nObject: You can try to move an object that weighs up to 1,000 pounds. If the object isn't being worn or carried, you automatically move it up to 30 feet in any direction, but not beyond the range of this spell.\r\n\r\nIf the object is worn or carried by a creature, you must make an ability check with your Spellcasting Ability contested by that creature's Strength check. If you succeed, you pull the object away from that creature and can move it up to 30 feet in any direction but not beyond the range of this spell.\r\n\r\nYou can exert fine control on Objects with your telekinetic grip, such as manipulating a simple tool, opening a door or a container, stowing or retrieving an item from an open container, or pouring the contents from a vial."]
["Wizard",5,"Telepathic Bond","Action (Ritual)","Divination","No","30 Feet","1 Hour",null,"No",null,"VSM","Expand",null,"You forge a telepathic link among up to eight willing creatures of your choice within range, psychically linking each creature to all the others for the Duration. Creatures with Intelligence scores of 2 or less aren't affected by this spell.\r\n\r\nUntil the spell ends, the targets⁠ can communicate telepathically through the bond whether or not they have a common⁠ language. The communication⁠ is possible over any distance, though it can't extend to other Planes of Existence."]
["Bard, Sorcerer, Wizard",5,"Teleportation Circle","1 Minute","Conjuration","No","10 Feet","1 Round",null,"No",null,"VM 50gp gems/chalk/ink (consumed)","Expand",null,"As you cast the spell, you draw a 10-foot-diameter circle on the ground inscribed with sigils that link your location to a permanent teleportation circle of your choice whose sigil sequence you know and that is on the same plane of existence as you. A shimmering portal opens within the circle you drew and remains open until the end of your next turn. Any creature that enters the portal instantly appears within 5 feet of the destination circle or in the nearest unoccupied space if that space is occupied.\r\n\r\nMany major temples, guilds, and other important places have permanent teleportation circles inscribed somewhere within their confines. Each such circle includes a unique sigil sequence - a string of magical runes arranged in a particular pattern. When you first gain the ability to cast this spell, you learn the sigil sequences for two destinations on The Material Plane, determined by the DM. You can learn additional sigil sequences during your adventures⁠. You can commit a new sigil sequence to memory after studying it for 1 minute.\r\n\r\nYou can create a permanent teleportation circle by casting this spell in the same location every day for one year. You need not use the circle to teleport⁠ when you cast the spell in this way."]
["Wizard",5,"Wall of Force","Action","Evocation","Yes","120 Feet","10 Minutes",null,"No",null,"VSM","Expand",null,"An Invisible wall of force springs into existence at a point you choose within range. The wall appears in any orientation you choose, as a horizontal or vertical barrier or at an angle. It can be free floating or Resting on a solid surface. You can form it into a hemispherical dome or a Sphere with a radius of up to 10 feet, or you can shape a flat surface made up of ten 10-foot-by-10-foot panels. Each panel must be contiguous with another panel. In any form, the wall is 1/4 inch thick. It lasts for the Duration. If the wall cuts through a creature's space when it appears, the creature is pushed to one side of the wall (your choice which side).\r\n\r\nNothing can physically pass through the wall. It is immune to all damage and can't be dispelled by Dispel Magic. A Disintegrate spell destroys the wall instantly, however. The wall also extends into the Ethereal Plane, blocking ethereal Travel through the wall."]
["Druid, Sorcerer, Wizard",5,"Wall of Stone","Action","Evocation","Yes","120 Feet","10 Minutes",null,"No","DEX",null,"Expand",null,"A nonmagical wall of solid stone springs into existence at a point you choose within range. The wall is 6 inches thick and is composed of ten 10-foot-by-10-foot panels. Each panel must be contiguous with at least on other panel. Alternatively, you can create 10-foot-by-20-foot panels that are only 3 inches thick.\r\n\r\nIf the wall cuts through a creature's space when it appears, the creature is pushed to one side of the wall (your choice). If a creature would be surrounded on all sides by the wall (or the wall and another solid surface), that creature can make a Dexterity saving throw. On a success, it can use its Reaction to move up to its speed so that it is no longer enclosed by the wall.\r\n\r\nThe wall can have any shape you desire, though it can't occupy the same space as a creature or object. the wall doesn't need to be vertical or Resting on any firm foundation. It must, however, merge with and be solidly supported by existing stone. Thus you can use this spell to bridge a chasm or create a ramp.\r\n\r\nIf you create a span greater than 20 feet in length, you must halve the size of each panel to create supports. You can crudely shape the wall to create crenellations, battlements, and so on.\r\n\r\nThe wall is an object made of stone that can be damaged and thus breached. Each panel has AC 15 and 30 Hit Points per inch of thickness. Reducing a panel to 0 Hit Points destroys it and might cause connected panels to collapse at the DM's discretion.\r\n\r\nIf you maintain your Concentration on this spell for its whole Duration, the wall becomes permanent and can't be dispelled. Otherwise, the wall disappears when the spell ends."]
["Bard, Druid",5,"Awaken","8 Hours","Transmutation","No","Touch","Instant",null,"No",null,"VSM 1000gp Agate","Expand",null,"After spending the Casting Time tracing magical pathways within a precious gemstone, you touch a huge or smaller beast or plant. The target must have either no Intelligence score or an Intelligence of 3 or less. The target gains an Intelligence of 10. The target also gains the ability to speak one language you know. If the target is a plant, it gains the ability to move its limbs, roots, vines, creepers, and so forth, and it gains Senses similar to a human's. Your DM chooses Statistics appropriate for the awakened plant, such as the Statistics for the Awakened Shrub or the Awakened Tree.\r\n\r\nThe awakened beast or plant is Charmed by you for 30 days or until you and your companions do anything harmful to it. When the Charmed condition ends, the awakened creature chooses whether to remain friendly to you, based on how you treated it while it was Charmed."]
["Bard, Cleric, Druid",5,"Greater Restoration","Action","Abjuration","No","Touch","Instant",null,"No",null,"VSM 100gp Diamond (consumed)","Expand",null,"You imbue a creature you touch with positive energy to undo a debilitating Effect. You can reduce the target's Exhaustion level by one, or end one of the following Effects on the target.\r\n\r\n• One Effect that Charmed or Petrified the target\r\n\r\n• One curse, including the target's Attunement to a Cursed magic item\r\n\r\n• Any reduction to one of the target's Ability Scores\r\n\r\n• One Effect reducing the target's hit point maximum"]
["Bard, Cleric, Druid",5,"Mass Cure Wounds","Action","Evocation","No",60,"Instant","3d8 + SpAbil","Yes",null,"VS","Expand",null,"A wave of Healing energy washes out from a point of your choice within range. Choose up to six creatures in a 30-foot-radius Sphere centered on that point. Each target regains Hit Points equal to 3d8 + your Spellcasting Ability modifier. This spell has no Effect on Undead or Constructs.\r\n\r\nAt Higher Levels: When you cast this spell using a spell slot of 6th level or higher, the Healing increases by 1d8 for each slot level above 5th."]
["Bard, Cleric, Paladin",5,"Raise Dead","1 Hour","Necromancy","No","Touch","Instant",null,"No",null,"VSM 500gp Diamond (consumed)","Expand",null,"You return a dead creature you touch to life, provided that it has been dead no longer than 10 days. If the creature's soul is both willing and at liberty to rejoin the body, the creature returns to life with 1 hit point.\r\n\r\nThis spell also neutralizes any poison and cures nonmagical Diseases that affected the creature at the time it died. This spell doesn't, however, remove magical Diseases, Curses, or similar Effects, if these aren't first removed prior to casting the spell, they take Effect when the creature returns to life. The spell can't return an Undead creature to life.\r\n\r\nThis spell closes all mortal wounds, but it doesn't restore missing body parts. If the creature is lacking body parts or organs integral for its Survival - its head, for instance - the spell automatically fails.\r\n\r\nComing back from the dead is an ordeal. The target takes a -4 penalty to all Attack Rolls, Saving Throws, and Ability Checks. Every time the target finishes a Long Rest, the penalty is reduced by 1 until it disappears."]
["Sorcerer, Wizard",6,"Chain Lightning","Action","Evocation","No",150,"Instant","10d8","Yes","DEX","VSM","Expand",null,"You create a bolt of lightning that arcs toward a target of your choice that you can see within range. Three bolts then leap from that target to as many as three other Targets, each of which must be within 30 feet of the first target. A target can be a creature or an object and can be targeted by only one of the bolts.\r\n\r\nA target must make a Dexterity saving throw. The target takes 10d8 lightning damage on a failed save, or half as much on a successful one.\r\n\r\nAt Higher Levels:\r\nWhen you cast this spell using a spell slot of 7th level or higher, one additional bolt leaps from the first target to another target for each slot level above 6th."]
["Wizard",6,"Contingency","10 MInutes","Evocation","No","Self","10 Days",null,"No",null,"VSM 1500gp gem covered icon","Expand",null,"Choose a spell of 5th level or lower that you can cast, that has a Casting Time of 1 action, and that can target you. You cast that spell, called the contingent spell, as part of casting contingency, expending Spell Slots for both, but the contingent spell doesn't come into Effect. Instead, it takes Effect when a certain circumstance occurs. You describe that circumstance when you cast the two Spells. For example, a contingency cast with Water Breathing might stipulate that Water Breathing comes into Effect when you are engulfed in water or a similar liquid.\r\n\r\nThe contingent spell takes Effect immediately after the circumstance is met for the first time, whether or not you want it to, and then contingency ends.\r\n\r\nThe contingent spell takes Effect only on you, even if it can normally target others. You can use only one contingency spell at a time. If you cast this spell again, the Effect of another contingency spell on you ends. Also, contingency ends on you if its material component is ever not on your person."]
["Bard, Sorcerer, Warlock, Wizard",6,"Eyebite","Action","Necromancy","Yes",60,"1 Minute",null,"No","WIS","VS","Expand",null,"For the spell's Duration, your eyes become an inky void imbued with dread power. One creature of your choice within 60 feet of you that you can see must succeed on a Wisdom saving throw or be affected by one of the following Effects of your choice for the Duration. On each of your turns until the spell ends, you can use your action to target another creature but can't target a creature again if it has succeeded on a saving throw against this casting of Eyebite.\r\n\r\nAsleep: The target falls Unconscious. It wakes up if it takes any damage or if another creature uses its action to shake the sleeper awake.\r\n\r\nPanicked: The target is Frightened of you. On each of its turns, the Frightened creature must take the Dash action and move away from you by the safest and shortest available route, unless there is nowhere to move. If the target moves to a place at least 60 feet away from you where it can no longer see you, this Effect ends.\r\n\r\nSickened: The target has disadvantage on Attack rolls and Ability Checks. At the end of each of its turns, it can make another Wisdom saving throw. If it succeeds, the Effect ends."]
["Wizard",6,"Wall of Ice","Action","Evocation","Yes",120,"10 Minutes","10d6","Yes","CON","VSM","Expand",null,"You create a wall of ice on a solid surface within range. You can form it into a hemispherical dome or a Sphere with radius of up to 10 feet, or you can shape a flat surface made up of ten 10-foot-square panels. Each panel must be contiguous with another panel. In any form, the wall is 1 foot thick and lasts for the Duration.\r\n\r\nIf the wall cuts through a creature's space when it appears, the creature within its area is pushed to one side of the wall and must make a Dexterity saving throw. On a failed save, the creature takes 10d6 cold damage, or half as much damage on a successful save.\r\n\r\nThe wall is an object that can be damaged and thus breached. It has AC 12 and 30 Hit Points per 10-foot section, and it is vulnerable to fire damage. Reducing a 10-foot section of wall to 0 Hit Points destroys it and leaves behind a sheet of frigid air in the space the wall occupied. A creature moving through the sheet of frigid air for the first time on a turn must make a Constitution saving throw. The creature takes 5d6 cold damage on a failed save, or half as much damage on a successful one.\r\n\r\nAt Higher Levels:\r\nWhen you cast this spell using a spell slot of 7th level or higher, the damage the wall deals when it appears increases by 2d6, and the damage from passing through the sheet of frigid air increases by 1d6 for each slot level above 6th."]
["Sorcerer, Warlock, Wizard",6,"Circle of Death","Action","Necromancy","No","150 Feet","Instant","8d6","Yes","CON","VSM","Expand",null,"A Sphere of negative energy ripples out in a 60-foot-radius Sphere from a point within range. Each creature in that area must make a Constitution saving throw. A target takes 8d6 necrotic damage on a failed save, or half as much damage on a successful one.\r\n\r\nAt Higher Levels:\r\nWhen you cast this spell using a spell slot of 7th level or higher, the damage increases by 2d6 for each slot level above 6th."]
["Cleric, Warlock, Wizard",6,"Create Undead","1 Minute","Necromancy","No","10 Feet","Instant",null,"Yes",null,"VSM 150bp black onyx stone/corpse","Expand",null,"You can cast this spell only at night. Choose up to three corpses of Medium or Small Humanoids within range. Each corpse becomes a ghoul under your control. (The DM has game Statistics for these creatures.)\r\n\r\nAs a Bonus Action on each of your turns, you can mentally Command any creature you animated with this spell if the creature is within 120 feet of you (if you control multiple creatures, you can Command any or all of them at the same time, issuing the same Command to each one). You decide what action the creature will take and where it will move during its next turn, or you can issue a general Command, such as to guard a particular chamber or corridor. If you issue no commands, the creature only defends itself against Hostile creatures. Once given an order, the creature continues to follow it until its task is complete.\r\n\r\nThe creature is under your control for 24 hours, after which it stops obeying any Command you have given it. To maintain control of the creature for another 24 hours, you must cast this spell on the creature before the current 24-hour period ends. This use of the spell reasserts your control over up to three creatures you have animated with this spell, rather than animating new ones.\r\n\r\nAt Higher Levels:\r\nWhen you cast this spell using a 7th-level spell slot, you can animate or reassert control over four Ghouls. When you cast this spell using an 8th-level spell slot, you can animate or reassert control over five Ghouls or two ghasts or wights. When you cast this spell using a 9th-level spell slot, you can animate or reassert control over six Ghouls, three ghasts or wights, or two mummies"]
["Sorcerer, Wizard",6,"Disintegrate","Action","Transmutation","No","60 Feet","Instant","10d6 + 40","Yes","DEX","VSM","Expand",null,"A thin green ray springs from your pointing finger to a target that you can see within range. The target can be a creature, an object, or a Creation of magical force, such as the wall created by Wall of Force.\r\n\r\nA creature targeted by this spell must make a Dexterity saving throw. On a failed save, the target takes 10d6+40 force damage. If this damage reduces the target to 0 Hit Points, it is disintegrated.\r\n\r\nA disintegrated creature and everything it is wearing and carrying, except Magic Items, are reduced to a pile of fine gray dust. The creature can be restored to life only by means of a True Resurrection or a wish spell.\r\n\r\nThis spell automatically disintegrates a Large or smaller nonmagical object or a Creation of magical force. If the target is a Huge or larger object or Creation of force, this spell disintegrates a 10-foot-cube portion of it. A magic item is unaffected by this spell.\r\n\r\nAt Higher Levels:\r\nWhen you cast this spell using a spell slot of 7th level or higher, the damage increases by 3d6 for each slot level above 6th."]
["Warlock, Wizard",6,"Flesh to Stone","Action","Transmutation","Yes","60 Feet","1 Minute",null,"No","CON",null,"Expand",null,"You attempt to turn one creature that you can see within range into stone. If the Targets body is made of flesh, the creature must make a Constitution saving throw. On a failed save, it is Restrained as its flesh begins to harden. On a successful save, the creature isn't affected.\r\n\r\nA creature Restrained by this spell must make another Constitution saving throw at the end of each of its turns. If it successfully saves against this spell three times, the spell ends. If it fails saves three times, it is turned to stone and subjected to the Petrified condition for the Duration. The successes and failures don't need to be consecutive, keep track of both until the target collects three of a kind.\r\n\r\nIf the creature is physically broken while Petrified, it suffers from similar deformities if it reverts to its original state.\r\n\r\nIf you maintain your Concentration on this spell for the entire possible Duration, the creature is turned to stone until the Effect is removed."]
["Wizard",6,"Freezing Sphere","Action","Evocation","No","300 Feet","Instant","10d6","Yes","CON","VSM","Expand",null,"A frigid globe of cold energy streaks from your fingertips to a point of your choice within range, where it explodes in a 60-foot-radius Sphere. Each creature within the area must make a Constitution saving throw. On a failed save, a creature takes 10d6 cold damage. On successful save, it takes half as much damage.\r\n\r\nIf the globe strikes a body of water or a liquid that is principally water (not including water-based creatures), it freezes the liquid to a depth of 6 inches over an area 30 feet square. This ice lasts for 1 minute. Creatures that were swimming on the surface of frozen water are trapped in the ice. A trapped creature can use an action to make a Strength check against your spell save DC to break free.\r\n\r\nYou can refrain from firing the globe after completing the spell, if you wish. A small globe about the size of a sling stone, cool to the touch, appears in your hand. At any time, you or a creature you give the globe to can throw the globe (to a range of 40 feet) or hurl it with a sling (to the sling's normal range). It shatters on impact, with the same Effect as the normal casting of the spell. You can also set the globe down without shattering it. After 1 minute, if the globe hasn't already shattered, it explodes.\r\n\r\nAt Higher Levels:\r\nWhen you cast this spell using a spell slot of 7th level or higher, the damage increases by 1d6 for each slot level above 6th"]
["Sorcerer, Wizard",6,"Globe of Invulnerability","Action","Abjuration","Yes","Self","1 Minute",null,"Yes",null,"VSM","Expand",null,"An immobile, faintly shimmering barrier springs into existence in a 10-foot radius around you and remains for the Duration.\r\n\r\nAny spell of 5th Level or lower cast from outside the barrier can't affect creatures or Objects within it, even if the spell is cast using a higher level spell slot. Such a spell can target creatures and Objects within the barrier, but the spell has no Effect on them. Similarly, the area within the barrier is excluded from the areas affected by such Spells.\r\n\r\nAt Higher Levels:\r\nWhen you cast this spell using a spell slot of 7th level or higher, the barrier blocks Spells of one level higher for each slot level above 6th."]
["Bard, Wizard",6,"Guards and Wards","10 Minutes","Abjuration","No","Touch","24 Hours",null,"No",null,"VSM 10gp Silver Rod","Expand",null,"You create a ward that protects up to 2,500 square feet of floor space (an area 50 feet square, or one hundred 5-foot squares or twenty-five 10-foot squares). The warded area can be up to 20 feet tall, and shaped as you desire. You can ward several stories of a stronghold by dividing the area among them, as long as you can walk into each contiguous area while you are casting the spell.\r\n\r\nWhen you cast this spell, you can specify individuals that are unaffected by any or all of the Effects that you choose. You can also specify a password that, when spoken aloud, makes The Speaker immune to these Effects.\r\n\r\nGuards and wards creates the following Effects within the warded area.\r\n\r\nCorridors: Fog fills all the warded corridors, making them heavily obscured. In addition, at each intersection or branching Passage offering a choice of direction, there is a 50 percent chance that a creature other than you will believe it is going in the opposite direction from the one it chooses.\r\n\r\nDoors: All doors in the warded area are magically locked, as if sealed by an Arcane Lock spell. In addition, you can cover up to ten doors with an Illusion (equivalent to the illusory object function of the Minor Illusion spell) to make them appear as plain sections of wall.\r\n\r\nStairs: Webs fill all stairs in the warded area from top to bottom, as the web spell. These strands regrow in 10 minutes if they are burned or torn away while guards and wards lasts.\r\n\r\nOther Spell Effect: You can place your choice of one of the following magical Effects within the warded area of the stronghold.\r\n\r\n• Place Dancing Lights in four corridors. You can designate a simple program that the lights repeat as long as guards and wards lasts.\r\n\r\n• Place Magic Mouth in two locations.\r\n\r\n• Place Stinking Cloud in two locations. The vapors appear in the places you designate they return within 10 minutes if dispersed by wind while guards and wards lasts.\r\n\r\n• Place a constant Gust of Wind in one corridor or room. Place a Suggestion in one location. You select an area of up to 5 feet square, and any creature that enters or passes through the area receives the Suggestion mentally.\r\n\r\nThe whole warded area radiates magic. A Dispel Magic cast on a specific Effect, if successful, removes only that Effect.\r\n\r\nYou can create a permanently guarded and warded structure by casting this spell there every day for one year."]
["Wizard",6,"Instant Summons","1 Minute (Ritual)","Conjuration","No","Touch","Indef",null,"No",null,"VSM 1000gp Sapphire","Expand",null,"You touch an object weighing 10 pounds or less whose longest dimension is 6 feet or less. The spell leaves an Invisible mark on its surface and invisibly inscribes the name of the item on the sapphire you use as the material component. Each time you cast this spell, you must use a different sapphire.\r\n\r\nAt any time thereafter, you can use your action to speak the item's name and crush the sapphire. The item instantly appears in your hand regardless of physical or planar distances, and the spell ends.\r\n\r\nIf another creature is holding or carrying the item, crushing the sapphire doesn't transport the item to you, but instead you learn who the creature possessing the object is and roughly where that creature is located at that moment.\r\n\r\nDispel Magic or a similar Effect successfully applied to the sapphire ends this spell's Effect."]
["Bard, Wizard",6,"Irresistible Dance","Action","Enchantment","Yes","30 Feet","1 Minute",null,"No","WIS","V","Expand",null,"Choose one creature that you can see within range. The target begins a comic dance in place - shuffling, tapping its feet, and capering for the Duration. Creatures that can't be Charmed are immune to this spell.\r\n\r\nA dancing creature must use all its Movement to dance without leaving its space and has disadvantage on Dexterity Saving Throws and Attack rolls. While the target is affected by this spell, other creatures have advantage on Attack rolls against it. As an action, a dancing creature makes a Wisdom saving throw to regain control of itself. On a successful save, the spell ends."]
["Wizard",6,"Magic Jar","1 Minute","Necromancy","No","Self","Indef",null,"No","CHA","VSM 500gp Container","Expand",null,"Your body falls into a catatonic state as your soul leaves it and enters the container you used for the spell's material component. While your soul inhabits the container, you are aware of your surroundings as if you were in the container's space. You can't move or use Reactions. The only action you can take is to project your soul up to 100 feet out of the container, either returning to your living body (and ending the spell) or attempting to possess a Humanoids body.\r\n\r\nYou can attempt to possess any Humanoid within 100 feet of you that you can see (creatures warded by a Protection from Evil and Good or Magic Circle ⁠spells can't be possessed). The target must make a Charisma saving throw. On a failure, your soul moves into the target's body, and the target's soul becomes trapped in the container. On a success, the target resists your efforts to possess it, and you can't attempt to possess it again for 24 hours.\r\n\r\nOnce you possess a creature's body, you control it. Your game Statistics are replaced by the Statistics of the creature though you retain your Alignment and your Intelligence, Wisdom, and Charisma scores. You retain the benefit of your own class feature. If the target has any class levels, you can't use any of its Class Features.\r\n\r\nMeanwhile, the possessed creature's soul can perceive from the container using its own Senses, but it can't move or take Actions at all.\r\n\r\nWhile possessing a body, you can use your action to return from the host body to the container if it is within 100 feet of you, returning the host creature's soul to its body. If the host body dies while you're in it, the creature dies, and you must make a Charisma saving throw against your own Spellcasting DC. On a success, you return to the container if it is within 100 feet of you. Otherwise, you die.\r\n\r\nIf the container is destroyed or the spell ends, your soul immediately returns to your body. If your body is more than 100 feet away from you, or if your body is dead when you attempt to return to it, you die. If another creature's soul is in the container when it is destroyed, the creature's soul returns to its body if the body is alive and within 100 feet. Otherwise, that creature dies.\r\n\r\nWhen the spell ends, the container is destroyed."]
["Bard, Sorcerer, Warlock, Wizard",6,"Mass Suggestion","Action","Enchantment","No","60 Feet","24 Hours",null,"Yes","WIS","VM","Expand",null,"You suggest a course of activity (limited to a sentence or two) and magically influence up to twelve creatures of your choice that you can see within range and that can hear and understand you. Creatures that can't be Charmed are immune to this Effect. The Suggestion must be worded in such a manner as to make the course of action sound reasonable. Asking the creature to stab itself, throw itself onto a spear, immolate itself, or do some other obviously harmful act automatically negates the Effect of the spell.\r\n\r\nEach target must make a Wisdom saving throw. On a failed save, it pursues the course of action you described to the best of its ability. The suggested course of action can continue for the entire Duration. If the suggested activity can be completed in a shorter time, the spell ends when the subject finishes what it was asked to do.\r\n\r\nYou can also specify Conditions that will trigger a Special activity during the Duration. For example, you might suggest that a group of soldiers give all their money to the first Beggar they meet. If the condition isn't met before the spell ends, the activity isn't performed.\r\n\r\nIf you or any of your companions damage a creature affected by this spell, the spell ends for that creature.\r\n\r\nAt Higher Levels:\r\nWhen you cast this spell using a 7th-level spell slot, the Duration is 10 days. When you use an 8th-level spell slot, the Duration is 30 days. When you use a 9th-level spell slot, the Duration is a year and a day."]
["Druid, Sorcerer, Wizard",6,"Move Earth","Action","Transmutation","Yes","120 Feet","2 Hours",null,"No",null,"VSM","Expand",null,"Choose an area of terrain no larger than 40 feet on a side within range. You can reshape dirt, sand, or clay in the area in any manner you choose for the Duration. You can raise or lower the area's elevation, create or fill in a Trench, erect or flatten a wall, or form a pillar. The extent of any such changes can't exceed half the area's largest dimension. So, if you affect a 40-foot square, you can create a pillar up to 20 feet high, raise or lower the square's elevation by up to 20 feet, dig a Trench up to 20 feet deep, and so on. It takes 10 minutes for these changes to complete.\r\n\r\nAt the end of every 10 minutes you spend concentrating on the spell, you can choose a new area of terrain to affect.\r\n\r\nBecause the terrain's transformation occurs slowly, creatures in the area can't usually be trapped or injured by the ground's Movement.\r\n\r\nThis spell can't manipulate natural stone or stone construction. Rocks and structures shift to accommodate the new terrain. If the way you shape the terrain would make a structure unstable, it might collapse.\r\n\r\nSimilarly, this spell doesn't directly affect Plant Growth. The moved earth carries any Plants along with it."]
["Bard, Wizard",6,"Programmed Illusion","Action","Illusion","No","120 Feet","Indef",null,"No",null,"VSM 25gp Jade Dust","Expand",null,"You create an Illusion of an object, a creature, or some other visible phenomenon within range that activates when a specific condition occurs. The Illusion is imperceptible until then. It must be no larger than a 30-foot cube, and you decide when you cast the spell how the Illusion behaves and what sounds it makes. This scripted Performance can last up to 5 minutes.\r\n\r\nWhen the condition you specify occurs, the Illusion springs into existence and performs in the manner you described. Once the Illusion finishes performing, it disappears and remains dormant for 10 minutes. After this time, the Illusion can be activated again.\r\n\r\nThe triggering condition can be as general or as detailed as you like, though it must be based on visual or audible Conditions that occur within 30 feet of the area. For example, you could create an Illusion of yourself to appear and warn off others who attempt to open a trapped door, or you could set the Illusion to trigger only when a creature says the correct word or phrase.\r\n\r\nPhysical interaction with the image reveals it to be an Illusion, because things can pass through it. A creature that uses its action to examine the image can determine that it is an Illusion with a successful Intelligence (Investigation) check against your spell save DC. If a creature discerns the Illusion for what it is, the creature can see through the image, and any noise it makes sounds hollow to the creature."]
["Druid, Sorcerer, Wizard",6,"Sunbeam","Act","Evocation","Yes","Self (60ft Line)","1 Minute","6d8","No","CON",null,"Expand",null,"A beam of brilliant light flashes out from your hand in a 5-foot-wide, 60-foot-line. Each creature in the line must make a Constitution saving throw. On a failed save, a creature takes 6d8 radiant damage and is Blinded until your next turn. On a successful save, it takes half as much damage and isn't Blinded by this spell. Undead and oozes have disadvantage on this saving throw.\r\n\r\nYou can create a new line of radiance as your action on any turn until the spell ends.\r\n\r\nFor the Duration, a mote of brilliant radiance shines in your hand. It sheds bright light in a 30-foot radius and dim light for an additional 30 feet. The light is sunlight."]
["Bard, Cleric, Sorcerer, Warlock, Wizard",6,"True Seeing","Action","Divination","No","Touch","1 Hour",null,"No",null,"VSM 25gp Eye Ointment (consumed)","Expand",null,"This spell gives the willing creature you touch the ability to see things as they actually are. For the Duration, the creature has Truesight, notices Secret doors hidden by magic, and can see into the Ethereal Plane, all out to a range of 120 feet."]
["Bard, Cleric, Druid",6,"Find the Path","1 Minute","Divination","Yes","Self","1 Day",null,"No",null,"VSM 100gp divinatory tools","Expand",null,"This spell allows you to find the shortest, most direct physical route to a specific fixed Location that you are familiar with on the same plane of existence. If you name a destination on another plane of existence, a destination that moves (such as a Mobile fortress), or a destination that isn't specific (such as a green dragon's lair), the spell fails.\r\n\r\nFor the Duration, as long as you are on the same plane of existence as the destination, you know how far it is and in what direction it lies. While you are traveling there, whenever you are presented with a choice of paths along the way, you automatically determine which path is the shortest and most direct route (but not necessarily the safest route) to the destination."]
["Bard, Cleric, Sorcerer, Warlock, Wizard",7,"Etherealness","Action","Transmutation","No","Self","8 Hours",null,"Yes",null,"VS","Expand",null,"You step into the border regions of the Ethereal Plane, in the area where it overlaps with your current plane. You remain in the Border Ethereal for the Duration or until you use your action to dismiss the spell. During this time, you can move in any direction. If you move up or down, every foot of Movement costs an extra foot. You can see and hear the plan you originated from, but everything there looks gray, and you can't see anything more than 60 feet away.\r\n\r\nWhile on the Ethereal Plane, you can only affect and be affected by other creatures on that plane. Creatures that aren't on the Ethereal Plane can't perceive you and can't interact with you, unless a Special ability or magic has given them the ability to do so.\r\n\r\nYou ignore all Objects and Effects that aren't on the Ethereal Plane, allowing you to move through Objects you perceive on the plan you originated from.\r\n\r\nWhen the spell ends, you immediately return to the plane you originated from in the spot you currently occupy. If you occupy the same spot as a solid object or creature when this happens, you are immediately shunted to the nearest unoccupied space that you can occupy and take force damage equal to twice the number of feet you are moved.\r\n\r\nThis spell has no Effect if you cast it while you are on the Ethereal Plane or a plane that doesn't border it, such as one of the Outer Planes.\r\n\r\nAt Higher Levels:\r\nWhen you cast this spell using a spell slot of 8th level or higher, you can target up to three willing creatures (including you) for each slot level above 7th. The creatures must be within 10 feet of you when you cast the spell."]
["Bard, Wizard",7,"Arcane Sword","Action","Evocation","Yes","60 Feet","1 Minute","3d10","No",null,"VSM 250gp Mini Platinum Sword","Expand",null,"You create a sword-shaped plane of force that hovers within range. It lasts for the Duration.\r\n\r\nWhen the sword appears, you make a melee spell Attack against a target of your choice within 5 feet of the sword. On a hit. the target takes 3d10 force damage. Until the spell ends, you can use a Bonus Action on each of your turns to move the sword up to 20 feet to a spot you can see and repeat this Attack against the same target or a different one."]
["Sorcerer, Wizard",7,"Delayed Blast Fireball","Action","Evocation","Yes","150 Feet","1 Minute","12d6","Yes","DEX",null,"Expand",null,"A beam of yellow light flashes from your pointing finger, then condenses to linger at a chosen point within range as a glowing bead for the Duration. When the spell ends, either because your Concentration is broken or because you decide to end it, the bead blossoms with a low roar into an explosion of flame that spreads around corners. Each creature in a 20-foot-radius Sphere centered on that point must make a Dexterity saving throw. A creature takes fire damage equal to the total accumulated damage on a failed save, or half as much damage on a successful one.\r\n\r\nThe spell's base damage is 12d6. If at the end of Your Turn the bead has not yet detonated, the damage increases by 1d6.\r\n\r\nIf the glowing bead is Touched before the interval has expired, the creature touching it must make a Dexterity saving throw. On a failed save, the spell ends immediately, causing the bead to erupt in flame. On a successful save, the creature can throw the bead up to 40 feet. When it strikes a creature or a solid object, the spell ends, and the bead explodes.\r\n\r\nThe fire damages Objects in the area and ignites flammable Objects that aren't being worn or carried.\r\n\r\nAt Higher Levels:\r\nWhen you cast this spell using a spell slot of 8th level or higher, the base damage increases by 1d6 for each slot level above 7th."]
["Sorcerer, Warlock, Wizard",7,"Finger of Death","Action","Necromancy","No","60 Feet","Instant","7d8+30","No","CON","VS","Expand",null,"You send negative energy coursing through a creature that you can see within range, causing it searing pain. The target must make a Constitution saving throw. It takes 7d8+30 necrotic damage on a failed save, or half as much damage on a successful one.\r\n\r\nA Humanoid killed by this spell rises at the start of your next turn as a Zombie that is permanently under your Command, following your verbal orders to the best of its ability."]
["Bard, Warlock, Wizard",7,"Forcecage","Action","Evocation","No","100 Feet","1 Hour",null,"No","CHA","VSM 1500gp Ruby dust","Expand",null,"An immobile, Invisible, cube-shaped prison composed of magical force springs into existence around an area you choose within range. The prison can be a cage or a solid box as you choose.\r\n\r\nA prison in the shape of a cage can be up to 20 feet on a side and is made from 1/2-inch diameter bars spaced 1/2 inch apart.\r\n\r\nA prison in the shape of a box can be up to 10 feet on a side, creating a solid barrier that prevents any matter from passing through it and blocking any Spells cast into or out of the area.\r\n\r\nWhen you cast the spell, any creature that is completely inside the cage's area is trapped. Creatures only partially within the area, or those too large to fit inside the area, are pushed away from the center of the area until they are completely outside the area.\r\n\r\nA creature inside the cage can't leave it by nonmagical means. If the creature tries to use teleportation or interplanar Travel to leave the cage, it must first make a Charisma saving throw. On a success, the creature can use that magic to exit the cage. On a failure, the creature can't exit the cage and wastes the use of the spell or Effect. The cage also extends into the Ethereal Plane, blocking ethereal Travel.\r\n\r\nThis spell can't be dispelled by Dispel Magic."]
["Bard, Wizard",7,"Magnificent Mansion","1 Minute","Conjuration","No","300 Feet","24 Hours",null,"No",null,"VSM 5gp each: mini ivory portal, polished marble, silver spoon","Expand",null,"You conjure an extradimensional dwelling in range that lasts for the Duration. You choose where its one entrance is located. The entrance shimmers faintly and is 5 feet wide and 10 feet tall. You and any creature you designate when you cast the spell can enter the extradimensional dwelling as long as the portal remains open. You can open or close the portal if you are within 30 feet of it. While closed, the portal is Invisible.\r\n\r\nBeyond the portal is a magnificent foyer with numerous chambers beyond. The atmosphere is clean, fresh, and warm.\r\n\r\nYou can create any floor plan you like, but the space can't exceed 50 cubes, each cube being 10 feet on each side. The place is furnished and decorated as you choose. It contains sufficient food to serve a nine course banquet for up to 100 people. A staff of 100 near-transparent servants attends all who enter. You decide the visual appearance of these servants and their attire. They are completely obedient to your orders. Each servant can perform any task a normal human servant could perform, but they can't Attack or take any action that would directly harm another creature. Thus the servants can fetch things, clean, mend, fold clothes, light fires, serve food, pour wine, and so on. The servants can go anywhere in the mansion but can't leave it. Furnishings and other Objects created by this spell dissipate into smoke if removed from the mansion. When the spell ends, any creatures inside the extradimensional space are expelled into the open spaces nearest to the entrance."]
["Bard, Druid, Wizard",7,"Mirage Arcane","10 Minutes","Illusion","No","Sight","10 Days",null,"No",null,"VS","Expand",null,"You make terrain in an area up to 1 mile square look, sound, smell, and even feel like some other sort of terrain. The terrain's general shape remains the same, however. Open fields or a road could be made to resemble a swamp, hill, crevasse, or some other difficult or impassable terrain. A pond can be made to seem like a grassy meadow, a precipice like a gentle slope, or a rock-strewn gully like a wide and smooth road.\r\n\r\nSimilarly, you can alter the appearance of structures, or add them where none are present. The spell doesn't disguise, conceal, or add creatures.\r\n\r\nThe Illusion includes audible, visual, tactile, and olfactory elements, so it can turn clear ground into Difficult Terrain (or vice versa) or otherwise impede Movement through the area. Any piece of the illusory terrain (such as a rock or stick) that is removed from the spell's area disappears immediately.\r\n\r\nCreatures with Truesight can see through the Illusion to the terrain's true form, however, all other elements of the Illusion remain, so while the creature is aware of the illusion's presence, the creature can still physically interact with the Illusion."]
["Cleric, Sorcerer, Warlock, Wizard, Druid",7,"Plane Shift","Action","Conjuration","No","Touch","Instant",null,"No","CHA","VSM 250gp forked rod attuned to plane","Expand",null,"You and up to eight willing creatures who link hands in a circle are transported to a different plane of existence. You can specify a target destination in general terms, such as the City of Brass on the Elemental Plane of Fire or the palace of Dispater on the second level of the Nine Hells, and you appear in or near that destination. If you are trying to reach the City of Brass, for example, you might arrive in its Street of Steel, before its Gate of Ashes, or looking at the city from across the Sea of Fire, at the DM's discretion.\r\n\r\nAlternatively, if you know the sigil sequence of a Teleportation Circle on another plane of existence, this spell can take you to that circle. If the Teleportation Circle is too small to hold all the creatures you transported, they appear in the closest unoccupied spaces next to the circle.\r\n\r\nYou can use this spell to banish an unwilling creature to another plane. Choose a creature within your reach and make a melee spell Attack against it. On a hit, the creature must make a Charisma saving throw. If the creature fails the save, it is transported to a random location on the plane of existence you specify. A creature so transported must find its own way back to your current plane of existence."]
["Sorcerer, Wizard",7,"Prismatic Spray","Action","Evocation","No","Self (60ft Cone)","Instant","10d6","No","DEX","VS","Expand",null,"Eight multicolored rays of light flash from your hand. Each ray is a different color and has a different power and purpose. Each creature in a 60-foot cone must make a Dexterity saving throw. For each target, roll a d8 to determine which color ray affects it.\r\n\r\n1-Red: The target takes 10d6 fire damage on a failed save, or half as much damage on a successful one.\r\n\r\n2-Orange: The target takes 10d6 acid damage on a failed save, or half as much damage on a successful one.\r\n\r\n3-Yellow: The target takes 10d6 lightning damage on a failed save, or half as much damage on a successful one.\r\n\r\n4-Green: The target takes 10d6 poison damage on a failed save, or half as much damage on a successful one.\r\n\r\n5-Blue: The target takes 10d6 cold damage on a failed save, or half as much damage on a successful one.\r\n\r\n6-Indigo: On a failed save, the target is Restrained. It must then make a Constitution saving throw at the end of each of its turns. If it successfully saves three times, the spell ends. If it fails its save three times, it permanently turns to stone and is subjected to the Petrified condition. The successes and failures don't need to be consecutive, keep track of both until the target collects three of a kind.\r\n\r\n7-Violet: On a failed save, the target is Blinded. It must then make a Wisdom saving throw at the start of your next turn. A successful save ends the blindness. If it fails that save, the creature is transported to another plane of existence of the DM's choosing and is no longer Blinded. (Typically, a creature that is on a plane that isn't its home plane is banished home, while other creatures are usually cast into the Astral or Ethereal planes.)\r\n\r\n8-Special: The target is struck by two rays. Roll twice more, rerolling any 8."]
["Bard, Wizard",7,"Project Image","Action","Illusion","Yes","500 Miles","1 Day",null,"No",null,"VSM 5gp self-replica","Expand",null,"You create an illusory copy of yourself that lasts for the Duration. The copy can appear at any location within range that you have seen before, regardless of intervening obstacles. The Illusion looks and sounds like you but is intangible. If the Illusion takes any damage, it disappears, and the spell ends.\r\n\r\nYou can use your action to move this Illusion up to twice your speed, and make it gesture, speak, and behave in whatever way you choose. It mimics your mannerisms perfectly.\r\n\r\nYou can see through its eyes and hear through its ears as if you were in its space. On Your Turn as a Bonus Action, you can switch from using its Senses to using your own, or back again. While you are using its Senses, you are Blinded and Deafened in regard to your own surroundings.\r\n\r\nPhysical interaction with the image reveals it to be an Illusion, because things can pass through it. A creature that uses its action to examine the image can determine that it is an Illusion with a successful Intelligence (Investigation) check against your spell save DC. If a creature discerns the Illusion for what it is, the creature can see through the image, and any noise it makes sounds hollow to the creature."]
["Druid, Sorcerer, Wizard",7,"Reverse Gravity","Action","Transmutation","Yes","100 Feet","1 Minute",null,"No","DEX","VSM","Expand",null,"This spell reverses gravity in a 50-foot-radius, 100-foot high Cylinder centered on a point within range. All creatures and Objects that aren't somehow anchored to the ground in the area fall upward and reach the top of the area when you cast this spell. A creature can make a Dexterity saving throw to grab onto a fixed object it can reach, thus avoiding the fall.\r\n\r\nIf some solid object (such as a ceiling) is encountered in this fall, Falling Objects and creatures strike it just as they would during a normal downward fall. If an object or creature reaches the top of the area without striking anything, it remains there, oscillating slightly, for the Duration.\r\n\r\nAt the end of the Duration, affected Objects and creatures fall back down."]
["Wizard",7,"Sequester","Action","Transmutation","No","Touch","Indef",null,"No",null,"VSM 5000gp powdered diamond, emerald, ruby, sapphire (consumed)","Expand",null,"By means of this spell, a willing creature or an object can be hidden away, safe from detection for the Duration. When you cast the spell and touch the target, it becomes Invisible and can't be targeted by Divination Spells or perceived through Scrying sensors created by the Divination of Spells.\r\n\r\nIf the target is a creature, it falls into a state of suspended animation. Time ceases to flow for it, and it doesn't grow older.\r\n\r\nYou can set a condition for the spell to end early. The condition can be anything you choose, but it must occur or be visible within 1 mile of the target. Examples include after 1,000 years or when the Tarrasque awakes. This Spells also ends if the target takes any damage."]
["Wizard",7,"Simulacrum","12 Hours","Illusion","No","Touch","Indef",null,"No",null,"VSM 15000gp powdered ruby (consumed)","Expand",null,"You shape an illusory duplicate of one beast or Humanoid that is within range for the entire Casting Time of the spell. The duplicate is a creature, partially real and formed from ice or snow, and it can take Actions and otherwise be affected as a normal creature. It appears to be the same as the original, but it has half the creature's hit point maximum and is formed without any Equipment. Otherwise, the Illusion uses all the Statistics of the creature it duplicates.\r\n\r\nThe simulacrum is friendly to you and creatures you designate. It obeys your spoken commands, moving and acting in accordance with your wishes and acting on Your Turn in Combat. The simulacrum lacks the ability to learn or become more powerful, so it never increases its level or other Abilities, nor can it regain expended Spell Slots.\r\n\r\nIf the simulacrum is damaged, you can repair it in an alchemical laboratory, using rare herbs and minerals worth 100 gp per hit point it regains. The simulacrum lasts until it drops to 0 Hit Points, at which point it reverts to snow and melts instantly.\r\n\r\nIf you cast this spell again, any currently active duplicates you created with this spell are instantly destroyed."]
["Bard, Cleric, Wizard",7,"Symbol","1 Minute","Abjuration","No","Touch","Indef","10d10","No",null,"VSM 1000gp Mercury, P, pow Diamond, Opal (consumed)","Expand",null,"When you cast this spell, you inscribe a harmful glyph either on a surface (such as a section of floor, a wall, or a table) or within an object that can be closed to conceal the glyph (such as a book, a scroll, or a Treasure chest). If you choose a surface, the glyph can cover an area of the surface no larger than 10 feet in diameter. If you choose an object, that object must remain in its place, if the object is moved more than 10 feet from where you cast this spell, the glyph is broken, and the spell ends without being triggered.\r\n\r\nThe glyph is nearly Invisible, requiring an Intelligence (Investigation) check against your spell save DC to find it.\r\n\r\nYou decide what triggers the glyph when you cast the spell. For glyphs inscribed on a surface, the most typical triggers include touching or stepping on the glyph, removing another object covering it, approaching within a certain distance of it, or manipulating the object that holds it. For glyphs inscribed within an object, the most Common triggers are opening the object, approaching within a certain distance of it, or seeing or reading the glyph.\r\n\r\nYou can further refine the trigger so the spell is activated only under certain circumstances or according to a creature's Physical Characteristics (such as height or weight), or physical kind (for example, the ward could be set to affect hags or shapechangers). You can also specify creatures that don't trigger the glyph, such as those who say a certain password.\r\n\r\nWhen you inscribe the glyph, choose one of the options below for its Effect. Once triggered, the glyph glows, filling a 60-foot-radius Sphere with dim light for 10 minutes, after which time the spell ends. Each creature in the Sphere when the glyph activates is targeted by its Effect, as is a creature that enters the Sphere for the first time on a turn or ends its turn there.\r\n\r\nDeath: Each target must make a Constitution saving throw, taking 10d10 necrotic damage on a failed save, or half as much damage on a successful save.\r\n\r\nDiscord: Each target must make a Constitution saving throw. On a failed save, a target bickers and argues with other creatures for 1 minute. During this time, it is incapable of meaningful Communication and has disadvantage on Attack rolls and Ability Checks.\r\n\r\nFear: Each target must make a Wisdom saving throw and becomes Frightened for 1 minute on a failed save. While Frightened, the target drops whatever it is holding and must move at least 30 feet away from the glyph on each of its turns, if able.\r\n\r\nHopelessness: Each target must make a Charisma saving throw. On a failed save, the target is overwhelmed with despair for 1 minute. During this time, it can't Attack or target any creature with harmful Abilities, Spells, or other magical Effects.\r\n\r\nInsanity: Each target must make an Intelligence saving throw. On a failed save, the target is driven insane for 1 minute. An insane creature can't take Actions, can't understand what other creatures say, can't read, and speaks only in gibberish. The DM controls its Movement, which is erratic.\r\n\r\nPain: Each target must make a Constitution saving throw and becomes Incapacitated with excruciating pain for 1 minute on a failed save.\r\n\r\nSleep: Each target must make a Wisdom saving throw and falls Unconscious for 10 minutes on a failed save. A creature awakens if it takes damage or if someone uses an action to shake or slap it awake.\r\n\r\nStunning: Each target must make a Wisdom saving throw and becomes Stunned for 1 minute on a failed save."]
["Bard, Sorcerer, Wizard",7,"Teleport","Action","Conjuration","No","10 Feet","Instant",null,"No",null,"V","Expand",null,"This spell instantly transports you and up to eight willing creatures of your choice that you can see within range, or a single object that you can see within range, to a destination you select. If you target an object, it must be able to fit entirely inside a 10-foot cube, and it can't be held or carried by an unwilling creature. The destination you choose must be known to you, and it must be on the same plane of existence as you. Your familiarity with the destination determines whether you arrive there successfully. The DM rolls d100 and consults the table.\r\n\r\n\r\nPermanent Circle: On-Target 100%\r\n\r\nAssociated Object: On-Target 100%\r\n\r\nVery Familiar: 1-5 Mishap; 6-13 Similar Area; 14-24 Off Target; 25-100 On-Target\r\n\r\nSeen Casually: 1-33 Mishap; 34-43 Similar Area; 44-53 Off Target; 54-100 On-Target\r\n\r\nViewed Once: 1-43 Mishap; 44-53 Similar Area; 54-73 Off Target; 74-100 On-Target\r\n\r\nDescription: 1-43 Mishap; 44-53 Similar Area; 54-73 Off Target; 74-100 On-Target\r\n\r\nFalse Description: 1-50 Mishap; 51-100 Similar Area\r\n\r\n\r\nFamiliarity: \"Permanent Circle\" means a permanent Teleportation Circle whose sigil sequence you know. \"Associated Object\" means that you possess an object taken from the desired destination within the last six months, such as a book from a wizard's Library, bed linen from a royal suite, or a chunk of marble from a Lich's Secret tomb.\r\n\r\n\"Very Familiar\" is a place you have been very often, a place you have carefully studied, or a place you can see when you cast the spell. \"Seen Casually\" is some place you have seen more than once but with which you aren't very familiar. \"Viewed Once\" is a place you have seen once, possibly using magic. \"Description\" is a place whose location and appearance you know through someone else's description, perhaps from a map.\r\n\r\n\"False Description\" is a place that doesn't exist. Perhaps you tried to scry an enemy's Sanctum but instead viewed an Illusion, or you are attempting to teleport to a familiar location that no longer exists.\r\n\r\nOn Target: You and your group (or the target object) appear where you want to go.\r\n\r\nOff Target: You and your group (or the target object) appear a random distance away from the destination in a random direction. Distance off target is 1d10 x 1d10 percent of the distance that was to be travelled. For example, if you tried to Travel 120 miles, landed off target, and rolled a 5 and 3 on the two d10s, then you would be off target by 15 percent, or 18 miles. The DM determines the direction off target randomly by rolling a d8 and designating 1 as north, 2 as north-east, 3 as east, and so on around the points of the compass. If you were teleporting to a Coastal city and wound up 18 miles out at sea, you could be in trouble.\r\n\r\nSimilar Area: You and your group (or the target object) wind up in a different area that's visually or thematically similar to the target area. If you are heading for your home laboratory, for example, you might wind up in another wizard's laboratory or in an alchemical supply shop that has many of the same tools and implements as your laboratory. Generally, you appear in the closest similar place, but since the spell has no range limit, you could conceivably wind up anywhere on the plane.\r\n\r\nMishap: The spell's unpredictable magic results in a difficult journey. Each teleporting creature (or the target object) takes 3d10 force damage and the DM rerolls on the table to see where you wind up (multiple Mishaps can occur, dealing damage each time)."]
["Bard, Cleric, Druid",7,"Regenerate","1 Minute","Transmutation","No","Touch","1 Hour","4d8 + 15","No",null,"VSM","Expand",null,"You touch a creature and stimulate its natural Healing ability. The target regains 4d8 + 15 Hit Points. For the Duration of the spell, the target regains 1 hit point at the start of each of its turns (10 Hit Points each minute).\r\n\r\nThe target's severed body Members (fingers, legs, tails, and so on), if any, are restored after 2 minutes. If you have the severed part and hold it to the stump, the spell instantaneously causes the limb to knit to the stump."]
["Bard, Cleric",7,"Resurrection","1 Hour","Necromancy","No","Touch","Instant",null,"No",null,"VSM 1000gp Diamond (consumed)","Expand",null,"You touch a dead creature that has been dead for no more than a century, that didn't die of old age, and that isn't Undead. If its soul is free and willing, the target returns to life with all its Hit Points.\r\n\r\nThis spell neutralizes any Poisons and cures normal Diseases afflicting the creature when it died. It doesn't, however, remove magical Diseases, Curses, and the like, if such affects aren't removed prior to casting the spell, they afflict the target on its return to life.\r\n\r\nThis spell closes all mortal wounds and restores any missing body parts.\r\n\r\nComing back from the dead is an ordeal. The target takes a -4 penalty to all Attack Rolls, Saving Throws, and Ability Checks. Every time the target finishes a Long Rest, the penalty is reduced by 1 until it disappears.\r\n\r\nCasting this spell to restore life to a creature that has been dead for one year or longer taxes you greatly. Until you finish a Long Rest, you can't cast Spells again, and you have disadvantage on all Attack Rolls, Ability Checks, and Saving Throws."]
["Cleric, Wizard",8,"Antimagic Field","Action","Abjuration","Yes","Self (10ft Sphere)","1 Hour",null,"No",null,"VSM","Expand",null,"A 10-foot-radius Invisible Sphere of antimagic surrounds you. This area is divorced from the magical energy that suffuses the multiverse. Within the Sphere, Spells can't be cast, summoned creatures disappear, and even Magic Items become mundane. Until the spell ends, the Sphere moves with you, centered on you.\r\n\r\nSpells and other magical Effects, except those created by an artifact or a deity, are suppressed in the Sphere and can't protrude into it. A slot expended to cast a suppressed spell is consumed. While an Effect is suppressed, it doesn't function, but the time it spends suppressed counts against its Duration.\r\n\r\nTargeted Effects: Spells and other magical Effects, such as Magic Missile and Charm Person, that target a creature or an object in the Sphere have no Effect on that target.\r\n\r\nAreas of Magic: The area of another spell or magical Effect, such as Fireball, can't extend into the Sphere. If the Sphere overlaps an area of magic, the part of the area that is covered by the Sphere is suppressed. For example, the flames created by a Wall of Fire are suppressed within the Sphere, creating a gap in the wall if the overlap is large enough.\r\n\r\nSpells: Any active spell or other magical Effect on a creature or an object in the Sphere is suppressed while the creature or object is in it.\r\n\r\nMagic Items: The properties and powers of Magic Items are suppressed in the Sphere. For example, a +1 long sword in the Sphere functions as a nonmagical long sword. A magic weapon's properties and powers are suppressed if it is used against a target in the Sphere or wielded by an attacker in the Sphere. If a Magic Weapon or piece of magic Ammunition fully leaves the Sphere (For example, if you fire a Magic Arrow or throw a magic spear at a target outside the sphere), the magic of the item ceases to be suppressed as soon as it exits.\r\n\r\nMagical Travel: Teleportation and Planar Travel fail to work in the Sphere, whether the Sphere is the destination or the departure point for such magical Travel. A portal to another location, world, or plane of existence, as well as an opening to an extradimensional space such as that created by the Rope Trick Spells, temporarily closes while in the Sphere.\r\n\r\nCreatures and Objects: A creature or object summoned or created by magic temporarily winks out of existence in the Sphere. Such a creature instantly reappears once the space the creature occupied is no longer within the Sphere.\r\n\r\nDispel Magic: Spells and magical Effects such as Dispel Magic have no Effect on the Sphere. Likewise, the spheres created by different antimagic field Spells don't nullify each other."]
["Druid, Wizard",8,"Antipathy Sympathy","1 Hour","Enchantment","No","60 Feet","10 Days",null,"No","WIS","VSM","Expand",null,"This spell attracts or repels creatures of your choice. You target something within range, either a Huge or smaller object or creature or an area that is no larger than a 200-foot cube. Then specify a kind of intelligent creature, such as Red Dragons, Goblins, or vampires. You invest the target with an aura that either attracts or repels the specified creatures for the Duration. Choose antipathy or sympathy as the aura's Effect.\r\n\r\nAntipathy. The Enchantment causes creatures of the kind you designated to feel an intense urge to leave the area and avoid the target. When such a creature can see the target or comes within 60 feet of it, the creature must succeed on a Wisdom saving throw or become Frightened. The creature remains frigh⁠tened while it can see the target or is within 60 feet of it. While frig⁠htened by the target, the creature must use its Movement to move to the nearest safe spot from which it can't see the target. If the creature moves more than 60 feet from the target and can't see it, the creature is no longer fright⁠ened, but the creature becomes fright⁠ened again if it regains sight of the target or moves within 60 feet of it.\r\n\r\nSympathy. The Enchantment causes the specified creatures to feel an intense urge to approach the target while within 60 feet of it or able to see it. When such a creature can see the target or comes within 60 feet of it, the creature must succeed on a Wisdom saving throw or use its Movement on each of its turns to enter the area or move within reach of the target. When the creature has done so, it can't willingly move away from the target. If the target damages or otherwise harms an affected creature, the affected creature can make a Wisdom saving throw to end the Effect, as described below.\r\n\r\nEnding the Effect. If an affected creature ends its turn while not within 60 feet of the target or able to see it, the creature makes a Wisdom saving throw. ON a successful save, the creature is no longer affected by the target and recognizes the feeling of repugnance or attraction as magical. In addition, a creature affected by the Spells is allowed another Wisdom saving throw every 24 hours while the spell persists.\r\n\r\nA creature that successfully saves against this Effect is immune to it for 1 minute, after which time it can be affected again."]
["Wizard",8,"Clone","1 Hour","Necromancy","No","Touch","Instant",null,"No",null,"VSM 1000gp Diamond, 1in^3 flesh of creature (consumed), 2000gp vessel","Expand",null,"This spell grows an inert duplicate of a living creature as a safeguard against death. This clone forms inside as a sealed vessel and grows to full size and maturity after 120 days you can also choose to have the clone be a younger version of the same creature. It remains inert and endures indefinitely, as long as its vessel remains undisturbed.\r\n\r\nAt any time after the clone matures, if the original creature dies, its soul transfers to the clone, provided that the soul is free and willing to return. The clone is physically identical to the original and has the same personality, memories, and Abilities, but none of the original's Equipment. The original creature's physical remains, if they still exist, become inert and can't thereafter be restored to life, since the creature's soul is elsewhere."]
["Cleric, Druid, Wizard",8,"Control Weather","10 Minutes","Transmutation","Yes","Self (5mi)","8 Hours",null,"No",null,"VSM","Expand",null,"You take control of the weather within 5 miles of you for the Duration. You must be outdoors to cast this spell. Moving to a place where you don't have a clear path to the sky ends the spell early.\r\n\r\nWhen you cast the spell, you change the current weather Conditions, which are determined by the DM based on the climate and season. You can change precipitation, temperature, and wind. It takes 1d4 x 10 minutes for the new Conditions to take Effect. Once they do so, you can change the Conditions again. When the spell ends, the weather gradually returns to normal.\r\n\r\nWhen you change the weather Conditions, find a current condition on the following tables and change its stage by one, up or down. When changing the wind, you can change its direction.\r\n\r\nPrecipitation:\r\nStage 1 - Clear\r\nStage 2 - Light clouds\r\nStage 3 - Overcast or ground fog\r\nStage 4 - Rain, hail or snow\r\nStage 5 - Torrential rain, driving hail or Blizzard\r\n\r\nTemperature:\r\nStage 1 - Unbearable heat\r\nStage 2 - Hot\r\nStage 3 - Warm\r\nStage 4 - Cool\r\nStage 5 - Cold\r\nStage 6 - Arctic cold\r\n\r\nWind:\r\nStage 1 - Calm\r\nStage 2 - Moderate wind\r\nStage 3 - Strong wind\r\nStage 4 - Gale\r\nStage 5 - Storm"]
["Warlock, Wizard",8,"Demiplane","Action","Conjuration","No","60 Feet","1 Hour",null,"No",null,"S","Expand",null,"You create a shadowy door on a flat solid surface that you can see within range. The door is large enough to allow Medium creatures to pass through unhindered. When opened, the door leads to a demiplane that appears to be an empty room 30 feet in each dimension, made of wood or stone. When the spell ends, the door disappears, and any creatures or Objects inside the demiplane remain trapped there, as the door also disappears from the other side.\r\n\r\nEach time you cast this spell, you can create a new demiplane, or have the shadowy door connect to a demiplane you created with a previous casting of this spell. Additionally, if you know the Nature and contents of a demiplane created by a casting of this spell by another creature, you can have the shadowy door connect to its demiplane instead."]
["Bard, Sorcerer, Warlock, Wizard",8,"Dominate Monster","Action","Enchantment","Yes","60 Feet","1 Hour",null,"Yes","WIS",null,"Expand",null,"You attempt to beguile a creature that you can see within range. It must succeed on a Wisdom saving throw or be Charmed by you for the Duration. If you or creatures that are friendly to you are fighting it, it has advantage on the saving throw.\r\n\r\nWhile the creature is Charmed, you have a telepathic link with it as long as the two of you are on the same plane of existence. You can use this telepathic link to issue commands to the creature while you are conscious (no action required), which it does its best to obey. You can specify a simple and general course of action, such as Attack that creature, Run over there, or Fetch that object. If the creature completes the order and doesn't receive further direction from you, it defends and preserves itself to the best of its ability.\r\n\r\nYou can use your action to take total and precise control of the target. Until the end of your next turn, the creature takes only the Actions you choose, and doesn't do anything that you don't allow it to do. During this time, you can also cause the creature to use a Reaction, but this requires you to use your own Reaction as well.\r\n\r\nEach time the target takes damage, it makes a new Wisdom saving throw against the spell. If the saving throw succeeds, the spell ends.\r\n\r\nAt Higher Levels:\r\nWhen you cast this spell with a 9th-level spell slot, the Duration is Concentration, up to 8 hours."]
["Bard, Druid, Warlock, Wizard",8,"Feeblemind","Action","Enchantment","No","150 Feet","Instant","4d6","No","INT","VSM","Expand",null,"You blast the mind of a creature that you can see within range, attempting to Shatter its intellect and personality. The target takes 4d6 psychic damage and must make an Intelligence saving throw.\r\n\r\nOn a failed save, the creature's Intelligence and Charisma scores become 1. The creature can't cast Spells, activate Magic Items, understand language, or communicate in any intelligible way. The creature can, however, Identify its Friends, follow them, and even protect them.\r\n\r\nAt the end of every 30 days, the creature can repeat its saving throw against this spell. If it succeeds on its saving throw, the spell ends.\r\n\r\nThe spell can also be ended by Greater Restoration, heal or wish."]
["Sorcerer, Wizard",8,"Incendiary Cloud","Action","Conjuration","Yes","150 Feet","1 Minute","10d8","No","DEX","VS","Expand",null,"A swirling cloud of smoke shot through with white-hot embers appears in a 20-foot-radius Sphere centered on a point within range. The cloud spreads around corners and is heavily obscured. It lasts for the Duration or until a wind of moderate or greater speed (at least 10 miles per hour) disperses it.\r\n\r\nWhen the cloud appears, each creature in it must make a Dexterity saving throw. A creature takes 10d8 fire damage on a failed save, or half as much damage on a successful one. A creature must also make this saving throw when it enters the spell's area for the first time on a turn or ends its turn there.\r\n\r\nThe cloud moves 10 feet directly away from you in a direction that you choose at the start of each of your turns."]
["Wizard",8,"Maze","Action","Conjuration","Yes","60 Feet","10 Minutes",null,"No",null,"VS","Expand",null,"You banish a creature that you can see within range into a labyrinthine Demiplane. The target remains there for the Duration or until it escapes the maze.\r\n\r\nThe target can use its action to attempt to escape. When it does so, it makes a DC 20 Intelligence check. If it succeeds, it escapes, and the spell ends (a Minotaur or Goristro demon automatically succeeds).\r\n\r\nWhen the spell ends, the target reappears in the space it left or, if that space is occupied, in the nearest unoccupied space."]
["Bard, Wizard",8,"Mind Blank","Action","Abjuration","No","Touch","24 Hours",null,"No",null,"VS","Expand",null,"Until the spell ends, one willing creature you touch is immune to psychic damage, any Effect that would sense its emotions or read its thoughts, Divination Spells, and the Charmed condition. The spell even foils wish Spells and Spells or Effects of similar power used to affect the target's mind or to gain information about the target."]
["Bard, Sorcerer, Warlock, Wizard",8,"Power Word Stun","Action","Enchantment","No","60 Feet","Instant",null,"No","CON","V","Expand",null,"You speak a word of power that can Overwhelm the mind of one creature you can see within range, leaving it dumbfounded. If the target has 150 Hit Points or fewer, it is Stunned. Otherwise, the spell has no Effect.\r\n\r\nThe Stunned target must make a Constitution saving throw at the end of each of its turns. On a successful save, this stunning Effect ends."]
["Druid, Sorcerer, Wizard",8,"Sunburst","Action","Evocation","No","150 Feet","Instant","12d6","No","CON",null,"Expand",null,"Brilliant sunlight flashes in a 60-foot radius centered on a point you choose within range. Each creature in that light must make a Constitution saving throw. On a failed save, a creature takes 12d6 radiant damage and is Blinded for 1 minute. On a successful save, it takes half as much damage and isn't Blinded by this spell. Undead and oozes have disadvantage on this saving throw.\r\n\r\nA creature Blinded by this spell makes another Constitution saving throw at the end of each of its turns. On a successful save, it is no longer Blinded.\r\n\r\nThis spell dispels any Darkness in its area that was created by a spell."]
["Bard, Warlock",8,"Glibness","Action","Transmutation","No","Self","1 Hour",null,"No",null,"V","Expand",null,"Until the spell ends, when you make a Charisma check, you can replace the number you roll with a 15. Additionally, no matter what you say, magic that would determine if you are telling the truth indicates that you are being truthful."]
["Cleric, Warlock, Wizard",9,"Astral Projection","1 Hour","Necromancy","No","10 Feet","Special",null,"No",null,"VSM Per Affected: 1000gp Jacinth (consumed), 100gp Silver Bar (consumed)","Expand",null,"You and up to eight willing creatures within range project your astral bodies into the Astral Plane (the spell fails and the casting is wasted if you are already on that plane). The material body you leave behind is Unconscious and in a state of suspended animation, it doesn't need food or air and doesn't age.\r\n\r\nYour astral body resembles your mortal form in almost every way, replicating your game Statistics and possessions. The principal difference is the addition of a silvery cord that extends from between your shoulder blades and trails behind you, fading to Invisibility after 1 foot. This cord is your tether to your material body. As long as the tether remains intact, you can find your way home. If the cord is cut-something that can happen only when an Effect specifically states that it does-your soul and body are separated, killing you instantly.\r\n\r\nYour astral form can freely Travel through the Astral Plane and can pass through Portals there leading to any other plane. If you enter a new plane or return to the plane you were on when casting this spell, your body and possessions are transported along the silver cord, allowing you to re-enter your body as you enter the new plane. Your astral form is a separate incarnation. Any damage or other Effects that apply to it have no Effect on your physical body, nor do they persist when you return to it.\r\n\r\nThe spell ends for you and your companions when you use your action to dismiss it. When the spell ends, the affected creature returns to its physical body, and it awakens.\r\n\r\nThe spell might also end early for you or one of your companions. A successful Dispel Magic spell used against an astral or physical body ends the spell for that creature. If a creature's original body or its astral form drops to 0 Hit Points, the spell ends for that creature. If the spell ends and the silver cord is intact, the cord pulls the creature's astral form back to its body, ending its state of suspended animation.\r\n\r\nIf you are returned to your body prematurely, your companions remain in their astral forms and must find their own way back to their bodies, usually by Dropping to 0 Hit Points."]
["Bard, Druid, Warlock, Wizard",9,"Foresight","1 Minute","Divination","No","Touch","8 Hours",null,"No",null,"VSM","Expand",null,"You touch a willing creature and bestow a limited ability to see into the immediate future. For the Duration, the target can't be surprised and has advantage on Attack rolls, Ability Checks, and Saving Throws. Additionally, other creatures have disadvantage on Attack rolls against the target for the Duration.\r\n\r\nThis spell immediately ends if you cast it again before its Duration ends."]
["Cleric, Sorcerer, Wizard",9,"Gate","Action","Conjuration","Yes","60 Feet","1 Minute",null,"No",null,"VSM 5000gp Diamond","Expand",null,"You conjure a portal linking an unoccupied space you can see within range to a precise location on a different plane of existence. The portal is a circular opening, which you can make 5 to 20 feet in diameter. You can orient the portal in any direction you choose. The portal lasts for the Duration.\r\n\r\nThe portal has a front and a back on each plane where it appears. Travel through the portal is possible only by moving through its front. Anything that does so is instantly transported to the other plane, appearing in the unoccupied space nearest to the portal.\r\n\r\nDeities and other planar rulers can prevent Portals created by this spell from opening in their presence or anywhere within their domains.\r\n\r\nWhen you cast this spell, you can speak the name of a specific creature (a pseudonym, title, or nickname doesn't work). If that creature is on a plane other than the one you are on, the portal opens in the named creature's immediate vicinity and draws the creature through it to the nearest unoccupied space on your side of the portal. You gain no Special power over the creature, and it is free to act as the DM deems appropriate. It might leave, Attack you, or help you."]
["Warlock, Wizard",9,"Imprisonment","1 Minute","Abjuration","No","30 Feet","Indef",null,"No","WIS","VSM 500gp/Target Hit Die Vellum likeness, Special Comp","Expand",null,"You create a magical restraint to hold a creature that you can see within range. The target must succeed on a Wisdom saving throw or be bound by the spell, if it succeeds, it is immune to this spell if you cast it again. While affected by this spell, the creature doesn't need to breathe, eat, or drink, and it doesn't age. Divination Spells can't locate or perceive the target.\r\n\r\nWhen you cast the spell, you choose one of the following forms of imprisonment.\r\n\r\nBurial: The target is entombed far beneath the earth in a Sphere of magical force that is just large enough to contain the target. Nothing can pass through the Sphere, nor can any creature Teleport or use Planar Travel to get into or out of it.\r\n\r\nThe Special component for this version of the spell is a small mithral orb.\r\n\r\nChaining: Heavy chains, firmly rooted in the ground, hold the target in place. The target is Restrained until the spell ends, and it can't move or be moved by any means until then.\r\n\r\nThe Special component for this version of the spell is a fine chain of precious metal.\r\n\r\nHedged Prison: The spell transports the target into a tiny Demiplane that is warded against teleportation and Planar Travel. The Demiplane can be a labyrinth, a cage, a tower, or any similar confined structure or area of your choice.\r\n\r\nThe Special component for this version of the spell is a miniature representation of the prison made from jade.\r\n\r\nMinimus Containment: The target shrinks to a height of 1 inch and is imprisoned inside a gemstone or similar object. Light can pass through the gemstone normally (allowing the target to see out and other creatures to see in), but nothing else can pass through, even by means of teleportation or Planar Travel. The gemstone can't be cut or broken while the spell remains in Effect.\r\n\r\nThe Special component for this version of the spell is a large, transparent gemstone, such as a corundum, diamond, or ruby.\r\n\r\nSlumber: The target falls asleep and can't be awoken.\r\n\r\nThe Special component for this version of the spell consists of rare soporific herbs.\r\n\r\nEnding the Spell: During the casting of the spell, in any of its versions, you can specify a condition that will cause the spell to end and release the target. The condition can be as specific or as elaborate as you choose, but the DM must agree that the condition is reasonable and has a likelihood of coming to pass. The Conditions can be based on a creature's name, identity, or deity but otherwise must be based on observable Actions or qualities and not based on intangibles such as level, class, or Hit Points.\r\n\r\nA Dispel Magic spell can end the spell only if it is cast as a 9th-level spell, targeting either the prison or the Special component used to create it.\r\n\r\nYou can use a particular Special component to create only one prison at a time. If you cast the spell again using the same component, the target of the first casting is immediately freed from its binding."]
["Sorcerer, Wizard",9,"Meteor Swarm","Action","Evocation","No","1 Mile","Instant","40d6","No",null,"VS","Expand",null,"Blazing orbs of fire plummet to the ground at four different points you can see within range. Each creature in a 40-foot-radius Sphere centered on each point you choose must make a Dexterity saving throw. The Sphere spreads around corners. A creature takes 20d6 fire damage and 20d6 bludgeoning damage on a failed save, or half as much damage on a successful one. A creature in the area of more than one fiery burst is affected only once.\r\n\r\nThe spell damages Objects in the area and ignites flammable Objects that aren't being worn or carried."]
["Bard, Sorcerer, Warlock, Wizard",9,"Power Word Kill","Action","Enchantment","No","60 Feet","Instant",null,"No",null,"V","Expand",null,"You utter a word of power that can compel one creature you can see within range to die instantly. If the creature you chose has 100 Hit Points or fewer, it dies. Otherwise, the spell has no Effect."]
["Wizard",9,"Prismatic Wall","Action","Abjuration","No","60 Feet","10 Minutes","10d6","No","CON","VS","Expand",null,"A shimmering, multicolored plane of light forms a vertical opaque wall - up to 90 feet long, 30 feet high, and 1 inch thick - centered on a point you can see within range. Alternatively, you can shape the wall into a Sphere up to 30 feet in diameter centered on a point you choose within range.\r\n\r\nThe wall remains in place for the Duration. If you position the wall so that it passes through a space occupied by a creature, the spell fails, and your action and the spell slot are wasted. The wall sheds bright light out to a range of 100 feet and dim light for an additional 100 feet. You and creatures you designate at the time you cast the spell can pass through and remain near the wall without harm. If another creature that can see the wall moves to within 20 feet of it or starts its turn there, the creature must succeed on a Constitution saving throw or become Blinded for 1 minute.\r\n\r\nThe wall consists of seven layers, each with a different color. When a creature attempts to reach into or pass through the wall, it does so one layer at a time through all the wall's layers. As it passes or reaches through each layer, the creature must make a Dexterity saving throw or be affected by that layer's properties as described below.\r\n\r\nThe wall can be destroyed, also one layer at a time, in order from red to violet, by means specific to each layer. Once a layer is destroyed, it remains so for the Duration of the spell. A rod of cancellation destroys a prismatic wall, but an Antimagic Field has no Effect on it.\r\n\r\nRed: The creature takes 10d6 fire damage on a failed save, or half as much damage on a successful one. While this layer is in place, nonmagical Ranged Attacks can't pass through the wall. The layer can be destroyed by dealing at least 25 cold damage to it.\r\n\r\nOrange: The creature takes 10d6 acid damage on a failed save, or half as much damage on a successful one. While this layer is in place, magical Ranged Attacks can't pass through the wall. The layer is destroyed by a strong wind.\r\n\r\nYellow: The creature takes 10d6 lightning damage on a failed save, or half as much damage on a successful one. This layer can be destroyed by dealing at least 60 force damage to it.\r\n\r\nGreen: The creature takes 10d6 poison damage on a failed save, or half as much damage on a successful one. A Passwall spell, or another spell of equal or greater level that can open a portal on a solid surface, destroys this layer.\r\n\r\nBlue: The creature takes 10d6 cold damage on a failed save, or half as much damage on a successful one. This layer can be destroyed by dealing at least 25 fire damage to it.\r\n\r\nIndigo: On a failed save, the creature is Restrained. It must then make a Constitution saving throw at the end of each of its turns. If it successfully saves three times, the spell ends. If it fails its save three times, it permanently turns to stone and is subjected to the Petrified condition. The successes and failures don't need to be consecutive, keep track of both until the creature collects three of a kind. While this layer is in place, Spells can't be cast through the wall. The layer is destroyed by bright light shed by a Daylight spell or a similar spell of equal or higher level.\r\n\r\nViolet: On a failed save, the creature is Blinded. It must then make a Wisdom saving throw at the start of your next turn. A successful save ends the blindness. If it fails that save, the creature is transported to another plane of the DM's choosing and is no longer Blinded. (Typically, a creature that is on a plane that isn't its home plane is banished home, while other creatures are usually cast into the Astral or Ethereal planes.) This layer is destroyed by a Dispel Magic spell or a similar spell of equal or higher level that can end Spells and magical Effects."]
["Druid, Wizard",9,"Shapechange","Action","Transmutation","Yes","Self","1 Hour",null,"No",null,"VSM 1500gp Jace Circlet","Expand",null,"You assume the form of a different creature for the Duration. The new form can be any creature with a Challenge rating equal to your level or lower. The creature can't be a Construct or an Undead, and you must have seen the sort of creature at least once. You transform into an average example of that creature, one without any class levels or the Spellcasting trait.\r\n\r\nYour game Statistics are replaced by the Statistics of the chosen creature, though you retain your Alignment and Intelligence, Wisdom, and Charisma scores You also retain all of your skill and saving throw Proficiencies, in addition to gaining those of the creature, If the creature has the same proficiency as you, and the bonus listed in its Statistics is higher than yours, use the creature's bonus in place of yours. You can't use any legendary Actions or Lair Actions of the new form.\r\n\r\nYou assume the Hit Points and Hit Dice of the new form. When you revert to your normal, you return to the number of Hit Points you had before you transformed. If you revert as a result of Dropping to 0 Hit Points, any excess damage carries over to your normal form. As long as the excess damage doesn't reduce your normal form to 0 Hit Points, you aren't knocked Unconscious.\r\n\r\nYou retain the benefit of any features from your class, race, or other source and can use them, provided that your new form is physically capable of doing so. You can't use any Special Senses you have (for example, darkvision) unless your new form also has that sense. You can only speak if the creature can normally speak.\r\n\r\nWhen you transform, you choose whether your Equipment falls to the ground, merges into the new form, or is worn by it. Worn Equipment functions as normal. The DM determines whether it is practical for the new form to wear a piece of Equipment, based on the creature's shape and size. Your Equipment doesn't change shape or size to match the new form, and any Equipment that the new form can't wear must either fall to the ground or merge into your new form. Equipment that merges has no Effect in that state.\r\n\r\nDuring this spell's Duration, you can use your action to assume a different form following the same restrictions and rules for the original form, with one exception - if your new form has more hit pints than your current one, your Hit Points remain at their current value."]
["Sorcerer, Wizard",9,"Time Stop","Action","Transmutation","No","Slef","Instant",null,"No",null,"V","Expand",null,"You briefly stop the flow of time for everyone but yourself. No time passes for other creatures, while you take 1d4+1 turns in a row, during which you can use Actions and move as normal.\r\n\r\nThis spell ends if one of the Actions you use during this period, or any Effects that you create during this period, affects a creature other than you or an object being worn or carried by someone other than you. In addition, the spell ends if you move to a place more than 1,000 feet from the location where you cast it."]
["Bard, Warlock, Wizard",9,"True Polymorph","Action","Transmutation","Yes","30 Feet","1 Hour",null,"No","WIS","VSM","Expand",null,"Choose one creature with at least 1 hit point or nonmagical object that you can see within range. You transform the creature into a different creature, the creature into an object, or the object into a creature (the object must be neither worn nor carried by another creature). The transformation lasts for the Duration, or until the target drops to 0 Hit Points or dies. If you concentrate on this spell for the full Duration, the transformation becomes permanent.\r\n\r\nShapechangers aren't affected by this spell. An unwilling creature can make a Wisdom saving throw, and if it succeeds, it isn't affected by this spell.\r\n\r\nCreature into Creature: If you turn a creature into another kind of creature, the new form can be any kind you choose whose Challenge rating is equal to or less than the target's (or its level, if the target doesn't have a Challenge rating). The target's game Statistics, including mental Ability Scores, are replaced by the Statistics of the new form. It retains its Alignment and personality.\r\n\r\nThe target assumes the Hit Points of its new form, and when it reverts to its normal form, the creature returns to the number of Hit Points it had before it transformed. If it reverts as a result of Dropping to 0 Hit Points, any excess damage carries over to its normal form. As long as the excess damage doesn't reduce the creature's normal form to 0 Hit Points, it isn't knocked Unconscious.\r\n\r\nThe creature is limited in the Actions it can perform by the Nature of its new form, and it can't speak, cast Spells, or take any other action that requires hands or Speech unless its new form is capable of such Actions.\r\n\r\nThe target's gear melds into the new form. The creature can't activate, use, wield, or otherwise benefit from any of its Equipment.\r\n\r\nObject into Creature: You can turn an object into any kind of creature, as long as the creature's size is no larger than the object's size and the creature's Challenge rating is 9 or lower. The creature is friendly to you and your companions. It acts on each of your turns. You decide what action it takes and how it moves. The DM has the creature's Statistics and resolves all of its Actions and Movement.\r\n\r\nIf the spell becomes permanent, you no longer control the creature. It might remain friendly to you, depending on how you have treated it.\r\n\r\nCreature into Object: If you turn a creature into an object, it transforms along with whatever it is wearing and carrying into that form. The creature's Statistics become those of the object, and the creature has no memory of time spent in this form, after the spell ends and it returns to its normal form."]
["Wizard",9,"Weird","Action","Illusion","Yes","120 Feet","1 Minute","4d10","No","WIS","VS","Expand",null,"Drawing on the deepest fears of a group of creatures, you create illusory creatures in their minds, visible only to them. Each creature in a 30-foot-radius Sphere centered on a point of your choice within range must make a Wisdom saving throw. On a failed save, a creature becomes Frightened for the Duration. The Illusion calls on the creature's deepest fears, manifesting its worst nightmares as an implacable threat. At the end of each of the Frightened creature's turns, it must succeed on a Wisdom saving throw or take 4d10 psychic damage. On a successful save, the spell ends for that creature."]
["Sorcerer, Wizard",9,"Wish","Action","Conjuration","No","Self","Instant",null,"No",null,"V","Expand",null,"Wish is the mightiest spell a mortal creature can cast. By simply speaking aloud, you can alter the very foundations of reality in accord with your desires.\r\n\r\nThe basic use of this spell is to duplicate any other spell of 8th level or lower. You don't need to meet any requirements in that spell, including costly Components. The spell simply takes Effect. Alternatively, you can create one of the following Effects of your choice.\r\n\r\n• You create one object of up to 25,000 gp in value that isn't a magic item. The object can be no more than 300 feet in any dimension, and it appears in an unoccupied space you can see on the ground.\r\n\r\n• You allow up to twenty creatures that you can see to regain all Hit Points, and you end all Effects on them described in the Greater Restoration spell.\r\n\r\n• You grant up to ten creatures that you can see Resistance to a damage type you choose.\r\n\r\n• You grant up to ten creatures you can see immunity to a single spell or other magical Effect for 8 hours. For instance, you could make yourself and all your companions immune to a lich's Life Drain Attack.\r\n\r\n• You undo a single recent event by forcing a reroll of any roll made within the last round (including your last turn). Reality reshapes itself to accommodate the new result. For example, a wish spell could undo an opponent's successful save, a foe's critical hit, or a friend's failed save. You can force the reroll to be made with advantage or disadvantage, and you can choose whether to use the reroll or the original roll.\r\n\r\nYou might be able to achieve something beyond the scope of the above examples. State your wish to the DM as precisely as possible. The DM has great latitude in ruling what occurs in such an instance, the greater the wish, the greater the likelihood that something goes wrong. This spell might simply fail, the Effect you desire might only be partly achieved, or you might suffer some unforeseen consequence as a result of how you worded the wish. For example, wishing that a villain were dead might propel you forward in time to a period when that villain is no longer alive, effectively removing you from the game. Similarly, wishing for a legendary magic item or artifact might instantly transport you to the presence of the item's current owner.\r\n\r\nThe stress of casting this spell to produce any Effect other than duplicating another spell weakens you. After enduring that stress, each time you Cast a Spell until you finish a Long Rest, you take 1d10 necrotic damage per level of that spell. This damage can't be reduced or prevented in any way. In addition, your Strength drops to 3, if it isn't 3 or lower already, for 2d4 days. For each of those days that you spend Resting and doing nothing more than light activity, your remaining recovery time decreases by 2 days. Finally, there is a 33 percent chance that you are unable to cast wish ever again if you suffer this stress."]
[]
[]
[]
[]
[]
[]
[]
[]
[]
[]
[]
[]
[]
[]
[]
[]
[]
[]
[]
[]
[]
[]
[]
[]
[]
[]
[]
[]
[]
[]
[]
[]
[]
[]
[]
[]
[]
[]
[]
[]
[]
[]
[]
[]
[]
[]
[]
[]
[]
[]
[]
[]
[]
[]
[]
[]
[]
[]
[]
[]
[]
[]
[]
[]
[]
[]
[]
[]
[]
[]
[]
[]
[]
[]
[]
[]
[]
[]
[]
[]
[]
[]
[]
[]
[]
[]
[]
[]
[]
[]
[]
[]
[]
[]
[]
[]
[]
[]
[]
[]
[]
[]
[]
[]
[]
[]
[]
[]
[]
[]
[]
[]
[]
[]
[]
[]
[]
[]
[]
[]
[]
[]
[]
[]
[]
[]
[]
[]
[]
[]
[]
[]
[]
[]
[]
[]
[]
[]
[]
[]
[]
[]
[]
[]
[]
[]
[]
[]
[]
[]
[]
[]
[]
[]
[]
[]
[]
[]
[]
[]
[]
[]
[]
[]
[]
[]
[]
[]
[]
[]
[]
[]
[]
[]
[]
[]
[]
[]
[]
[]
[]
[]
[]
[]
[]
[]
[]
[]
[]
[]
[]
[]
[]
[]
[]
[]
[]
[]
[]
[]
[]
[]
[]
[]
[]
[]
[]
[]
[]
[]
[]
[]
[]
[]
[]
[]
[]
[]
[]
[]
[]
[]
[]
[]
[]
[]
[]
[]
[]
[]
[]
[]
[]
[]
[]
[]
[]
[]
[]
[]
[]
[]
[]
[]
[]
[]
[]
[]
[]
[]
[]
[]
[]
[]
[]
[]
[]
[]
[]
[]
[]
[]
[]
[]
[]
[]
[]
[]
[]
[]
[]
[]
[]
[]
[]
[]
[]
[]
[]
[]
[]
[]
[]
[]
[]
[]
[]
[]
[]
[]
[]
[]
[]
[]
[]
[]
[]
[]
[]
[]
[]
[]
[]
[]
[]
[]
[]
[]
[]
[]
[]
[]
[]
[]
[]
[]
[]
[]
[]
[]
[]
[]
[]
[]
[]
[]
[]
[]
[]
[]
[]
[]
[]
[]
[]
[]
[]
[]
[]
[]
[]
[]
[]
[]
[]
[]
[]
[]
[]
[]
[]
[]
[]
[]
[]
[]
[]
[]
[]
[]
[]
[]
[]
[]
[]
[]
[]
[]
[]
[]
[]
[]
[]
[]
[]
[]
[]
[]
[]
[]
[]
[]
[]
[]
[]
[]
[]
[]
[]
[]
[]
[]
[]
[]
[]
[]
[]
[]
[]
[]
[]
[]
[]
[]
[]
[]
[]
[]
[]
[]
[]
[]
[]
[]
[]
[]
[]
[]
[]
[]
[]
[]
[]
[]
[]
[]
[]
[]
[]
[]
[]
[]
[]
[]
[]
[]
[]
[]
[]
[]
[]
[]
[]
[]
[]
[]
[]
[]
[]
[]
[]
[]
[]
[]
[]
[]
[]
[]
[]
[]
[]
[]
[]
[]
[]
[]
[]
[]
[]
[]
[]
[]
[]
[]
[]
[]
[]
[]
[]
[]
[]
[]
[]
[]
[]
[]
[]
[]
[]
[]
[]
[]
[]
[]
[]
[]
[]
[]
[]
[]
[]
[]
[]
[]
[]
[]
[]
[]
[]
[]
[]
[]
[]
[]
[]
[]
[]
[]
[]
[]
[]
[]
[]
[]
[]
[]
[]
[]
[]
[]
[]
[]
[]
[]
[]
[]
[]
[]
[]
[]
[]
[]
[]
[]
[]
[]
[]
[]
[]
[]
[]
[]
[]
[]
[]
[]
[]
[]
["Ctrl+Shift+S will switch to this page"]

{"sheet":"Monsters","index":3,"n_rows":163,"n_cols":17,"rows_kept":163,"cut":false,"hidden":false,"merged":[]}
[null,null,null,null,null,null,null,null,null,"MonsterSize",null,null,null,null,null,"MonsterPaneColMap"]
["Current Monster Blocks",null,null,null,null,null,null,null,"Ctrl+Shift+M will switch to this sheet","Name","Pane1","Pane2","Pane3","Pane4",null,"Pane","Cols"]
["Initiative","Stat Block","Name","HP","Max HP","AC","Speed","Notes",null,"Wide","9,9,9","20,11.57,11.57","16.57,16.57,16.57,16.57,16.57,11.57,11.57","18,16,16",null,1,"A,B,C"]
[null,null,null,null,null,null,null,null,null,"Narrow","7.13,7.13,7.13","14.13,5.67,5.67","13.13,13.13,13.13,13.13,13.13,8.13,8.13","12.13,10.13,10.13",null,2,"E,F,G"]
[null,null,null,null,null,null,null,null,null,"Default","8,8,8","15,8,8","15,15,15,15,15,7.57,7.75","15,15,15",null,3,"I,J,K,L,M,N,O"]
[null,null,null,null,null,null,null,null,null,null,null,null,null,null,null,4,"Q,R,S"]
[]
[]
[]
[]
[]
[]
[]
[]
[]
[]
[]
[]
[]
[]
[]
[]
["Saved Monster Groups"]
["Group","Stat Block","Name","HP","Max HP","AC","Speed","Notes"]
["Demons","Shadow Demon","Shadow Demon",96,66,13,60]
["Demons","Barlgura","Barlgura",98,68,15,"40; Climb 40"]
["Demons","Vrock","Vrock",134,104,15,"Fly 60; 40"]
["Demons","Chasme","Chasme",104,84,15,"60 Fly; 20 Land"]
["Demons","Armanite","K Vatch",104,84,16,60]
["Demons","Hezrou","Gorok",166,136,16,30]
["Demons","Yochol","Navaru",166,136,15,"30; 30 Climb"]
["Minor Elementals Gargoyle","Gargoyle","Gargoyle Lv4",82,52,15,"30; 60 Fly"]
["Minor Elementals Gargoyle","Gargoyle","Gargoyle Lv6",82,52,15,"30; 60 Fly"]
["Minor Elementals Gargoyle","Gargoyle","Gargoyle Lv8",82,52,15,"30; 60 Fly"]
["Minor Elementals Azer","Azer","Azer Lv4",69,39,17,30]
["Minor Elementals Azer","Azer","Azer Lv6",69,39,17,30]
["Minor Elementals Azer","Azer","Azer Lv8",69,39,17,30]
["Minor Elementals Fire Snake","Fire Snake","Fire Snake Lv4 1",52,22,14,30]
["Minor Elementals Fire Snake","Fire Snake","Fire Snake Lv4 2",52,22,14,30]
["Minor Elementals Fire Snake","Fire Snake","FIre Snake Lv6 1",52,22,14,30]
["Minor Elementals Fire Snake","Fire Snake","FIre Snake Lv6 2",52,22,14,30]
["Minor Elementals Fire Snake","Fire Snake","FIre Snake Lv8 1",52,22,14,30]
["Minor Elementals Fire Snake","Fire Snake","FIre Snake Lv8 2",52,22,14,30]
["Minor Elementals Magmin","Magmin","Magmin Lv4 1",39,9,14,30]
["Minor Elementals Magmin","Magmin","Magmin Lv4 2",39,9,14,30]
["Minor Elementals Magmin","Magmin","Magmin Lv4 3",39,9,14,30]
["Minor Elementals Magmin","Magmin","Magmin Lv4 4",39,9,14,30]
["Minor Elementals Magmin","Magmin","Magmin Lv6 1",39,9,14,30]
["Minor Elementals Magmin","Magmin","Magmin Lv6 2",39,9,14,30]
["Minor Elementals Magmin","Magmin","Magmin Lv6 3",39,9,14,30]
["Minor Elementals Magmin","Magmin","Magmin Lv6 4",39,9,14,30]
["Minor Elementals Magmin","Magmin","Magmin Lv8 1",39,9,14,30]
["Minor Elementals Magmin","Magmin","Magmin Lv8 2",39,9,14,30]
["Minor Elementals Magmin","Magmin","Magmin Lv8 3",39,9,14,30]
["Minor Elementals Magmin","Magmin","Magmin Lv8 4",39,9,14,30]
["Minor Elementals Dust Mephit","Dust Mephit","Dust Mephit Lv4 1",47,17,12,"30; 30 Fly"]
["Minor Elementals Dust Mephit","Dust Mephit","Dust Mephit Lv4 2",47,17,12,"30; 30 Fly"]
["Minor Elementals Dust Mephit","Dust Mephit","Dust Mephit Lv4 3",47,17,12,"30; 30 Fly"]
["Minor Elementals Dust Mephit","Dust Mephit","Dust Mephit Lv4 4",47,17,12,"30; 30 Fly"]
["Minor Elementals Dust Mephit","Dust Mephit","Dust Mephit Lv6 1",47,17,12,"30; 30 Fly"]
["Minor Elementals Dust Mephit","Dust Mephit","Dust Mephit Lv6 2",47,17,12,"30; 30 Fly"]
["Minor Elementals Dust Mephit","Dust Mephit","Dust Mephit Lv6 3",47,17,12,"30; 30 Fly"]
["Minor Elementals Dust Mephit","Dust Mephit","Dust Mephit Lv6 4",47,17,12,"30; 30 Fly"]
["Minor Elementals Dust Mephit","Dust Mephit","Dust Mephit Lv8 1",47,17,12,"30; 30 Fly"]
["Minor Elementals Dust Mephit","Dust Mephit","Dust Mephit Lv8 2",47,17,12,"30; 30 Fly"]
["Minor Elementals Dust Mephit","Dust Mephit","Dust Mephit Lv8 3",47,17,12,"30; 30 Fly"]
["Minor Elementals Dust Mephit","Dust Mephit","Dust Mephit Lv8 4",47,17,12,"30; 30 Fly"]
["Minor Elementals Ice Mephit","Ice Mephit","Ice Mephit Lv4 1",51,21,11,"30; 30 Fly"]
["Minor Elementals Ice Mephit","Ice Mephit","Ice Mephit Lv4 2",51,21,11,"30; 30 Fly"]
["Minor Elementals Ice Mephit","Ice Mephit","Ice Mephit Lv4 3",51,21,11,"30; 30 Fly"]
["Minor Elementals Ice Mephit","Ice Mephit","Ice Mephit Lv4 4",51,21,11,"30; 30 Fly"]
["Minor Elementals Ice Mephit","Ice Mephit","Ice Mephit Lv6 1",51,21,11,"30; 30 Fly"]
["Minor Elementals Ice Mephit","Ice Mephit","Ice Mephit Lv6 2",51,21,11,"30; 30 Fly"]
["Minor Elementals Ice Mephit","Ice Mephit","Ice Mephit Lv6 3",51,21,11,"30; 30 Fly"]
["Minor Elementals Ice Mephit","Ice Mephit","Ice Mephit Lv6 4",51,21,11,"30; 30 Fly"]
["Minor Elementals Ice Mephit","Ice Mephit","Ice Mephit Lv8 1",51,21,11,"30; 30 Fly"]
["Minor Elementals Ice Mephit","Ice Mephit","Ice Mephit Lv8 2",51,21,11,"30; 30 Fly"]
["Minor Elementals Ice Mephit","Ice Mephit","Ice Mephit Lv8 3",51,21,11,"30; 30 Fly"]
["Minor Elementals Ice Mephit","Ice Mephit","Ice Mephit Lv8 4",51,21,11,"30; 30 Fly"]
["Minor Elementals Magma Mephit","Magma Mephit","Magma Mephit Lv4 1",52,22,11,"30; 30 Fly"]
["Minor Elementals Magma Mephit","Magma Mephit","Magma Mephit Lv4 2",52,22,11,"30; 30 Fly"]
["Minor Elementals Magma Mephit","Magma Mephit","Magma Mephit Lv4 3",52,22,11,"30; 30 Fly"]
["Minor Elementals Magma Mephit","Magma Mephit","Magma Mephit Lv4 4",52,22,11,"30; 30 Fly"]
["Minor Elementals Magma Mephit","Magma Mephit","Magma Mephit Lv6 1",52,22,11,"30; 30 Fly"]
["Minor Elementals Magma Mephit","Magma Mephit","Magma Mephit Lv6 2",52,22,11,"30; 30 Fly"]
["Minor Elementals Magma Mephit","Magma Mephit","Magma Mephit Lv6 3",52,22,11,"30; 30 Fly"]
["Minor Elementals Magma Mephit","Magma Mephit","Magma Mephit Lv6 4",52,22,11,"30; 30 Fly"]
["Minor Elementals Magma Mephit","Magma Mephit","Magma Mephit Lv8 1",52,22,11,"30; 30 Fly"]
["Minor Elementals Magma Mephit","Magma Mephit","Magma Mephit Lv8 2",52,22,11,"30; 30 Fly"]
["Minor Elementals Magma Mephit","Magma Mephit","Magma Mephit Lv8 3",52,22,11,"30; 30 Fly"]
["Minor Elementals Magma Mephit","Magma Mephit","Magma Mephit Lv8 4",52,22,11,"30; 30 Fly"]
["Minor Elementals Steam Mephit","Steam Mephit","Steam Mephit Lv4 1",51,21,10,"30; 30 Fly"]
["Minor Elementals Steam Mephit","Steam Mephit","Steam Mephit Lv4 2",51,21,10,"30; 30 Fly"]
["Minor Elementals Steam Mephit","Steam Mephit","Steam Mephit Lv4 3",51,21,10,"30; 30 Fly"]
["Minor Elementals Steam Mephit","Steam Mephit","Steam Mephit Lv4 4",51,21,10,"30; 30 Fly"]
["Minor Elementals Steam Mephit","Steam Mephit","Steam Mephit Lv4 5",51,21,10,"30; 30 Fly"]
["Minor Elementals Steam Mephit","Steam Mephit","Steam Mephit Lv4 6",51,21,10,"30; 30 Fly"]
["Minor Elementals Steam Mephit","Steam Mephit","Steam Mephit Lv4 7",51,21,10,"30; 30 Fly"]
["Minor Elementals Steam Mephit","Steam Mephit","Steam Mephit Lv4 8",51,21,10,"30; 30 Fly"]
["Minor Elementals Steam Mephit","Steam Mephit","Steam Mephit Lv6 1",51,21,10,"30; 30 Fly"]
["Minor Elementals Steam Mephit","Steam Mephit","Steam Mephit Lv6 2",51,21,10,"30; 30 Fly"]
["Minor Elementals Steam Mephit","Steam Mephit","Steam Mephit Lv6 3",51,21,10,"30; 30 Fly"]
["Minor Elementals Steam Mephit","Steam Mephit","Steam Mephit Lv6 4",51,21,10,"30; 30 Fly"]
["Minor Elementals Steam Mephit","Steam Mephit","Steam Mephit Lv6 5",51,21,10,"30; 30 Fly"]
["Minor Elementals Steam Mephit","Steam Mephit","Steam Mephit Lv6 6",51,21,10,"30; 30 Fly"]
["Minor Elementals Steam Mephit","Steam Mephit","Steam Mephit Lv6 7",51,21,10,"30; 30 Fly"]
["Minor Elementals Steam Mephit","Steam Mephit","Steam Mephit Lv6 8",51,21,10,"30; 30 Fly"]
["Minor Elementals Steam Mephit","Steam Mephit","Steam Mephit Lv8 1",51,21,10,"30; 30 Fly"]
["Minor Elementals Steam Mephit","Steam Mephit","Steam Mephit Lv8 2",51,21,10,"30; 30 Fly"]
["Minor Elementals Steam Mephit","Steam Mephit","Steam Mephit Lv8 3",51,21,10,"30; 30 Fly"]
["Minor Elementals Steam Mephit","Steam Mephit","Steam Mephit Lv8 4",51,21,10,"30; 30 Fly"]
["Minor Elementals Steam Mephit","Steam Mephit","Steam Mephit Lv8 5",51,21,10,"30; 30 Fly"]
["Minor Elementals Steam Mephit","Steam Mephit","Steam Mephit Lv8 6",51,21,10,"30; 30 Fly"]
["Minor Elementals Steam Mephit","Steam Mephit","Steam Mephit Lv8 7",51,21,10,"30; 30 Fly"]
["Minor Elementals Steam Mephit","Steam Mephit","Steam Mephit Lv8 8",51,21,10,"30; 30 Fly"]
["Minor Elementals Smoke Mephit","Smoke Mephit","Smoke Mephit Lv4 1",52,22,12,"30; 30 Fly"]
["Minor Elementals Smoke Mephit","Smoke Mephit","Smoke Mephit Lv4 2",52,22,12,"30; 30 Fly"]
["Minor Elementals Smoke Mephit","Smoke Mephit","Smoke Mephit Lv4 3",52,22,12,"30; 30 Fly"]
["Minor Elementals Smoke Mephit","Smoke Mephit","Smoke Mephit Lv4 4",52,22,12,"30; 30 Fly"]
["Minor Elementals Smoke Mephit","Smoke Mephit","Smoke Mephit Lv4 5",52,22,12,"30; 30 Fly"]
["Minor Elementals Smoke Mephit","Smoke Mephit","Smoke Mephit Lv4 6",52,22,12,"30; 30 Fly"]
["Minor Elementals Smoke Mephit","Smoke Mephit","Smoke Mephit Lv4 7",52,22,12,"30; 30 Fly"]
["Minor Elementals Smoke Mephit","Smoke Mephit","Smoke Mephit Lv4 8",52,22,12,"30; 30 Fly"]
["Minor Elementals Smoke Mephit","Smoke Mephit","Smoke Mephit Lv6 1",52,22,12,"30; 30 Fly"]
["Minor Elementals Smoke Mephit","Smoke Mephit","Smoke Mephit Lv6 2",52,22,12,"30; 30 Fly"]
["Minor Elementals Smoke Mephit","Smoke Mephit","Smoke Mephit Lv6 3",52,22,12,"30; 30 Fly"]
["Minor Elementals Smoke Mephit","Smoke Mephit","Smoke Mephit Lv6 4",52,22,12,"30; 30 Fly"]
["Minor Elementals Smoke Mephit","Smoke Mephit","Smoke Mephit Lv6 5",52,22,12,"30; 30 Fly"]
["Minor Elementals Smoke Mephit","Smoke Mephit","Smoke Mephit Lv6 6",52,22,12,"30; 30 Fly"]
["Minor Elementals Smoke Mephit","Smoke Mephit","Smoke Mephit Lv6 7",52,22,12,"30; 30 Fly"]
["Minor Elementals Smoke Mephit","Smoke Mephit","Smoke Mephit Lv6 8",52,22,12,"30; 30 Fly"]
["Minor Elementals Smoke Mephit","Smoke Mephit","Smoke Mephit Lv8 1",52,22,12,"30; 30 Fly"]
["Minor Elementals Smoke Mephit","Smoke Mephit","Smoke Mephit Lv8 2",52,22,12,"30; 30 Fly"]
["Minor Elementals Smoke Mephit","Smoke Mephit","Smoke Mephit Lv8 3",52,22,12,"30; 30 Fly"]
["Minor Elementals Smoke Mephit","Smoke Mephit","Smoke Mephit Lv8 4",52,22,12,"30; 30 Fly"]
["Minor Elementals Smoke Mephit","Smoke Mephit","Smoke Mephit Lv8 5",52,22,12,"30; 30 Fly"]
["Minor Elementals Smoke Mephit","Smoke Mephit","Smoke Mephit Lv8 6",52,22,12,"30; 30 Fly"]
["Minor Elementals Smoke Mephit","Smoke Mephit","Smoke Mephit Lv8 7",52,22,12,"30; 30 Fly"]
["Minor Elementals Smoke Mephit","Smoke Mephit","Smoke Mephit Lv8 8",52,22,12,"30; 30 Fly"]
["Minor Elementals Mud Mephit","Mud Mephit","Mud Mephit Lv4 1",57,27,11,"20; 20 Fly; 20 Swim"]
["Minor Elementals Mud Mephit","Mud Mephit","Mud Mephit Lv4 2",57,27,11,"20; 20 Fly; 20 Swim"]
["Minor Elementals Mud Mephit","Mud Mephit","Mud Mephit Lv4 3",57,27,11,"20; 20 Fly; 20 Swim"]
["Minor Elementals Mud Mephit","Mud Mephit","Mud Mephit Lv4 4",57,27,11,"20; 20 Fly; 20 Swim"]
["Minor Elementals Mud Mephit","Mud Mephit","Mud Mephit Lv4 5",57,27,11,"20; 20 Fly; 20 Swim"]
["Minor Elementals Mud Mephit","Mud Mephit","Mud Mephit Lv4 6",57,27,11,"20; 20 Fly; 20 Swim"]
["Minor Elementals Mud Mephit","Mud Mephit","Mud Mephit Lv4 7",57,27,11,"20; 20 Fly; 20 Swim"]
["Minor Elementals Mud Mephit","Mud Mephit","Mud Mephit Lv4 8",57,27,11,"20; 20 Fly; 20 Swim"]
["Minor Elementals Mud Mephit","Mud Mephit","Mud Mephit Lv6 1",57,27,11,"20; 20 Fly; 20 Swim"]
["Minor Elementals Mud Mephit","Mud Mephit","Mud Mephit Lv6 2",57,27,11,"20; 20 Fly; 20 Swim"]
["Minor Elementals Mud Mephit","Mud Mephit","Mud Mephit Lv6 3",57,27,11,"20; 20 Fly; 20 Swim"]
["Minor Elementals Mud Mephit","Mud Mephit","Mud Mephit Lv6 4",57,27,11,"20; 20 Fly; 20 Swim"]
["Minor Elementals Mud Mephit","Mud Mephit","Mud Mephit Lv6 5",57,27,11,"20; 20 Fly; 20 Swim"]
["Minor Elementals Mud Mephit","Mud Mephit","Mud Mephit Lv6 6",57,27,11,"20; 20 Fly; 20 Swim"]
["Minor Elementals Mud Mephit","Mud Mephit","Mud Mephit Lv6 7",57,27,11,"20; 20 Fly; 20 Swim"]
["Minor Elementals Mud Mephit","Mud Mephit","Mud Mephit Lv6 8",57,27,11,"20; 20 Fly; 20 Swim"]
["Minor Elementals Mud Mephit","Mud Mephit","Mud Mephit Lv8 1",57,27,11,"20; 20 Fly; 20 Swim"]
["Minor Elementals Mud Mephit","Mud Mephit","Mud Mephit Lv8 2",57,27,11,"20; 20 Fly; 20 Swim"]
["Minor Elementals Mud Mephit","Mud Mephit","Mud Mephit Lv8 3",57,27,11,"20; 20 Fly; 20 Swim"]
["Minor Elementals Mud Mephit","Mud Mephit","Mud Mephit Lv8 4",57,27,11,"20; 20 Fly; 20 Swim"]
["Minor Elementals Mud Mephit","Mud Mephit","Mud Mephit Lv8 5",57,27,11,"20; 20 Fly; 20 Swim"]
["Minor Elementals Mud Mephit","Mud Mephit","Mud Mephit Lv8 6",57,27,11,"20; 20 Fly; 20 Swim"]
["Minor Elementals Mud Mephit","Mud Mephit","Mud Mephit Lv8 7",57,27,11,"20; 20 Fly; 20 Swim"]
["Minor Elementals Mud Mephit","Mud Mephit","Mud Mephit Lv8 8",57,27,11,"20; 20 Fly; 20 Swim"]

{"sheet":"Monster Template","index":4,"n_rows":113,"n_cols":20,"rows_kept":113,"cut":false,"hidden":true,"merged":[]}
[null,null,null,null,"Senses","Languages","_"," ","Feature","-","Description","_","__","___","____"," ","Action Economy",null,null," "]
[null,null,null," ",null,null,null," ",null,null,null,null,null,null,null," ","Action","Description","_"," "]
[null,null,null," ","Saving Throw","Modifier","_"," ",null,null,null,null,null,null,null," ",null,null,null," "]
[null,"Image Here",null," ",null,null,null," ","Combat",null,null,null,null,null,null," ","Reaction","Description","_"," "]
[null,null,null," ","Skill","Modifier","_"," ","Attack","Type","To Hit","Damage","Damage Type","Notes","_"," ",null,null,null," "]
[null,null,null," ",null,null,null," ",null,null,null,null,null,null,null," ","Bonus Action","Description","_"," "]
[null,null,null," ","Passive","Skill","_"," ","Spell Attack","Spell Save DC","Ability",null,null,null,null," ",null,null,null," "]
[null,null,null," ",null,null,null," ",null,null,null,null,null,null,null," ","Free Action","Description","_"," "]
["Name",null,null," ","Dmg Resist","Immun","Vuln"," ","Spell","Level","Time","Class","Damage","Save","Link"," ",null,null,null," "]
["Str",10,{"$f":"ROUNDDOWN((B10-10)/2, 0)+IF(AND(B10<10,MOD(B10,2)=1),-1,0)","v":0}," ",null,null,null," ",null,null,null,null,null,null,null," ",null,null,null," "]
["Dex",10,0," ",null,null,null," ",null,null,null,null,null,null,null," ","Slots",null,null," "]
["Con",10,0," ","Tracked Statuses",null,null," ","Notes",null,null,null,null,null,null," ","Level/Type","Slots","Max Slots"," "]
["Int",10,0," ",null,null,null," ",null,null,null,null,null,null,null," ",null,null,null," "]
["Wis",10,0," ","Condition/Effect","Level","Duration"," ",null,null,null,null,null,null,null," ",null,null,null," "]
["Cha",10,0," ",null,null,null," ",null,null,null,null,null,null,null," ","Charges",null,null," "]
[null,null,null," ",null,null,null," ",null,null,null,null,null,null,null," ","Item","Charges","Max Charges"," "]
[null,null,null," ",null,null,null," ",null,null,null,null,null,null,null," ",null,null,null," "]
["HP","AC","Speed"," ",null,null,null," ",null,null,null,null,null,null,null," ",null,null,null," "]
[null,null,null," ",null,null,null," ",null,null,null,null,null,null,null," ","Spell List",null,null," "]
["HP Max",null,"Init"," ",null,null,null," ",null,null,null,null,null,null,null," ","Spell","Level","Details"," "]
[null,null,null," ",null,null,null," ",null,null,null,null,null,null,null," ",null,null,null," "]
[null,null,null," ",null,null,null," ",null,null,null,null,null,null,null," ",null,null,null," "]
["Type","Size","Align"," ",null,null,null," ",null,null,null,null,null,null,null," ",null,null,null," "]
[null,null,null," ",null,null,null," ",null,null,null,null,null,null,null," ",null,null,null," "]
["CR","Reference",null," ",null,null,null," ",null,null,null,null,null,null,null," ",null,null,null," "]
[null,null,null," ",null,null,null," ",null,null,null,null,null,null,null," ",null,null,null," "]
[null,null,null," ",null,null,null," ",null,null,null,null,null,null,null," ",null,null,null," "]
[null,null,null," ",null,null,null," ",null,null,null,null,null,null,null," ",null,null,null," "]
[null,null,null," ",null,null,null," ",null,null,null,null,null,null,null," ",null,null,null," "]
[null,null,null," ",null,null,null," ",null,null,null,null,null,null,null," ",null,null,null," "]
[null,null,null," ",null,null,null," ",null,null,null,null,null,null,null," ",null,null,null," "]
[null,null,null," ",null,null,null," ",null,null,null,null,null,null,null," ",null,null,null," "]
[null,null,null," ",null,null,null," ",null,null,null,null,null,null,null," ",null,null,null," "]
[null,null,null," ",null,null,null," ",null,null,null,null,null,null,null," ",null,null,null," "]
[null,null,null,null,null,null,null," ",null,null,null,null,null,null,null," "]
[null,null,null,null,null,null,null," ",null,null,null,null,null,null,null," "]
[null,null,null,null,null,null,null," ",null,null,null,null,null,null,null," "]
[null,null,null,null,null,null,null," ",null,null,null,null,null,null,null," "]
[null,null,null,null,null,null,null," ",null,null,null,null,null,null,null," "]
[null,null,null,null,null,null,null," ",null,null,null,null,null,null,null," "]
[null,null,null,null,null,null,null," ",null,null,null,null,null,null,null," "]
[null,null,null,null,null,null,null," ",null,null,null,null,null,null,null," "]
[null,null,null,null,null,null,null," ",null,null,null,null,null,null,null," "]
[null,null,null,null,null,null,null," ",null,null,null,null,null,null,null," "]
[null,null,null,null,null,null,null," ",null,null,null,null,null,null,null," "]
[null,null,null,null,null,null,null," ",null,null,null,null,null,null,null," "]
[null,null,null,null,null,null,null," ",null,null,null,null,null,null,null," "]
[null,null,null,null,null,null,null," ",null,null,null,null,null,null,null," "]
[null,null,null,null,null,null,null," ",null,null,null,null,null,null,null," "]
[null,null,null,null,null,null,null," ",null,null,null,null,null,null,null," "]
[null,null,null,null,null,null,null," ",null,null,null,null,null,null,null," "]
[null,null,null,null,null,null,null," ",null,null,null,null,null,null,null," "]
[null,null,null,null,null,null,null," ",null,null,null,null,null,null,null," "]
[null,null,null,null,null,null,null," ",null,null,null,null,null,null,null," "]
[null,null,null,null,null,null,null," ",null,null,null,null,null,null,null," "]
[null,null,null,null,null,null,null," ",null,null,null,null,null,null,null," "]
[null,null,null,null,null,null,null," ",null,null,null,null,null,null,null," "]
[null,null,null,null,null,null,null," ",null,null,null,null,null,null,null," "]
[null,null,null,null,null,null,null," ",null,null,null,null,null,null,null," "]
[null,null,null,null,null,null,null," ",null,null,null,null,null,null,null," "]
[null,null,null,null,null,null,null," ",null,null,null,null,null,null,null," "]
[null,null,null,null,null,null,null," ",null,null,null,null,null,null,null," "]
[null,null,null,null,null,null,null," ",null,null,null,null,null,null,null," "]
[null,null,null,null,null,null,null," ",null,null,null,null,null,null,null," "]
[null,null,null,null,null,null,null," ",null,null,null,null,null,null,null," "]
[null,null,null,null,null,null,null," ",null,null,null,null,null,null,null," "]
[null,null,null,null,null,null,null," ",null,null,null,null,null,null,null," "]
[null,null,null,null,null,null,null," ",null,null,null,null,null,null,null," "]
[null,null,null,null,null,null,null," ",null,null,null,null,null,null,null," "]
[null,null,null,null,null,null,null," ",null,null,null,null,null,null,null," "]
[null,null,null,null,null,null,null," ",null,null,null,null,null,null,null," "]
[null,null,null,null,null,null,null," ",null,null,null,null,null,null,null," "]
[null,null,null,null,null,null,null," ",null,null,null,null,null,null,null," "]
[null,null,null,null,null,null,null," ",null,null,null,null,null,null,null," "]
[null,null,null,null,null,null,null," ",null,null,null,null,null,null,null," "]
[null,null,null,null,null,null,null," ",null,null,null,null,null,null,null," "]
[null,null,null,null,null,null,null," ",null,null,null,null,null,null,null," "]
[null,null,null,null,null,null,null," ",null,null,null,null,null,null,null," "]
[null,null,null,null,null,null,null," ",null,null,null,null,null,null,null," "]
[null,null,null,null,null,null,null," ",null,null,null,null,null,null,null," "]
[null,null,null,null,null,null,null," ",null,null,null,null,null,null,null," "]
[null,null,null,null,null,null,null," ",null,null,null,null,null,null,null," "]
[null,null,null,null,null,null,null," ",null,null,null,null,null,null,null," "]
[null,null,null,null,null,null,null," ",null,null,null,null,null,null,null," "]
[null,null,null,null,null,null,null," ",null,null,null,null,null,null,null," "]
[null,null,null,null,null,null,null," ",null,null,null,null,null,null,null," "]
[null,null,null,null,null,null,null," ",null,null,null,null,null,null,null," "]
[null,null,null,null,null,null,null," ",null,null,null,null,null,null,null," "]
[null,null,null,null,null,null,null," ",null,null,null,null,null,null,null," "]
[null,null,null,null,null,null,null," ",null,null,null,null,null,null,null," "]
[null,null,null,null,null,null,null," ",null,null,null,null,null,null,null," "]
[null,null,null,null,null,null,null," ",null,null,null,null,null,null,null," "]
[null,null,null,null,null,null,null," ",null,null,null,null,null,null,null," "]
[null,null,null,null,null,null,null," ",null,null,null,null,null,null,null," "]
[null,null,null,null,null,null,null," ",null,null,null,null,null,null,null," "]
[null,null,null,null,null,null,null," ",null,null,null,null,null,null,null," "]
[null,null,null,null,null,null,null," ",null,null,null,null,null,null,null," "]
[null,null,null,null,null,null,null," ",null,null,null,null,null,null,null," "]
[null,null,null,null,null,null,null," ",null,null,null,null,null,null,null," "]
[null,null,null,null,null,null,null," ",null,null,null,null,null,null,null," "]
[null,null,null,null,null,null,null," ",null,null,null,null,null,null,null," "]
[null,null,null,null,null,null,null," ",null,null,null,null,null,null,null," "]
[null,null,null,null,null,null,null," ",null,null,null,null,null,null,null," "]
[null,null,null,null,null,null,null," ",null,null,null,null,null,null,null," "]
[null,null,null,null,null,null,null," ",null,null,null,null,null,null,null," "]
[null,null,null,null,null,null,null," ",null,null,null,null,null,null,null," "]
[null,null,null,null,null,null,null," ",null,null,null,null,null,null,null," "]
[null,null,null,null,null,null,null," ",null,null,null,null,null,null,null," "]
[null,null,null,null,null,null,null," ",null,null,null,null,null,null,null," "]
[null,null,null,null,null,null,null," ",null,null,null,null,null,null,null," "]
[null,null,null,null,null,null,null," ",null,null,null,null,null,null,null," "]
[null,null,null,null,null,null,null," ",null,null,null,null,null,null,null," "]
[null,null,null,null,null,null,null," ",null,null,null,null,null,null,null," "]